Workbook

Sheet Přehled
D3: Všeobecné definice ETICS MAMUT-THERM
D5: s EPS | F5: s MW
D7: ETICS MAMUT-THERM Pa | F7: ETICS MAMUT-THERM Ma
D9: ETICS MAMUT-THERM Pb | F9: ETICS MAMUT-THERM Md
D11: ETICS MAMUT-THERM Ps | F11: ETICS MAMUT-THERM Ml
D13: ETICS MAMUT-THERM Pu | F13: ETICS MAMUT-THERM Mu
D15: ETICS MAMUT-THERM C | F15: ETICS MAMUT-THERM E
D17: ETICS MAMUT-THERM Pt | F17: ETICS MAMUT-THERM Mt
D19: ETICS MAMUT-THERM Pv | F19: ETICS MAMUT-THERM Mv
D21: MAMUT-THERM P plus | F21: MAMUT-THERM M plus
D23: MAMUT-THERM P spiral | E23: ! nové | F23: MAMUT-THERM M spiral | G23: ! nové
D25: klikni na požadovanou definici
D27: Přehled ETICS MAMUT-THERM podle registrace NZÚ2014, od roku 2015 již nepovinné
C29: Dle zákona 22/1997 Sb. v platném znění, zejména pak Nařízení vlády č. 163/2002 Sb.v platném znění, jsou tepelně izolační kompozitní systémy (ETICS) stanovenými výrobky. Z pohledu výše uvedeného zákona ve znění pozdějších předpisů vyplývá, že ETICS je brán jako výrobek a jako takový musí být nejprve odzkoušen na akreditovaných zkušebnách a certifikován. Odpovědnost podle příslušných předpisů pro stavební výrobky nese společnost MAMUT-THERM s.r.o. za ty specifikované ETICS, které sama, jako sestavy součástí, uvádí na trh. Každý ETICS je jednoznačně definovaným výrobkem, který má určenou skladbu komponentů, které na sebe vzájemně navazují. Záměnou komponentů, nedodržením skladby nebo nedodržením technologického postupu ETICS k odborné montáži, určených výrobcem, je hrubým zásahem do charakteristiky výrobku a vzniklý produkt již přestává být stanoveným a tedy certifikovaným výrobkem.
C30: Návod:
C31: Jednotlivé definice je možno editovat a tak přizpůsobovat konkrétním požadavkům stavby a vytvářet z nich definice pro konkrétní stavbu. Text "Všeobecná definice ..." přepsat na "Definice .... a její použití pro stavbu:" a do následujícího řádku napsat text názvu stavby z názvu projektové dokumentace např. "Regenerace bytového domu ..." Řádky s materiály, které nejsou v konkrétní stavbě použity je potřeba skrýt a po té definici ETICS pro "konkrétní stavbu" uložit do příslušného adresáře nabídky (pro případnou další editaci !!!) a pak vytisknout nebo uložit do *.pdf.
I33: ©2017 MAMUT-THERM®

Sheet MAMUT-THERM P (hidden)
C3: Všeobecná definice výrobku ETICS MAMUT-THERM P a zamýšlené použití
C5: ETA 07/0153
C6: Reakce na oheň Evropská třída dle EN 13501-1:2003: B – s1, d0 *)
C8: Vnější tepelně izolační kompozitní systém (ETICS) MAMUT-THERM P, zvaný ETICS v dalším textu, je navržen a prováděn v souladu s návrhovými a montážními pokyny držitele ETA, uloženými v Technickém a zkušebním ústavu stavebním Praha s.p. (TZÚS), pobočka České Budějovice. ETICS se skládá z následujících součástí, které jsou vyráběny držitelem ETA nebo jeho subdodavatelem, z těch se poté zabudovává do stavby.
C9: Tento systém je prodáván pod jedním obchodním názvem ve skladbách vyplývajících z všeobecné definice výrobku.
C11: Definice výrobku | E11: Součásti | G11: Spotřeba (kg/m2) | H11: Tloušťka (mm)
C13: Částečně nebo plně lepený ETICS s doplňkovým mechanickým kotvením (minimální plocha lepení 40% povrchu desky EPS).
C14: Národní prováděcí předpisy musí být brány v úvahu.
C15: Izolační vrstva – IV a související způsob upevnění | D15: Lepicí hmota | E15: MAMUT Flex T | G15: 3,0 - 5,0 (kg/m²) suché směsi | H15: -
E16: Stav při dodání: prášek
E17: Postup přípravy: prášek vyžadující přípravek vody 0,25 l/kg
E18: Hlavní součásti výrobku: portlandský cement, plnivo o zrnitosti 0-0,7mm, speciální přísady
D19: Lepicí hmota | E19: MAMUT Multi | G19: 3,0 - 5,0 (kg/m²) suché směsi | H19: -
E20: Stav při dodání: prášek
E21: Postup přípravy: prášek vyžadující přídavek vody 0,20 l/kg
E22: Hlavní součásti výrobku: portlandský cement, plnivo o zrnitosti 0-0,6 mm, speciální přísady
D23: Izolační výrobek | E23: a - Desky z pěnového polystyrenu (EPS s reakcí na oheň E, pevností v tahu kolmo k rovině desky TR 100) a s dalšími sledovanými vlastnostmi uvedenými v tabulce č. 15 ETA 07/0153. | G23: - | H23: 50 - 500
E24: – fasádní deska z expandovaného polystyrénu kvalitativní třídy A dle CZB ČR
E25: Desky z pěnového polystyrenu (EPS s reakcí na oheň E, pevností v tahu kolmo k rovině desky TR 100) a s dalšími sledovanými vlastnostmi uvedenými v tabulce č. 15 ETA 07/0153. | G25: - | H25: 50 - 500
E26: s - Desky z pěnového polystyrenu s příměsí grafitových částic (EPS s reakcí na oheň E, pevností v tahu kolmo k rovině desky TR 100) a s dalšími sledovanými vlastnostmi uvedenými v tabulce č. 15 ETA 07/0153. | G26: - | H26: 50 - 500
C27: Mechanicky kotvený ETICS s doplňkovým lepením (minimální plocha lepení 30% povrchu desky EPS).
C28: Národní prováděcí předpisy musí být brány v úvahu.
C29: Izolační vrstva – IV a související způsob upevnění | D29: Lepicí hmota | E29: MAMUT Flex T | G29: 3,0 - 5,0 (kg/m²) suché směsi | H29: -
E30: Stav při dodání: prášek
E31: Postup přípravy: prášek vyžadující přípravek vody 0,25 l/kg
E32: Hlavní součásti výrobku: portlandský cement, plnivo o zrnitosti 0-0,7mm, speciální přísady
D33: Lepicí hmota | E33: MAMUT Multi | G33: 3,0 - 5,0 (kg/m²) suché směsi | H33: -
E34: Stav při dodání: prášek
E35: Postup přípravy: prášek vyžadující přídavek vody 0,20 l/kg
E36: Hlavní součásti výrobku: portlandský cement, plnivo o zrnitosti 0-0,6 mm, speciální přísady
D37: Izolační výrobek | E37: a - Desky z pěnového polystyrenu (EPS s reakcí na oheň E, pevností v tahu kolmo k rovině desky TR 100) a s dalšími sledovanými vlastnostmi uvedenými v tabulce č. 15 ETA 07/0153. | G37: - | H37: 50 - 500
E38: – fasádní deska z expandovaného polystyrénu kvalitativní třídy A dle CZB ČR
E39: b - Desky z pěnového polystyrenu (EPS s reakcí na oheň E, pevností v tahu kolmo k rovině desky TR 100) a s dalšími sledovanými vlastnostmi uvedenými v tabulce č. 15 ETA 07/0153.
E40: s - Desky z pěnového polystyrenu s příměsí grafitových částic (EPS s reakcí na oheň E, pevností v tahu kolmo k rovině desky TR 100) a s dalšími sledovanými vlastnostmi uvedenými v tabulce č. 15 ETA 07/0153.
D41: Mechanicky kotvící prvky | E41: ejotherm NT U | F41: ETA-05/0009 | G41: dle PD | H41: -
E42: plastové zatloukací hmoždinky
E43: ejotherm NTK U | F43: ETA-07/0026 | G43: dle PD | H43: -
E44: plastové zatloukací hmoždinky
E45: ejotherm ST U | F45: ETA-02/0018 | G45: dle PD | H45: -
E46: plastové šroubovací hmoždinky
E47: ejotherm STR U | F47: ETA-04/0023 | G47: dle PD | H47: -
E48: plastové šroubovací hmoždinky
E49: ejotherm STR U 2G | F49: ETA-04/0023 | G49: dle PD | H49: -
E50: plastové šroubovací hmoždinky
E51: EJOT SDM – T plus | F51: ETA-04/0064 | G51: dle PD | H51: -
E52: plastové šroubovací hmoždinky
E53: EJOT H1 eco | F53: ETA-11/0192 | G53: dle PD | H53: -
E54: plastové zatloukací hmoždinky
E55: Bravoll PTH-KZ 60/8-La, | F55: ETA-05/0055 | G55: dle PD | H55: -
E56: plastové zatloukací hmoždinky
E58: Bravoll PTH-KZL 60/8-La, | F58: ETA-05/0055 | G58: dle PD | H58: -
E59: plastové zatloukací hmoždinky
E60: Bravoll PTH 60/8-La, | F60: ETA-05/0055 | G60: dle PD | H60: -
E61: plastové zatloukací hmoždinky
E62: Bravoll PTH-L 60/8-La | F62: ETA-05/0055 | G62: dle PD | H62: -
E63: plastové zatloukací hmoždinky
E64: Bravoll PTH-S 60/8-La, Bravoll PTH-SL 60/8-La | F64: ETA-08/0267 | G64: dle PD | H64: -
E65: plastové šroubovací hmoždinky
E66: Bravoll PTH-SX | F66: ETA-10/0028 | G66: dle PD | H66: -
E67: plastové šroubovací hmoždinky
E68: fischer Termoz 8 SV | F68: ETA-06/0180 | G68: dle PD | H68: -
E69: plastové šroubovací hmoždinky
E70: fischer Termoz KS 8 | F70: ETA-04/0114 | G70: dle PD | H70: -
E71: plastové šroubovací hmoždinky
E72: fischer Termoz 8N | F72: ETA-03/0019 | G72: dle PD | H72: -
E73: plastové zatloukací hmoždinky
E74: fischer Termoz 8NZ | F74: ETA-03/0019 | G74: dle PD | H74: -
E75: plastové zatloukací hmoždinky
E76: fischer Termofix CF 8 | F76: ETA-07/0287 | G76: dle PD | H76: -
E77: plastové zatloukací hmoždinky
E78: fischer Termoz CN8 | F78: ETA-09/0394 | G78: dle PD | H78: -
E79: plastové zatloukací hmoždinky
E80: fischer Termoz 8 U | F80: ETA-02/0019 | G80: dle PD | H80: -
E81: plastové šroubovací hmoždinky
E82: fischer Termoz 8 UZ | F82: ETA-02/0019 | G82: dle PD | H82: -
E83: plastové šroubovací hmoždinky
E84: fischer Termoz PN 8 | F84: ETA-09/0171 | G84: dle PD | H84: -
E85: plastové zatloukací hmoždinky
E86: fischer Termoz LO 8 | F86: ETA-10/0460 | G86: dle PD | H86: -
E87: plastové zatloukací hmoždinky
E88: Hilti D 8-FV | F88: ETA-07/0288 | G88: dle PD | H88: -
E89: plastové šroubovací hmoždinky
E90: Hilti XI-FV | F90: ETA-03/0004 | G90: dle PD | H90: -
E91: plastové nastřelovací hmoždinky
E92: Hilti SDK-FV 8 | F92: ETA-07/0302 | G92: dle PD | H92: -
E93: plastové zatloukací hmoždinky
E94: Hilti SX-FV | F94: ETA-03/0005 | G94: dle PD | H94: -
E95: plastové šroubovací hmoždinky - jednokrok
E96: Hilti SD-FV 8 | F96: ETA-03/0028 | G96: dle PD | H96: -
E97: plastové zatloukací hmoždinky
E98: KEW TSD 8 | F98: ETA-04/0030 | G98: dle PD | H98: -
E99: plastové zatloukací hmoždinky
E100: KEW TSBD 8 | F100: ETA-08/0314 | G100: dle PD | H100: -
E101: plastové šroubovací hmoždinky
E102: KEW TSD-V8 | F102: ETA-08/0315 | G102: dle PD | H102: -
E103: plastové zatloukací hmoždinky
E104: TTH 10/60-La | F104: ETA-09/0318 | G104: dle PD | H104: -
E105: plastové zatloukací hmoždinky
E106: KOELNER TFIX-8M | F106: ETA-07/0336 | G106: dle PD | H106: -
E107: plastové zatloukací hmoždinky
E108: Koelner TFIX-8S a TFIX-8ST | F108: ETA-11/0144 | G108: dle PD
E109: plastové šroubovací hmoždinky
E110: KOELNER KI-10, KI-10M | F110: ETA-07/0291 | G110: dle PD | H110: -
E111: plastové zatloukací hmoždinky
E112: WKTHERM ø 8 | F112: ETA-11/0232 | G112: dle PD | H112: -
E113: plastové zatloukací hmoždinky
E114: FIXPLUG ø 8 ; FIXPLUG ø 10 | F114: ETA-11/0231 | G114: dle PD | H114: -
E115: plastové zatloukací hmoždinky
E116: WKRET-MET-LMX ø 10 | F116: ETA-08/0172 | G116: dle PD | H116: -
E117: plastové zatloukací hmoždinky
C118: Základní vrstva – ZV | D118: Malta základní vrstvy – armovací hmota | E118: MAMUT Flex T | G118: 3,6 - 5,0 (kg/m²) suché směsi | H118: 3 - 4
E119: Stav při dodání: prášek
E120: Postup přípravy: prášek vyžadující přípravek vody 0,25 l/kg
E121: Hlavní součásti výrobku: portlandský cement, plnivo o zrnitosti 0-0,7mm, speciální přísady
D122: Výztuž | E122: Skleněná síťovina pro ETICS
E123: VERTEX R 131 A101 (rozměry mřížky 3,5 x 3,8 mm)
E124: Valmiera SSA-1363-SM (rozměry mřížky 5,0 x 4,0 mm)
C126: Povrchová úprava – PÚ | D126: Penetrační nátěr | E126: MAMUT Kontakt | G126: 0,20 l/m² | H126: -
E127: Stav při dodání: tekutina připravená k použití
E128: Postup přípravy: neředit, promíchat
E129: Hlavní součásti výrobku: umělopryskyřičná disperze, minerální přísady
E130: Použití: penetrační nátěr základní vrstvy určený pro konečné povrchové úpravy MAMUT
E131: MAMUT Kontakt mozaika | G131: 0,20 l/m² | H131: -
E132: Stav při dodání: tekutina připravená k použití
E133: Postup přípravy: neředit, promíchat
E134: Hlavní součásti výrobku: umělopryskyřičná disperze, minerální přísady
E135: Použití: penetrační nátěr základní vrstvy určený pro konečné povrchové úpravy MAMUT mozaika
E136: Minerální omítky (použity vždy s ochranným nátěrem MAMUT Color EG)
C138: Povrchová úprava – PÚ | D138: Konečná povrchová úprava | E138: MAMUT ip 44 | G138: 2,5 – 3,7 (kg/m²) dle max.velikosti zrna | H138: Dle max. velikosti zrna
E139: minerální omítka zatíraná - max.zrno 1,5; 2,0; 3,0mm)
E140: Stav při dodání: prášek
E141: Postup přípravy: prášek vyžadující přípravek vody 0,23-0,3l/kg
E142: Hlavní součásti výrobku: bílý vápenný hydrát, bílý cement, kamenivo, anorganické stálobarevné pigmenty, speciální přísady
E143: MAMUT ip 42 | G143: 2,7 – 3,9 (kg/m²) dle max.velikosti zrna | H143: Dle max. velikosti zrna
E144: minerální omítka rýhovaná - max.zrno 2,0; 3,0mm)
E145: Stav při dodání: prášek
E146: Postup přípravy: prášek vyžadující přípravek vody 0,23-0,3l/kg
E147: Hlavní součásti výrobku:bílý vápenný hydrát, bílý cement, kamenivo, anorganické stálobarevné pigmenty, speciální přísady
E148: MAMUT Spektrum Z | G148: 2,5 – 3,8 (kg/m²) dle max.velikosti zrna | H148: Dle max. velikosti zrna
E149: akrylátová zatíraná omítka -max. zrno 1,5; 2,0; 3,0mm
E150: Stav při dodání: pasta připravená k použití
E151: Složení: směs kameniva, pigmentů, plniv a pojiva na bázi umělé pryskyřice
E152: MAMUT Spektrum R | G152: 2,4 – 3,7 (kg/m²) dle max.velikosti zrna | H152: Dle max. velikosti zrna
E153: akrylátová rýhovaná omítka -max. zrno 1,5; 2,0; 3,0mm
E154: Stav při dodání: pasta připravená k použití
E155: Složení: směs kameniva, pigmentů, plniv a pojiva na bázi umělé pryskyřice
E156: MAMUT Silikát Z | G156: 2,5 – 3,8 (kg/m²) dle max.velikosti zrna | H156: Dle max. velikosti zrna
E157: silikátová zatíraná omítka -max. zrno 1,5; 2,0; 3,0mm
E158: Stav při dodání: pasta připravená k použití
E159: Složení: směs kameniva, pigmentů, plniv a pojiva na bázi vodního skla
E160: MAMUT Silikát R | G160: 2,4 – 3,7 (kg/m²) dle max.velikosti zrna | H160: Dle max. velikosti zrna
E161: silikátová rýhovaná omítka -max. zrno 1,5; 2,0; 3,0mm
E162: Stav při dodání: pasta připravená k použití
E163: Složení: směs kameniva, pigmentů, plniv a pojiva na bázi vodního skla
E164: MAMUT Silikon Z | G164: 2,5 – 3,8 (kg/m²) dle max.velikosti zrna | H164: Dle max. velikosti zrna
E165: silikonová zatíraná omítka -max. zrno 1,5; 2,0; 3,0mm
E166: Stav při dodání: pasta připravená k použití
E167: Složení: směs kameniva, pigmentů, plniv a pojiva na bázi silikonové pryskyřice
E168: MAMUT Silikon R | G168: 2,4 – 3,7 (kg/m²) dle max.velikosti zrna | H168: Dle max. velikosti zrna
E169: silikonová rýhovaná omítka -max. zrno 1,5; 2,0; 3,0mm
E170: Stav při dodání: pasta připravená k použití
E171: Složení: směs kameniva, pigmentů, plniv a pojiva na bázi silikonové pryskyřice
E172: MAMUT Mozaika | G172: 4,5 (kg/m²)
E173: akrylátová omítka -max. zrno 2,0
E174: Stav při dodání: pasta připravená k použití
E175: Složení: směs kameniva, pigmentů a pojiva na bázi umělé pryskyřice
C176: Povrchová úprava – PÚ | D176: Ochranný nátěr (pro minerální povrchové úpravy vždy, pro ostatní povrchové úpravy se nepoužívá) | E176: MAMUT Color EG | G176: 0,2 -0,3 l/m² | H176: -
E177: Egalizační nátěr
E178: Stav při dodání: tekutina připravená k použití
E179: Postup přípravy: neředit
E180: Hlavní součásti výrobku: bezrozpouštědlový vodní nátěr na bázi umělopryskyřičné disperze a minerálních přísad
E181: Použití: nátěr minerálních omítek MAMUT ip44 a MAMUT ip42 zajišťující sjednocení barevnosti
D182: Příslušenství | E182: Odpovídá popisu dle § 3.2.2.5 ETAG 004 na zodpovědnosti držitele ETA.
C183: *) platí pro všechny kombinace uvedené v tab. č. 2 a č. 3 mimo kombinace uvedené v tab. č. 4 ETA 07/0153
C185: Zamýšlené použití:
C186: Tento ETICS MAMUT-THERM P se uplatňuje na venkovních stěnách budov. Tyto stěny jsou vytvořeny zděním (z cihel, bloků, kamene…) nebo z betonu (monolitického nebo z prefabrikovaných panelů) s třídou reakce na oheň A1 nebo A2-s2,d0 dle EN 13501-1 nebo A1 dle doplňujícího EC 96/603/EC. ETICS je navrhován tak, aby dodával stěnám odpovídající tepelnou izolaci. ETICS je tvořen nenosnými konstrukčními součástmi. Nepřispívá ke stabilitě stěn, na něž se uplatňuje, ale přispívá k celkové odolnosti zvýšenou ochranou před vlivy povětrnosti. ETICS může být uplatněn na nové nebo již existující svislé stěny. Může být také uplatněn na vodorovné nebo nakloněné roviny, které nejsou vystaveny srážkám. Účelem ETICS není zajišťování neprodyšnosti budovy. Výběr způsobu připevňování a návrh konkrétní skladby závisí na vlastnostech podkladu, který může vyžadovat úpravu (viz čl. 7.2.1.ETAG 004) a musí být v souladu s národními předpisy. Ustanovení tohoto Evropského technického schválení vycházejí z předpokladu životnosti 25 roků dotčeného ETICS, za předpokladu jeho řádného užívání a údržby. Uvedený údaj životnosti však nelze považovat za záruku výrobce nebo schvalovacího orgánu, neboť slouží jen jako prostředek k volbě vhodných produktů s ohledem na očekávanou ekonomicky přiměřenou životnost díla.

Sheet ETICS dle NZÚ2013 (hidden)
E2: Přehled ETICS MAMUT-THERM podle registrace NZÚ2014
E3: ID SVT: 36 | F3: ID SOD: 114 | G3: pro MAMUT-THERM s.r.o.
C4: název ETICS v NZÚ2013 | E4: kód SVT | F4: izolant | G4: materiál izolantu | H4: třída reakce na oheň | I4: lD izolantu [W/(m.K)] | L4: název ETICS v NZÚ2013 | N4: kód SVT | O4: izolant | P4: materiál izolantu | Q4: třída reakce na oheň | R4: lD izolantu [W/(m.K)]
C5: MAMUT-THERM Pa (Lambda 0,032) | E5: SVT248 | F5: EPS 70 F šedý ("A") | G5: EPS | H5: B1 | I5: 0.032
C7: MAMUT-THERM Pb (Lambda 0,039) | E7: SVT253 | F7: EPS 70 F bílý | G7: EPS | H7: B1 | I7: 0.039
C9: MAMUT-THERM Ps (Lambda 0,032) | E9: SVT264 | F9: EPS 70 F šedý | G9: EPS | H9: B1 | I9: 0.032 | L9: MAMUT-THERM Ma (Lambda 0,036) | N9: SVT270 | O9: FKD S | P9: MW | Q9: A2 | R9: 0.036
C11: MAMUT-THERM Pu (Lambda 0,032) | E11: SVT268 | F11: EPS 70 F šedý | G11: EPS | H11: B1 | I11: 0.032 | L11: MAMUT-THERM Md (Lambda 0,036) | N11: SVT271 | O11: FKD S | P11: MW | Q11: A2 | R11: 0.036
C13: MAMUT-THERM Pa (Lambda 0,039) | E13: SVT644 | F13: EPS 70 F bílý ("A") | G13: EPS | H13: B1 | I13: 0.039 | L13: MAMUT-THERM Ml (Lambda 0,041) | N13: SVT272 | O13: MW TR80 (FKL, Fasrock LL, …) | P13: MW | Q13: A2 | R13: 0.041
C15: MAMUT-THERM Pu (Lambda 0,039) | E15: SVT645 | F15: EPS 70 F bílý | G15: EPS | H15: B1 | I15: 0.039 | L15: MAMUT-THERM Mu (Lambda 0,036) | N15: SVT273 | O15: FKD S, Frontrock MAX E | P15: MW | Q15: A2 | R15: 0.036
C17: MAMUT-THERM Pa (Lambda 0,037) | E17: SVT649 | F17: EPS 100 F bílý ("A") | G17: EPS | H17: B1 | I17: 0.037 | L17: MAMUT-THERM Ma (Lambda 0,039) | N17: SVT652 | O17: FKD, Fasrock | P17: MW | Q17: A2 | R17: 0.039
C19: MAMUT-THERM Pb (Lambda 0,037) | E19: SVT650 | F19: EPS 100 F bílý | G19: EPS | H19: B1 | I19: 0.037 | L19: MAMUT-THERM Md (Lambda 0,039) | N19: SVT653 | O19: MW TR15 (FKD, Fasrock, ...) | P19: MW | Q19: A2 | R19: 0.039
C21: MAMUT-THERM Pu (Lambda 0,037) | E21: SVT651 | F21: EPS 100 F bílý | G21: EPS | H21: B1 | I21: 0.037 | L21: MAMUT-THERM Mu (Lambda 0,039) | N21: SVT654 | O21: MW TR15 (FKD, Fasrock, ...) | P21: MW | Q21: A2 | R21: 0.039
C23: MAMUT-THERM C (Lambda 0,037) | E23: SVT656 | F23: EPS 100 F bílý | G23: EPS | H23: B1 | I23: 0.037 | L23: MAMUT-THERM Mt (lambda 0,036) | N23: SVT5218 | O23: FKD S, Frontrock MAX E | P23: MW | Q23: A2 | R23: 0.036
C25: MAMUT-THERM C (Lambda 0,039) | E25: SVT657 | F25: EPS 70 F bílý | G25: EPS | H25: B1 | I25: 0.039 | L25: MAMUT-THERM Mt (lambda 0,039) | N25: SVT5219 | O25: MW TR15 (FKD, Fasrock, ...) | P25: MW | Q25: A2 | R25: 0.039
C27: MAMUT-THERM Pt (lambda 0,032) | E27: SVT5215 | F27: EPS 70 F šedý | G27: EPS | H27: B1 | I27: 0.032 | L27: MAMUT-THERM Mv (Lambda 0,035) | N27: SVT6470 | O27: FKD N (C1/C2) | P27: MW | Q27: A2 | R27: 0.035
C29: MAMUT-THERM Pt (lambda 0,037) | E29: SVT5216 | F29: EPS 100 F bílý | G29: EPS | H29: B1 | I29: 0.037 | L29: MAMUT-THERM Mv (Lambda 0,036) | N29: SVT6471 | O29: FKD S (C1/C2), Frontr. MAX E | P29: MW | Q29: A2 | R29: 0.036
C31: MAMUT-THERM Pt (lambda 0,039) | E31: SVT5217 | F31: EPS 70 F bílý | G31: EPS | H31: B1 | I31: 0.039 | L31: MAMUT-THERM Mv (Lambda 0,039) | N31: SVT6472 | O31: MW TR15 (FKD, Fasrock, ...) | P31: MW | Q31: A2 | R31: 0.039
C33: MAMUT-THERM Pv (Lambda 0,032) | E33: SVT6467 | F33: EPS 70 F šedý | G33: EPS | H33: B1 | I33: 0.032 | L33: MAMUT-THERM Mv (Lambda 0,041) | N33: SVT6473 | O33: MW TR80 (FKL, Fasrock LL, ...) | P33: MW | Q33: A2 | R33: 0.041
C35: MAMUT-THERM Pv (Lambda 0,037) | E35: SVT6468 | F35: EPS 100 F bílý | G35: EPS | H35: B1 | I35: 0.037
C37: MAMUT-THERM Pv (Lambda 0,039) | E37: SVT6469 | F37: EPS 70 F bílý | G37: EPS | H37: B1 | I37: 0.039
M39: tl. na cm | N39: tl. | O39: Lambda N | P39: lambda D | Q39: ZTM | R39: R
M41: =ROUNDUP(N41,2)*100 -> 19 | N41: =O41*R41 -> 0.184 | O41: =ROUND(P41*(1+Q41),3) -> 0.046 | P41: 0.041 | Q41: =0.1+0.02 -> 0.12 | R41: 4 | S41: FASROCK LL, Isover NF | T41: =1/R41 -> 0.25
M43: =ROUNDUP(N43,2)*100 -> 18 | N43: =O43*R43 -> 0.18 | O43: =ROUND(P43*(1+Q43),3) -> 0.045 | P43: 0.04 | Q43: =0.1+0.02 -> 0.12 | R43: =R41 -> 4 | S43: FKL
M45: =ROUNDUP(N45,2)*100 -> 16 | N45: =O45*R45 -> 0.156 | O45: =ROUND(P45*(1+Q45),3) -> 0.039 | P45: 0.035 | Q45: =0.1+0.02 -> 0.12 | R45: =R43 -> 4 | S45: FKD N
M47: =ROUNDUP(N47,2)*100 -> 16 | N47: =O47*R47 -> 0.16 | O47: =ROUND(P47*(1+Q47),3) -> 0.04 | P47: 0.036 | Q47: =0.1+0.02 -> 0.12 | R47: =R45 -> 4 | S47: FKD S, MAX E, ISOVER TF
M49: =ROUNDUP(N49,2)*100 -> 10 | N49: =O49*R49 -> 0.092 | O49: =ROUND(P49*(1+Q49),3) -> 0.023 | P49: 0.022 | Q49: =0.02+0.02 -> 0.04 | R49: =R47 -> 4 | S49: PIR, PUR
M51: =ROUNDUP(N51,2)*100 -> 14 | N51: =O51*R51 -> 0.132 | O51: =ROUND(P51*(1+Q51),3) -> 0.033 | P51: 0.032 | Q51: =0.02+0.02 -> 0.04 | R51: =R49 -> 4 | S51: EPS šedý
M53: =ROUNDUP(N53,2)*100 -> 17 | N53: =O53*R53 -> 0.164 | O53: =ROUND(P53*(1+Q53),3) -> 0.041 | P53: 0.039 | Q53: =0.02+0.02 -> 0.04 | R53: =R51 -> 4 | S53: EPS bílý

Sheet M-T Pa2014 (hidden)
C3: Všeobecná definice výrobku ETICS MAMUT-THERM Pa , zamýšlené použití
C5: ETA 17/0385
C6: Reakce na oheň Evropská třída dle EN 13501-1:2003: B – s1, d0 *)
C8: Vnější tepelně izolační kompozitní systém (ETICS) MAMUT-THERM Pa, zvaný ETICS v dalším textu, je navržen a prováděn v souladu s návrhovými a montážními pokyny držitele ETA, uloženými v Technickém a zkušebním ústavu stavebním Praha s.p. (TZÚS), pobočka České Budějovice. ETICS se skládá z následujících součástí, které jsou vyráběny držitelem ETA nebo jeho subdodavatelem, z těch se poté zabudovává do stavby.
C9: Tento systém je prodáván pod jedním obchodním názvem ve skladbách vyplývajících z všeobecné definice výrobku.
C11: Definice výrobku | E11: Součásti | G11: Spotřeba | H11: Tloušťka (mm)
C13: Částečně nebo plně lepený ETICS s doplňkovým mechanickým kotvením (minimální plocha lepení 30% povrchu desky EPS).
C14: Národní prováděcí předpisy musí být brány v úvahu.
C15: Izolační vrstva – IV a související způsob upevnění | D15: Lepicí hmota | E15: MAMUT Flex T | G15: 3,0 - 5,0 (kg/m²) suché směsi | H15: -
E16: Stav při dodání: prášek
E17: Postup přípravy: prášek vyžadující přípravek vody 0,25 l/kg
E18: Hlavní součásti výrobku: portlandský cement, plnivo o zrnitosti 0-0,7mm, speciální přísady
E19: MAMUT MULTI
E20: Stav při dodání: prášek
E21: Postup přípravy: prášek vyžadující přípravek vody 0,20 l/kg
E22: Hlavní součásti výrobku: portlandský cement, plnivo o zrnitosti 0-0,6mm, speciální přísady
D23: Izolační výrobek | E23: Desky z pěnového polystyrenu (EPS s reakcí na oheň E, pevností v tahu kolmo k rovině desky TR 100) a s dalšími sledovanými vlastnostmi uvedenými v tabulce č. 15 ETA 07/0153. | G23: - | H23: 50 - 500 50 - 160 viz. tab.č.3 ETA 07/0153
E24: – fasádní deska z expandovaného polystyrénu kvalitativní třídy A dle CZB ČR
C25: Mechanicky kotvený ETICS s doplňkovým lepením (minimální plocha lepení 30% povrchu desky EPS).
C26: Národní prováděcí předpisy musí být brány v úvahu.
C27: Izolační vrstva – IV a související způsob upevnění | D27: Lepicí hmota | E27: MAMUT Flex T | G27: 3,0 - 5,0 (kg/m²) suché směsi | H27: -
E28: Stav při dodání: prášek
E29: Postup přípravy: prášek vyžadující přípravek vody 0,25 l/kg
E30: Hlavní součásti výrobku: portlandský cement, plnivo o zrnitosti 0-0,7mm, speciální přísady
E31: MAMUT MULTI
E32: Stav při dodání: prášek
E33: Postup přípravy: prášek vyžadující přípravek vody 0,20 l/kg
E34: Hlavní součásti výrobku: portlandský cement, plnivo o zrnitosti 0-0,6mm, speciální přísady
D35: Izolační výrobek | E35: Desky z pěnového polystyrenu (EPS s reakcí na oheň E, pevností v tahu kolmo k rovině desky TR 100) a s dalšími sledovanými vlastnostmi uvedenými v příloze č. 1 ETA 17/XXXX. | G35: - | H35: 50 - 500 50 - 160 viz. tab.č.3 ETA 07/0153
E36: – fasádní deska z expandovaného polystyrénu kvalitativní třídy A dle CZB ČR
D37: Mechanicky kotvící prvky | E37: ejotherm NTK U | F37: ETA-07/0026 | G37: dle PD | H37: -
E38: plastové zatloukací hmoždinky
E39: ejotherm STR U | F39: ETA-04/0023 | G39: dle PD | H39: -
E40: plastové šroubovací hmoždinky
E41: ejotherm STR U 2G | F41: ETA-04/0023 | G41: dle PD | H41: -
E42: plastové šroubovací hmoždinky
E43: EJOT H1 eco | F43: ETA-11/0192 | G43: dle PD | H43: -
E44: plastové zatloukací hmoždinky
E45: EJOT H4 eco | F45: ETA-11/0192 | G45: dle PD | H45: -
E46: plastové zatloukací hmoždinky
E47: EJOT H3 | F47: ETA-14/0130 | G47: dle PD | H47: -
E48: plastové zatloukací hmoždinky
E49: Bravoll PTH-KZ | F49: ETA-05/0055 | G49: dle PD | H49: -
E50: plastové zatloukací hmoždinky
E51: Bravoll PTH 60/8-La, | F51: ETA-05/0055 | G51: dle PD | H51: -
E52: plastové zatloukací hmoždinky
E53: Bravoll PTH-S 60/8-La | F53: ETA-08/0267 | G53: dle PD | H53: -
E54: plastové šroubovací hmoždinky
E55: Bravoll PTH-SX | F55: ETA-10/0028 | G55: dle PD | H55: -
E56: plastové šroubovací hmoždinky
E57: Bravoll PTH-X | F57: ETA-13/0951 | G57: dle PD | H57: -
E58: plastové zatloukací hmoždinky
E59: Bravoll PTH-EX | F59: ETA-13/0951 | G59: dle PD | H59: -
E60: plastové zatloukací hmoždinky
E61: fischer Termoz 8 SV | F61: ETA-06/0180 | G61: dle PD | H61: -
E62: plastové šroubovací hmoždinky
E63: fischer Termoz SV II ecotwist | F63: ETA-12/0208 | G63: dle PD | H63: -
E64: plastové šroubovací hmoždinky
E65: fischer Termofix CF 8 | F65: ETA-07/0287 | G65: dle PD | H65: -
E66: plastové zatloukací hmoždinky
E67: fischer Termoz CN 8 | F67: ETA-09/0394 | G67: dle PD | H67: -
E68: plastové zatloukací hmoždinky
E69: fischer Termoz 8 U | F69: ETA-02/0019 | G69: dle PD | H69: -
E70: plastové šroubovací hmoždinky
E71: fischer Termoz 8 UZ | F71: ETA-02/0019 | G71: dle PD | H71: -
E72: plastové šroubovací hmoždinky
E73: fischer Termoz PN 8 | F73: ETA-09/0171 | G73: dle PD | H73: -
E74: plastové zatloukací hmoždinky
E75: fischer Termoz CS 8 | F75: ETA-14/0372 | G75: dle PD | H75: -
E76: plastové šroubovací hmoždinky
E77: fischer Termoz CS 8-DT 110 V | F77: ETA-14/0372 | G77: dle PD | H77: -
E78: plastové šroubovací hmoždinky
E79: Hilti XI-FV | F79: ETA-03/0004 | G79: dle PD
E80: plastové nastřelovací hmoždinky
E81: Hilti SD-FV 8 | F81: ETA-03/0028 | G81: dle PD | H81: -
E82: plastové zatloukací hmoždinky
E83: Hilti SX-FV | F83: ETA-03/0005 | G83: dle PD | H83: -
E84: plastové zavrtávací hmoždinky
E85: Hilti - D-FV, D-FV T | F85: ETA-05/0039 | G85: dle PD | H85: -
E86: plastové šroubovací hmoždinky
E87: Hilti HTS-P | F87: ETA-10/0460 | G87: dle PD | H87: -
E88: zatloukací plastové hmoždinky
E89: KEW TSD 8 | F89: ETA-04/0030 | G89: dle PD | H89: -
E90: plastové zatloukací hmoždinky
E91: KEW TSBD 8 | F91: ETA-08/0314 | G91: dle PD | H91: -
E92: plastové šroubovací hmoždinky
E93: KEW TSD-V | F93: ETA-08/0315 | G93: dle PD | H93: -
E94: plastové zatloukací hmoždinky
E95: KEW TSDL-V | F95: ETA-12/0148 | G95: dle PD | H95: -
E96: plastové zatloukací hmoždinky
E97: KEW TSD-V KN | F97: ETA-13/0075 | G97: dle PD | H97: -
E98: plastové zatloukací hmoždinky
E99: FIXPLUG ø 8 ; FIXPLUG ø 10 | F99: ETA-11/0231 | G99: dle PD | H99: -
E100: plastové zatloukací hmoždinky
E101: WKTHERM ø 8 | F101: ETA-11/0232 | G101: dle PD | H101: -
E102: plastové zatloukací hmoždinky
E103: Wkret-met eco-drive; Wkret-met eco-drive S | F103: ETA-13/0107 | G103: dle PD | H103: -
E104: plastové šroubovací hmoždinky
E105: Wkret-met eco-drive W | F105: ETA-13/0107 | G105: dle PD | H105: -
E106: plastové šroubovací hmoždinky
E107: Wkret-met -MET-ŁFN ø8; Wkret-met -ŁFM ø8 | F107: ETA-06/0105 | G107: dle PD | H107: -
E108: plastové zatloukací hmoždinky
E109: Wkret-met -ŁFN ø10; Wkret-met -ŁFM ø10 | F109: ETA-06/0105 | G109: dle PD | H109: -
E110: plastové zatloukací hmoždinky
E111: WKTHERM S | F111: ETA-13/0724 | G111: dle PD | H111: -
E112: plastové šroubovací hmoždinky
E113: TOP KRAFT PSV | F113: ETA-16/0120 | G113: dle PD | H113: -
E114: plastové šroubovací hmoždinky
E115: TTH 10/60-La | F115: ETA-09/0318 | G115: dle PD | H115: -
E116: plastové zatloukací hmoždinky
E117: KOELNER TFIX-8 | G117: dle PD | H117: -
E118: plastové zatloukací hmoždinky
E119: KOELNER TFIX-8M | F119: ETA-07/0336 | G119: dle PD | H119: -
E120: plastové zatloukací hmoždinky
E121: Koelner TFIX-8S | F121: ETA-11/0144 | G121: dle PD | H121: -
E122: plastové šroubovací hmoždinky
E123: Koelner TFIX-8ST | F123: ETA-11/0144 | G123: dle PD | H123: -
E124: plastové šroubovací hmoždinky
E125: KOELNER KI-10, KI-10PA | F125: ETA-07/0291 | G125: dle PD | H125: -
E126: plastové zatloukací hmoždinky
E127: KOELNER KI-10N, KI-10NS | F127: ETA-07/0221 | G127: dle PD | H127: -
E128: plastové zatloukací hmoždinky
E129: KOELNER TFIX-8P | F129: ETA-13/0845 | G129: dle PD | H129: -
E130: plastové zatloukací hmoždinky
C131: Základní vrstva – ZV | D131: Malta základní vrstvy – armovací hmota | E131: MAMUT Flex T | G131: 3,6 - 5,0 (kg/m²) suché směsi | H131: 3 - 4
E132: Stav při dodání: prášek
E133: Postup přípravy: prášek vyžadující přípravek vody 0,25 l/kg
E134: Hlavní součásti výrobku: portlandský cement, plnivo o zrnitosti 0-0,7mm, speciální přísady
D135: Výztuž | E135: Skleněná síťovina pro ETICS
E136: VERTEX R 131 A101 (rozměry mřížky 3,5 x 3,8 mm)
C137: Povrchová úprava – PÚ | D137: Penetrační nátěr | E137: MAMUT Kontakt | G137: 0,20 l/m² | H137: -
E138: Stav při dodání: tekutina připravená k použití
E139: Postup přípravy: neředit, promíchat
E140: Hlavní součásti výrobku: umělopryskyřičná disperze, minerální přísady
E141: Použití: penetrační nátěr základní vrstvy určený pro konečné povrchové úpravy MAMUT
D142: Konečná povrchová úprava | E142: MAMUT Spektrum Z | G142: 2,5 – 3,8 (kg/m²) dle max.velikosti zrna | H142: Dle max. velikosti zrna
E143: akrylátová zatíraná omítka -max. zrno 1,5; 2,0; 3,0mm
E144: Stav při dodání: pasta připravená k použití
E145: Složení: směs kameniva, pigmentů, plniv a pojiva na bázi umělé pryskyřice
E146: MAMUT Spektrum R | G146: 2,4 – 3,7 (kg/m²) dle max.velikosti zrna | H146: Dle max. velikosti zrna
E147: akrylátová rýhovaná omítka -max. zrno 1,5; 2,0; 3,0mm
E148: Stav při dodání: pasta připravená k použití
E149: Složení: směs kameniva, pigmentů, plniv a pojiva na bázi umělé pryskyřice
E150: MAMUT Silikon Z | G150: 2,5 – 3,8 (kg/m²) dle max.velikosti zrna | H150: Dle max. velikosti zrna
E151: silikonová zatíraná omítka -max. zrno 1,5; 2,0; 3,0mm
E152: Stav při dodání: pasta připravená k použití
E153: Složení: směs kameniva, pigmentů, plniv a pojiva na bázi silikonové pryskyřice
E154: MAMUT Silikon R | G154: 2,4 – 3,7 (kg/m²) dle max.velikosti zrna | H154: Dle max. velikosti zrna
E155: silikonová rýhovaná omítka -max. zrno 1,5; 2,0; 3,0mm
E156: Stav při dodání: pasta připravená k použití
E157: Složení: směs kameniva, pigmentů, plniv a pojiva na bázi silikonové pryskyřice
D158: Příslušenství | E158: Odpovídá popisu dle § 3.2.2.5 ETAG 004 na zodpovědnosti držitele ETA.
C159: *) platí pro všechny kombinace uvedené v tab. č. 2 a č. 3 mimo kombinace uvedené v tab. č. 4 ETA 17/0385 (PoV)
C161: Zamýšlené použití:
C162: Tento ETICS MAMUT-THERM Pa se uplatňuje na venkovních stěnách budov. Tyto stěny jsou vytvořeny zděním (z cihel, bloků, kamene…) nebo z betonu (monolitického nebo z prefabrikovaných panelů) s třídou reakce na oheň A1 nebo A2-s2,d0 dle EN 13501-1 nebo A1 dle doplňujícího EC 96/603/EC. ETICS je navrhován tak, aby dodával stěnám odpovídající tepelnou izolaci. ETICS musí být navržen a proveden podle pokynů držitele schválení (ETA) pro jejich projektování a montáž. Systém se skládá ze součástí, které vyrábí držitel schválení (ETA) nebo jejich dodavatel. Držitel schválení (ETA) je finálně zodpovědný za systém. Všechny součásti systému musejí být specifikovány držitelem schválení (ETA). ETICS je vyroben jako nenosný stavební prvek. Nepůsobí přímo ke zvýšení stability zdi, na níž je aplikován, není určen pro zajištění vzduchotěsnosti stavební konstrukce, ale působí ke zvýšení odolnosti proti vlivům počasí. Musí zajišťovat minimální tepelný odpor přes 1,0 m².K/W. ETICS může být použit jak na nových, tak i na stávajících (rekonstruovaných) vertikálních zdech. Může být také použit na horizontálních nebo nakloněných površích, které nejsou vystaveny dešťovým srážkám. Účelem ETICS není zajišťování neprůvzdušnosti budovy. Způsob upevnění, návrh konkrétní skladby a vlastní provádění na stávající obvodovou stěnu závisí na vlastnostech podkladu a konkrétních okrajových podmínkách budovy. Musí být vzaty v úvahu požadavky kap. 4. a 7. (viz ETAG č. 004, vydání říjen 2011) a musí být proveden ve shodě s národními požadavky. Ustanovení tohoto Evropského technického schválení vycházejí z předpokladu životnosti 25 roků dotčeného ETICS, za předpokladu jeho řádného užívání a údržby. Uvedený údaj životnosti však nelze považovat za záruku výrobce nebo schvalovacího orgánu, neboť slouží jen jako prostředek k volbě vhodných produktů s ohledem na očekávanou ekonomicky přiměřenou životnost díla.
B163: Dle zákona 22/1997 Sb. v platném znění, zejména pak Nařízení vlády č. 163/2002 Sb.v platném znění, jsou tepelně izolační kompozitní systémy (ETICS) stanovenými výrobky. Z pohledu výše uvedeného zákona ve znění pozdějších předpisů vyplývá, že ETICS je brán jako výrobek a jako takový musí být nejprve odzkoušen v akreditovaných zkušebnách a certifikován. Odpovědnost podle příslušných předpisů pro stavební výrobky nese společnost MAMUT-THERM s.r.o. za ty specifikované ETICS, které sama, jako sestavy součástí, uvádí na trh. Každý ETICS je jednoznačně definovaným výrobkem, který má určenou skladbu komponentů, které na sebe vzájemně navazují. Záměnou komponentů, nedodržením skladby nebo nedodržením technologického postupu ETICS k odborné montáži, určených výrobcem, je hrubým zásahem do charakteristiky výrobku a vzniklý produkt již přestává být stanoveným a tedy certifikovaným výrobkem.

Sheet M-T Pa
C3: Všeobecná definice výrobku ETICS MAMUT-THERM Pa , zamýšlené použití
C5: ETA 17/0385
C6: Reakce na oheň Evropská třída dle EN 13501-1:2003: B – s1, d0 *)
C8: Vnější tepelně izolační kompozitní systém (ETICS) MAMUT-THERM Pa, zvaný ETICS v dalším textu, je navržen a prováděn v souladu s návrhovými a montážními pokyny držitele ETA, uloženými v Technickém a zkušebním ústavu stavebním Praha s.p. (TZÚS), pobočka České Budějovice. ETICS se skládá z následujících součástí, které jsou vyráběny držitelem ETA nebo jeho subdodavatelem, z těch se poté zabudovává do stavby.
C9: Tento systém je prodáván pod jedním obchodním názvem ve skladbách vyplývajících z všeobecné definice výrobku.
C11: Definice výrobku | E11: Součásti | G11: Spotřeba | H11: Tloušťka (mm)
C13: Částečně nebo plně lepený ETICS s doplňkovým mechanickým kotvením (minimální plocha lepení 30% povrchu desky EPS).
C14: Národní prováděcí předpisy musí být brány v úvahu.
C15: Izolační vrstva – IV a související způsob upevnění | D15: Lepicí hmota | E15: MAMUT Flex T | G15: 3,0 - 5,0 (kg/m²) suché směsi | H15: -
E16: Stav při dodání: prášek
E17: Postup přípravy: prášek vyžadující přípravek vody 0,25 l/kg
E18: Hlavní součásti výrobku: portlandský cement, plnivo o zrnitosti 0-0,7mm, speciální přísady
E19: MAMUT MULTI
E20: Stav při dodání: prášek
E21: Postup přípravy: prášek vyžadující přípravek vody 0,20 l/kg
E22: Hlavní součásti výrobku: portlandský cement, plnivo o zrnitosti 0-0,6mm, speciální přísady
D23: Izolační výrobek | E23: Desky z pěnového polystyrenu (EPS s reakcí na oheň E, pevností v tahu kolmo k rovině desky TR 100) a s dalšími sledovanými vlastnostmi uvedenými v příloze č. 1 ETA 17/0385. | G23: - | H23: 50 - 500*)
E24: – fasádní deska z EPS kvalitativní třídy A dle CZB
C25: Mechanicky kotvený ETICS s doplňkovým lepením (minimální plocha lepení 30% povrchu desky EPS).
C26: Národní prováděcí předpisy musí být brány v úvahu.
C27: Izolační vrstva – IV a související způsob upevnění | D27: Lepicí hmota | E27: MAMUT Flex T | G27: 3,0 - 5,0 (kg/m²) suché směsi | H27: -
E28: Stav při dodání: prášek
E29: Postup přípravy: prášek vyžadující přípravek vody 0,25 l/kg
E30: Hlavní součásti výrobku: portlandský cement, plnivo o zrnitosti 0-0,7mm, speciální přísady
E31: MAMUT MULTI
E32: Stav při dodání: prášek
E33: Postup přípravy: prášek vyžadující přípravek vody 0,20 l/kg
E34: Hlavní součásti výrobku: portlandský cement, plnivo o zrnitosti 0-0,6mm, speciální přísady
D35: Izolační výrobek | E35: Desky z pěnového polystyrenu (EPS s reakcí na oheň E, pevností v tahu kolmo k rovině desky TR 100) a s dalšími sledovanými vlastnostmi uvedenými v příloze č. 1 ETA 17/0385. | G35: - | H35: 50 - 500*)
E36: – fasádní deska z EPS kvalitativní třídy A dle CZB
D37: Kotvicí hmoždinky | E37: ejotherm STR U 2G | F37: ETA-04/0023 | G37: dle PD | H37: -
E38: plastové šroubovací hmoždinky
E39: EJOT H1 eco | F39: ETA-11/0192 | G39: dle PD | H39: -
E40: plastové zatloukací hmoždinky
E41: BRAVOLL PTH-KZ 60/8 | F41: ETA-05/0055 | G41: dle PD | H41: -
E42: plastové zatloukací hmoždinky
E43: BRAVOLL PTH-S | F43: ETA-08/0267 | G43: dle PD | H43: -
E44: plastové šroubovací hmoždinky
E45: BRAVOLL PTH-SX | F45: ETA-10/0028 | G45: dle PD | H45: -
E46: plastové šroubovací hmoždinky
E47: fischer TERMOFIX CF 8 | F47: ETA-07/0287 | G47: dle PD | H47: -
E48: plastové zatloukací hmoždinky
E49: fischer Termoz CN 8 | F49: ETA-09/0394 | G49: dle PD | H49: -
E50: plastové zatloukací hmoždinky
E51: fischer TERMOZ 8 U | F51: ETA-02/0019 | G51: dle PD | H51: -
E52: plastové šroubovací hmoždinky
E53: fischer termoz PN 8 | F53: ETA-09/0171 | G53: dle PD | H53: -
E54: plastové zatloukací hmoždinky
C55: Základní vrstva – ZV | D55: Malta základní vrstvy – armovací hmota | E55: MAMUT Flex T | G55: 3,6 - 5,0 (kg/m²) suché směsi | H55: 3 - 5
E56: Stav při dodání: prášek
E57: Postup přípravy: prášek vyžadující přípravek vody 0,25 l/kg
E58: Hlavní součásti výrobku: portlandský cement, plnivo o zrnitosti 0-0,7mm, speciální přísady
D59: Výztuž | E59: Skleněná síťovina pro ETICS
E60: VERTEX R 131 A101 (rozměry mřížky 3,5 x 3,8 mm)
E61: VERTEX R 117 A101 (rozměry mřížky 4,0 x 4,5 mm)
C62: Povrchová úprava – PÚ | D62: Penetrační nátěr | E62: MAMUT Kontakt | G62: 0,20 l/m² | H62: -
E63: Stav při dodání: tekutina připravená k použití
E64: Postup přípravy: neředit, promíchat
E65: Hlavní součásti výrobku: umělopryskyřičná disperze, minerální přísady
E66: Použití: penetrační nátěr základní vrstvy určený pro konečné povrchové úpravy MAMUT
D67: Konečná povrchová úprava | E67: MAMUT Spektrum Z | G67: 2,5 – 3,8 (kg/m²) dle max.velikosti zrna | H67: Dle max. velikosti zrna
E68: akrylátová zatíraná omítka -max. zrno 1,5; 2,0; 3,0mm
E69: Stav při dodání: pasta připravená k použití
E70: Složení: směs kameniva, pigmentů, plniv a pojiva na bázi umělé pryskyřice
E71: MAMUT Spektrum R | G71: 2,4 – 3,7 (kg/m²) dle max.velikosti zrna | H71: Dle max. velikosti zrna
E72: akrylátová rýhovaná omítka -max. zrno 1,5; 2,0; 3,0mm
E73: Stav při dodání: pasta připravená k použití
E74: Složení: směs kameniva, pigmentů, plniv a pojiva na bázi umělé pryskyřice
E75: MAMUT Silikon Z | G75: 2,5 – 3,8 (kg/m²) dle max.velikosti zrna | H75: Dle max. velikosti zrna
E76: silikonová zatíraná omítka -max. zrno 1,5; 2,0; 3,0mm
E77: Stav při dodání: pasta připravená k použití
E78: Složení: směs kameniva, pigmentů, plniv a pojiva na bázi silikonové pryskyřice
E79: MAMUT Silikon R | G79: 2,4 – 3,7 (kg/m²) dle max.velikosti zrna | H79: Dle max. velikosti zrna
E80: silikonová rýhovaná omítka -max. zrno 1,5; 2,0; 3,0mm
E81: Stav při dodání: pasta připravená k použití
E82: Složení: směs kameniva, pigmentů, plniv a pojiva na bázi silikonové pryskyřice
D83: Příslušenství | E83: Zůstává na zodpovědnosti držitele ETA.
C84: *) platí pro všechny kombinace uvedené v tab. č. 2 a č. 3 mimo kombinace uvedené v tab. č. 4 ETA 17/0385 a MAMUT mozaika
C86: Zamýšlené použití:
C87: Tento ETICS MAMUT-THERM Pa se uplatňuje na venkovních stěnách budov. Tyto stěny jsou vytvořeny zděním (z cihel, bloků, kamene…) nebo z betonu (monolitického nebo z prefabrikovaných panelů) s třídou reakce na oheň A1 nebo A2-s2,d0 dle EN 13501-1 nebo A1 dle doplňujícího EC 96/603/EC. ETICS je navrhován tak, aby dodával stěnám odpovídající tepelnou izolaci. ETICS musí být navržen a proveden podle pokynů držitele schválení (ETA) pro jejich projektování a montáž. Systém se skládá ze součástí, které vyrábí držitel schválení (ETA) nebo jejich dodavatel. Držitel schválení (ETA) je finálně zodpovědný za systém. Všechny součásti systému musejí být specifikovány držitelem schválení (ETA). ETICS je vyroben jako nenosný stavební prvek. Nepůsobí přímo ke zvýšení stability zdi, na níž je aplikován, není určen pro zajištění vzduchotěsnosti stavební konstrukce, ale působí proti vlivům počasí. ETICS může být použit jak na nových, tak i na stávajících (rekonstruovaných) vertikálních zdech. Může být také použit na horizontálních nebo nakloněných površích, které nejsou vystaveny dešťovým srážkám. Účelem ETICS není zajišťování neprodyšnosti budovy. Způsob upevnění, návrh konkrétní skladby a vlastní provádění na stávající obvodovou stěnu závisí na vlastnostech podkladu a konkrétních okrajových podmínkách budovy. Ustanovení tohoto Evropského technického schválení vycházejí z předpokladu životnosti 25 roků dotčeného ETICS, za předpokladu jeho řádného užívání a údržby. Uvedený údaj životnosti však nelze považovat za záruku výrobce nebo schvalovacího orgánu, neboť slouží jen jako prostředek k volbě vhodných produktů s ohledem na očekávanou ekonomicky přiměřenou životnost díla.
B88: Dle zákona 22/1997 Sb. v platném znění, zejména pak Nařízení vlády č. 163/2002 Sb.v platném znění, jsou tepelně izolační kompozitní systémy (ETICS) stanovenými výrobky. Z pohledu výše uvedeného zákona ve znění pozdějších předpisů vyplývá, že ETICS je brán jako výrobek a jako takový musí být nejprve odzkoušen v akreditovaných zkušebnách a certifikován. Odpovědnost podle příslušných předpisů pro stavební výrobky nese společnost MAMUT-THERM s.r.o. za ty specifikované ETICS, které sama, jako sestavy součástí, uvádí na trh. Každý ETICS je jednoznačně definovaným výrobkem, který má určenou skladbu komponentů, které na sebe vzájemně navazují. Záměnou komponentů, nedodržením skladby nebo nedodržením technologického postupu ETICS k odborné montáži, určených výrobcem, je hrubým zásahem do charakteristiky výrobku a vzniklý produkt již přestává být stanoveným a tedy certifikovaným výrobkem.

Sheet M-T Pb
C3: Všeobecná definice výrobku ETICS MAMUT-THERM Pb a zamýšlené použití
C5: ETA 17/0385
C6: Reakce na oheň Evropská třída dle EN 13501-1:2003: B – s1, d0 *)
C8: Vnější tepelně izolační kompozitní systém (ETICS) MAMUT-THERM Pb, zvaný ETICS v dalším textu, je navržen a prováděn v souladu s návrhovými a montážními pokyny držitele ETA, uloženými v Technickém a zkušebním ústavu stavebním Praha s.p. (TZÚS), pobočka České Budějovice. ETICS se skládá z následujících součástí, které jsou vyráběny držitelem ETA nebo jeho subdodavatelem, z těch se poté zabudovává do stavby.
C9: Tento systém je prodáván pod jedním obchodním názvem ve skladbách vyplývajících z všeobecné definice výrobku.
C11: Definice výrobku | E11: Součásti | G11: Spotřeba (kg/m2) | H11: Tloušťka (mm)
C13: Lepený ETICS (částečně nebo plně lepený) s nebo bez doplňkového kotvení.
C14: Je nutno brát v úvahu národní prováděcí dokumenty.
C15: Izolační vrstva – IV a související způsob upevnění | D15: Lepicí hmota | E15: MAMUT Flex T | G15: 3,0 - 5,0 (kg/m²) suché směsi | H15: -
E16: Stav při dodání: prášek
E17: Postup přípravy: prášek vyžadující přípravek vody 0,25 l/kg
E18: Hlavní součásti výrobku: portlandský cement, plnivo o zrnitosti 0-0,7mm, speciální přísady
D19: Lepicí hmota | E19: MAMUT Multi | G19: 3,0 - 5,0 (kg/m²) suché směsi | H19: -
E20: Stav při dodání: prášek
E21: Postup přípravy: prášek vyžadující přídavek vody 0,20 l/kg
E22: Hlavní součásti výrobku: portlandský cement, plnivo o zrnitosti 0-0,6 mm, speciální přísady
D23: Izolační výrobek | E23: Desky z pěnového polystyrenu (EPS s reakcí na oheň E, pevností v tahu kolmo k rovině desky TR 100) a s dalšími sledovanými vlastnostmi uvedenými v příloze č. 1 ETA 17/0385. | G23: - | H23: 50 - 500*)
C24: ETICS mechanicky připevňovaný hmoždinkami s doplňkovým lepením (minimální plocha lepení 30% povrchu desky EPS).
C25: Je nutno brát v úvahu národní prováděcí dokumenty.
C26: Izolační vrstva – IV a související způsob upevnění | D26: Lepicí hmota | E26: MAMUT Flex T | G26: 3,0 - 5,0 (kg/m²) suché směsi | H26: -
E27: Stav při dodání: prášek
E28: Postup přípravy: prášek vyžadující přípravek vody 0,25 l/kg
E29: Hlavní součásti výrobku: portlandský cement, plnivo o zrnitosti 0-0,7mm, speciální přísady
D30: Lepicí hmota | E30: MAMUT Multi | G30: 3,0 - 5,0 (kg/m²) suché směsi | H30: -
E31: Stav při dodání: prášek
E32: Postup přípravy: prášek vyžadující přídavek vody 0,20 l/kg
E33: Hlavní součásti výrobku: portlandský cement, plnivo o zrnitosti 0-0,6 mm, speciální přísady
D34: Izolační výrobek | E34: Desky z pěnového polystyrenu (EPS s reakcí na oheň E, pevností v tahu kolmo k rovině desky TR 100) a s dalšími sledovanými vlastnostmi uvedenými v příloze č. 1 ETA 17/0385. | H34: 50 - 500*)
D35: kotvicí hmoždinky | E35: ejotherm STR U 2G | F35: ETA-04/0023 | G35: dle PD | H35: -
E36: plastové šroubovací hmoždinky
E37: EJOT H1 eco | F37: ETA-11/0192 | G37: dle PD | H37: -
E38: plastové zatloukací hmoždinky
E39: EJOT H4 eco | F39: ETA-11/0192 | G39: dle PD | H39: -
E40: plastové zatloukací hmoždinky
E41: EJOT H3 | F41: ETA-14/0130 | G41: dle PD | H41: -
E42: plastové zatloukací hmoždinky
E43: BRAVOLL PTH-KZ 60/8 | F43: ETA-05/0055 | G43: dle PD | H43: -
E44: plastové zatloukací hmoždinky
E45: BRAVOLL PTH-S | F45: ETA-08/0267 | G45: dle PD | H45: -
E46: plastové šroubovací hmoždinky
E47: BRAVOLL PTH-SX | F47: ETA-10/0028 | G47: dle PD | H47: -
E48: plastové šroubovací hmoždinky
E49: BRAVOLL PTH-X | F49: ETA-13/0951 | G49: dle PD | H49: -
E50: plastové zatloukací hmoždinky
E51: BRAVOLL PTH-EX | F51: ETA-13/0951 | G51: dle PD | H51: -
E52: plastové zatloukací hmoždinky
E53: termoz SV II ecotwist | F53: ETA-12/0208 | G53: dle PD | H53: -
E54: plastové šroubovací hmoždinky
E55: fischer TERMOFIX CF 8 | F55: ETA-07/0287 | G55: dle PD | H55: -
E56: plastové zatloukací hmoždinky
E57: fischer Termoz CN 8 | F57: ETA-09/0394 | G57: dle PD | H57: -
E58: plastové zatloukací hmoždinky
E59: fischer TERMOZ 8 U | F59: ETA-02/0019 | G59: dle PD | H59: -
E60: plastové šroubovací hmoždinky
E61: fischer termoz PN 8 | F61: ETA-09/0171 | G61: dle PD | H61: -
E62: plastové zatloukací hmoždinky
E63: fischer Termoz CS 8 | F63: ETA-14/0372 | G63: dle PD | H63: -
E64: plastové šroubovací hmoždinky
E65: fischer Termoz CS 8 DT 110 V | F65: ETA-14/0372 | G65: dle PD | H65: -
E66: plastové šroubovací hmoždinky
E67: FIXPLUG ø 8 ; FIXPLUG ø 10 | F67: ETA-11/0231 | G67: dle PD | H67: -
E68: plastové zatloukací hmoždinky
E69: WKTHERM ø 8 | F69: ETA-11/0232 | G69: dle PD | H69: -
E70: plastové zatloukací hmoždinky
E71: eco-drive; eco-drive S | F71: ETA-13/0107 | G71: dle PD | H71: -
E72: plastové šroubovací hmoždinky
E73: WKRET-MET-LFN ø 8; WKRET-MET-LFM ø 8 | F73: ETA-06/0105 | G73: dle PD | H73: -
E74: plastové zatloukací hmoždinky
E75: WKRET-MET-LFN ø 10; WKRET-MET-LFM ø 10 | F75: ETA-06/0105 | G75: dle PD | H75: -
E76: plastové zatloukací hmoždinky
E77: WKTHERM S | F77: ETA-13/0724 | G77: dle PD | H77: -
E78: plastové šroubovací hmoždinky
E79: Talířová hmoždinka TTH 10/60-La | F79: ETA-09/0318 | G79: dle PD | H79: -
E80: plastové zatloukací hmoždinky
C81: Základní vrstva – ZV | D81: Malta základní vrstvy – armovací hmota | E81: MAMUT Flex T | G81: 3,6 - 5,0 (kg/m²) suché směsi | H81: 3 - 5
E82: Stav při dodání: prášek
E83: Postup přípravy: prášek vyžadující přípravek vody 0,25 l/kg
E84: Hlavní součásti výrobku: portlandský cement, plnivo o zrnitosti 0-0,7mm, speciální přísady
D85: Výztuž | E85: Skleněná síťovina pro ETICS
E86: VERTEX R 131 A101 (rozměry mřížky 3,5 x 3,8 mm) | G86: - | H86: -
E87: VERTEX R 117 A101 (rozměry mřížky 4,0 x 4,5 mm)
E88: Valmiera SSA-1363-SM (rozměry mřížky 5,0 x 4,0 mm)
C89: Povrchová úprava – PÚ | D89: Penetrační nátěr | E89: MAMUT Kontakt | G89: 0,20 l/m² | H89: -
E90: Stav při dodání: tekutina připravená k použití
E91: Postup přípravy: neředit, promíchat
E92: Hlavní součásti výrobku: umělopryskyřičná disperze, minerální přísady
E93: Použití: penetrační nátěr základní vrstvy určený pro konečné povrchové úpravy MAMUT
E94: MAMUT Kontakt mozaika | G94: 0,20 l/m² | H94: -
E95: Stav při dodání: tekutina připravená k použití
E96: Postup přípravy: neředit, promíchat
E97: Hlavní součásti výrobku: umělopryskyřičná disperze, minerální přísady
E98: Použití: penetrační nátěr základní vrstvy určený pro konečné povrchové úpravy MAMUT mozaika
E99: Minerální omítky (použity vždy s ochranným nátěrem MAMUT Color EG)
C101: Povrchová úprava – PÚ | D101: Konečná povrchová úprava | E101: MAMUT ip 44 | G101: 2,5 – 3,7 (kg/m²) dle max.velikosti zrna | H101: Dle max. velikosti zrna
E102: minerální omítka zatíraná - max.zrno 1,5; 2,0; 3,0mm)
E103: Stav při dodání: prášek
E104: Postup přípravy: prášek vyžadující přípravek vody 0,23-0,3l/kg
E105: Hlavní součásti výrobku: bílý vápenný hydrát, bílý cement, kamenivo, anorganické stálobarevné pigmenty, speciální přísady
E106: MAMUT ip 42 | G106: 2,7 – 3,9 (kg/m²) dle max.velikosti zrna | H106: Dle max. velikosti zrna
E107: minerální omítka rýhovaná - max.zrno 2,0; 3,0mm)
E108: Stav při dodání: prášek
E109: Postup přípravy: prášek vyžadující přípravek vody 0,23-0,3l/kg
E110: Hlavní součásti výrobku:bílý vápenný hydrát, bílý cement, kamenivo, anorganické stálobarevné pigmenty, speciální přísady
E111: Pastovité omítky
E112: MAMUT Spektrum Z | G112: 2,5 – 3,8 (kg/m²) dle max.velikosti zrna | H112: Dle max. velikosti zrna
E113: akrylátová zatíraná omítka -max. zrno 1,5; 2,0; 3,0mm
E114: Stav při dodání: pasta připravená k použití
E115: Složení: směs kameniva, pigmentů, plniv a pojiva na bázi umělé pryskyřice
E116: MAMUT Spektrum R | G116: 2,4 – 3,7 (kg/m²) dle max.velikosti zrna | H116: Dle max. velikosti zrna
E117: akrylátová rýhovaná omítka -max. zrno 1,5; 2,0; 3,0mm
E118: Stav při dodání: pasta připravená k použití
E119: Složení: směs kameniva, pigmentů, plniv a pojiva na bázi umělé pryskyřice
E120: MAMUT Silikát Z | G120: 2,5 – 3,8 (kg/m²) dle max.velikosti zrna | H120: Dle max. velikosti zrna
E121: silikátová zatíraná omítka -max. zrno 1,5; 2,0; 3,0mm
E122: Stav při dodání: pasta připravená k použití
E123: Složení: směs kameniva, pigmentů, plniv a pojiva na bázi vodního skla
E124: MAMUT Silikát R | G124: 2,4 – 3,7 (kg/m²) dle max.velikosti zrna | H124: Dle max. velikosti zrna
E125: silikátová rýhovaná omítka -max. zrno 1,5; 2,0; 3,0mm
E126: Stav při dodání: pasta připravená k použití
E127: Složení: směs kameniva, pigmentů, plniv a pojiva na bázi vodního skla
E128: MAMUT Silikon Z | G128: 2,5 – 3,8 (kg/m²) dle max.velikosti zrna | H128: Dle max. velikosti zrna
E129: silikonová zatíraná omítka -max. zrno 1,5; 2,0; 3,0mm
E130: Stav při dodání: pasta připravená k použití
E131: Složení: směs kameniva, pigmentů, plniv a pojiva na bázi silikonové pryskyřice
E132: MAMUT Silikon R | G132: 2,4 – 3,7 (kg/m²) dle max.velikosti zrna | H132: Dle max. velikosti zrna
E133: silikonová rýhovaná omítka -max. zrno 1,5; 2,0; 3,0mm
E134: Stav při dodání: pasta připravená k použití
E135: Složení: směs kameniva, pigmentů, plniv a pojiva na bázi silikonové pryskyřice
E136: MAMUT Mozaika | G136: 4,5 (kg/m²)
E137: akrylátová omítka -max. zrno 2,0
E138: Stav při dodání: pasta připravená k použití
E139: Složení: směs kameniva, pigmentů a pojiva na bázi umělé pryskyřice
C140: Povrchová úprava – PÚ | D140: Ochranný nátěr (pro minerální povrchové úpravy vždy, pro ostatní povrchové úpravy se nepoužívá) | E140: MAMUT Color EG | G140: 0,2 -0,3 l/m² | H140: -
E141: Egalizační nátěr
E142: Stav při dodání: tekutina připravená k použití
E143: Postup přípravy: neředit
E144: Hlavní součásti výrobku: bezrozpouštědlový vodní nátěr na bázi umělopryskyřičné disperze a minerálních přísad
E145: Použití: nátěr minerálních omítek MAMUT ip44 a MAMUT ip42 zajišťující sjednocení barevnosti
D146: Příslušenství | E146: Zůstává na zodpovědnosti držitele ETA.
C147: *) platí pro všechny kombinace uvedené v tab. č. 2 a č. 3 mimo kombinace uvedené v tab. č. 4 ETA 17/0385 a MAMUT mozaika | K147: ²
C149: Zamýšlené použití:
C150: Tento ETICS MAMUT-THERM Pb se uplatňuje na venkovních stěnách budov. Tyto stěny jsou vytvořeny zděním (z cihel, bloků, kamene…) nebo z betonu (monolitického nebo z prefabrikovaných panelů) s třídou reakce na oheň A1 nebo A2-s2,d0 dle EN 13501-1 nebo A1 dle doplňujícího EC 96/603/EC. ETICS je navrhován tak, aby dodával stěnám odpovídající tepelnou izolaci. ETICS musí být navržen a proveden podle pokynů držitele schválení (ETA) pro jejich projektování a montáž. Systém se skládá ze součástí, které vyrábí držitel schválení (ETA) nebo jejich dodavatel. Držitel schválení (ETA) je finálně zodpovědný za systém. Všechny součásti systému musejí být specifikovány držitelem schválení (ETA). ETICS je vyroben jako nenosný stavební prvek. Nepůsobí přímo ke zvýšení stability zdi, na níž je aplikován, není určen pro zajištění vzduchotěsnosti stavební konstrukce, ale působí proti vlivům počasí. ETICS může být použit jak na nových, tak i na stávajících (rekonstruovaných) vertikálních zdech. Může být také použit na horizontálních nebo nakloněných površích, které nejsou vystaveny dešťovým srážkám. Účelem ETICS není zajišťování neprodyšnosti budovy. Způsob upevnění, návrh konkrétní skladby a vlastní provádění na stávající obvodovou stěnu závisí na vlastnostech podkladu a konkrétních okrajových podmínkách budovy. Ustanovení tohoto Evropského technického schválení vycházejí z předpokladu životnosti 25 roků dotčeného ETICS, za předpokladu jeho řádného užívání a údržby. Uvedený údaj životnosti však nelze považovat za záruku výrobce nebo schvalovacího orgánu, neboť slouží jen jako prostředek k volbě vhodných produktů s ohledem na očekávanou ekonomicky přiměřenou životnost díla.
B151: Dle zákona 22/1997 Sb. v platném znění, zejména pak Nařízení vlády č. 163/2002 Sb.v platném znění, jsou tepelně izolační kompozitní systémy (ETICS) stanovenými výrobky. Z pohledu výše uvedeného zákona ve znění pozdějších předpisů vyplývá, že ETICS je brán jako výrobek a jako takový musí být nejprve odzkoušen v akreditovaných zkušebnách a certifikován. Odpovědnost podle příslušných předpisů pro stavební výrobky nese společnost MAMUT-THERM s.r.o. za ty specifikované ETICS, které sama, jako sestavy součástí, uvádí na trh. Každý ETICS je jednoznačně definovaným výrobkem, který má určenou skladbu komponentů, které na sebe vzájemně navazují. Záměnou komponentů, nedodržením skladby nebo nedodržením technologického postupu ETICS k odborné montáži, určených výrobcem, je hrubým zásahem do charakteristiky výrobku a vzniklý produkt již přestává být stanoveným a tedy certifikovaným výrobkem.

Sheet MAMUT-THERM Pb2011 (hidden)
C7: Všeobecná definice výrobku ETICS MAMUT-THERM Pb, zamýšlené použití
C9: ETA 07/0153
C10: Reakce na oheň Evropská třída dle EN 13501-1: B – s1, d0
C12: Vnější tepelně izolační kompozitní systém (ETICS) MAMUT-THERM Pb, zvaný ETICS v dalším textu, je navržen a prováděn v souladu s návrhovými a montážními pokyny držitele ETA, uloženými v Technickém a zkušebním ústavu stavebním Praha s.p. (TZÚS), pobočka České Budějovice. ETICS se skládá z následujících součástí, které jsou vyráběny držitelem ETA nebo jeho subdodavatelem, z těch se poté zabudovává do stavby.
C13: Tento systém je prodáván pod jedním obchodním názvem ve skladbách vyplývajících z všeobecné definice výrobku.
C15: Definice výrobku | E15: Součásti | G15: Spotřeba (kg/m2) | H15: Tloušťka (mm)
C17: Částečně nebo plně lepený ETICS s doplňkovým mechanickým kotvením (minimální plocha lepení 40% povrchu desky EPS).
C18: Národní prováděcí předpisy musí být brány v úvahu.
C19: Izolační vrstva – IV a související způsob upevnění | D19: Lepicí hmota | E19: MAMUT Flex T | G19: 3,0 - 5,0 (kg/m²) suché směsi | H19: -
E20: Stav při dodání: prášek
E21: Postup přípravy: prášek vyžadující přípravek vody 0,25 l/kg
E22: Hlavní součásti výrobku: portlandský cement, plnivo o zrnitosti 0-0,7mm, speciální přísady
D23: Lepicí hmota | E23: MAMUT Multi | G23: 3,0 - 5,0 (kg/m²) suché směsi | H23: -
E24: Stav při dodání: prášek
E25: Postup přípravy: prášek vyžadující přídavek vody 0,20 l/kg
E26: Hlavní součásti výrobku: portlandský cement, plnivo o zrnitosti 0-0,6 mm, speciální přísady
D27: Izolační výrobek | E27: Desky z pěnového polystyrenu (EPS s reakcí na oheň E, pevností v tahu kolmo k rovině desky TR 100) a s dalšími sledovanými vlastnostmi uvedenými v tabulce č. 13 ETA 07/0153. | G27: - | H27: 50 - 180
C28: Mechanicky kotvený ETICS s doplňkovým lepením (minimální plocha lepení 30% povrchu desky EPS).
C29: Národní prováděcí předpisy musí být brány v úvahu.
C30: Izolační vrstva – IV a související způsob upevnění | D30: Lepicí hmota | E30: MAMUT Flex T | G30: 3,0 - 5,0 (kg/m²) suché směsi | H30: -
E31: Stav při dodání: prášek
E32: Postup přípravy: prášek vyžadující přípravek vody 0,25 l/kg
E33: Hlavní součásti výrobku: portlandský cement, plnivo o zrnitosti 0-0,7mm, speciální přísady
D34: Lepicí hmota | E34: MAMUT Multi | G34: 3,0 - 5,0 (kg/m²) suché směsi | H34: -
E35: Stav při dodání: prášek
E36: Postup přípravy: prášek vyžadující přídavek vody 0,20 l/kg
E37: Hlavní součásti výrobku: portlandský cement, plnivo o zrnitosti 0-0,6 mm, speciální přísady
D38: Izolační výrobek | E38: Desky z pěnového polystyrenu (EPS s reakcí na oheň E, pevností v tahu kolmo k rovině desky TR 100) a s dalšími sledovanými vlastnostmi uvedenými v tabulce č. 13 ETA 07/0153. | G38: - | H38: 50 - 180
D39: Mechanicky kotvící prvky | E39: ejotherm NT U | F39: ETA-05/0009 | G39: dle PD | H39: -
E40: plastové zatloukací hmoždinky
E41: ejotherm NTK U | F41: ETA-07/0026 | G41: dle PD | H41: -
E42: plastové zatloukací hmoždinky
E43: ejotherm ST U | F43: ETA-02/0018 | G43: dle PD | H43: -
E44: plastové šroubovací hmoždinky
E45: ejotherm STR U | F45: ETA-04/0023 | G45: dle PD | H45: -
E46: plastové šroubovací hmoždinky
E47: EJOT SDM – T plus | F47: ETA-04/0064 | G47: dle PD | H47: -
E48: plastové šroubovací hmoždinky
E49: Bravoll PTH-KZ 60/8-La, | F49: ETA-05/0055 | G49: dle PD | H49: -
E50: plastové zatloukací hmoždinky
E51: Bravoll PTH-KZL 60/8-La, | F51: ETA-05/0055 | G51: dle PD | H51: -
E52: plastové zatloukací hmoždinky
E53: Bravoll PTH 60/8-La, | F53: ETA-05/0055 | G53: dle PD | H53: -
E54: plastové zatloukací hmoždinky
E55: Bravoll PTH-L 60/8-La | F55: ETA-05/0055 | G55: dle PD | H55: -
E56: plastové zatloukací hmoždinky
E57: Bravoll PTH-S 60/8-La, Bravoll PTH-SL 60/8-La | F57: ETA-08/0267 | G57: dle PD | H57: -
E58: plastové šroubovací hmoždinky
E59: Bravoll PTH-SX | F59: ETA-10/0028 | G59: dle PD | H59: -
E60: plastové šroubovací hmoždinky
E61: fischer Termoz 8 SV | F61: ETA-06/0180 | G61: dle PD | H61: -
E62: plastové šroubovací hmoždinky
E63: fischer Termoz KS 8 | F63: ETA-04/0114 | G63: dle PD | H63: -
E64: plastové šroubovací hmoždinky
E65: fischer Termoz 8N | F65: ETA-03/0019 | G65: dle PD | H65: -
E66: plastové zatloukací hmoždinky
E67: fischer Termoz 8NZ | F67: ETA-03/0019 | G67: dle PD | H67: -
E68: plastové zatloukací hmoždinky
E69: fischer Termofix CF 8 | F69: ETA-07/0287 | G69: dle PD | H69: -
E70: plastové zatloukací hmoždinky
E71: fischer Termoz CN8 | F71: ETA-09/0394 | G71: dle PD | H71: -
E72: plastové zatloukací hmoždinky
E73: fischer Termoz 8 U | F73: ETA-02/0019 | G73: dle PD | H73: -
E74: plastové šroubovací hmoždinky
E75: fischer Termoz 8 UZ | F75: ETA-02/0019 | G75: dle PD | H75: -
E76: plastové šroubovací hmoždinky
E77: fischer Termoz PN 8 | F77: ETA-09/0171 | G77: dle PD | H77: -
E78: plastové zatloukací hmoždinky
E79: fischer Termoz LO 8 | F79: ETA-10/0460 | G79: dle PD | H79: -
E80: plastové zatloukací hmoždinky
E81: Hilti WDVS-Schraubdübel D 8-FV | F81: ETA-07/0288 | G81: dle PD | H81: -
E82: plastové šroubovací hmoždinky
E83: Hilti-Dämmstoff-Befestigungselement XI-FV, | F83: ETA-03/0004 | G83: dle PD | H83: -
E84: plastové nastřelovací hmoždinky
E85: Hilti WDVS-Schlagdübel SDK-FV 8 | F85: ETA-07/0302 | G85: dle PD | H85: -
E86: plastové zatloukací hmoždinky
E87: Hilti SX-FV | F87: ETA-03/0005 | G87: dle PD | H87: -
E88: plastové šroubovací hmoždinky - jednokrok
E89: Hilti SD-FV 8 | F89: ETA-03/0028 | G89: dle PD | H89: -
E90: plastové zatloukací hmoždinky
E91: Thermoschlagdübel KEW TSD 8 | F91: ETA-04/0030 | G91: dle PD | H91: -
E92: plastové zatloukací hmoždinky
E93: Thermoschraubdübel KEW TSBD 8 | F93: ETA-08/0314 | G93: dle PD | H93: -
E94: plastové šroubovací hmoždinky
E95: KEW TSD-V8 | F95: ETA-08/0315 | G95: dle PD | H95: -
E96: plastové zatloukací hmoždinky
E97: Talířová hmoždinka TTH 10/60-La | F97: ETA-09/0318 | G97: dle PD | H97: -
E98: plastové zatloukací hmoždinky
E99: Dämmstoffdübel KOELNER TFIX-8M | F99: ETA-07/0336 | G99: dle PD | H99: -
E100: plastové zatloukací hmoždinky
E101: KOELNER KI-10, KI-10M | F101: ETA-07/0291 | G101: dle PD | H101: -
E102: plastové zatloukací hmoždinky
C103: Základní vrstva – ZV | D103: Malta základní vrstvy – armovací hmota | E103: MAMUT Flex T | G103: 4,0 (kg/m²) suché směsi | H103: 3
E104: Stav při dodání: prášek
E105: Postup přípravy: prášek vyžadující přípravek vody 0,25 l/kg
E106: Hlavní součásti výrobku: portlandský cement, plnivo o zrnitosti 0-0,7mm, speciální přísady
D107: Výztuž | E107: Skleněná síťovina pro ETICS
E108: VERTEX R 131 A101 (rozměry mřížky 3,5 x 3,5 mm)
C110: Povrchová úprava – PÚ | D110: Penetrační nátěr | E110: MAMUT Kontakt | G110: 0,20 l/m² | H110: -
E111: Stav při dodání: tekutina připravená k použití
E112: Postup přípravy: neředit, promíchat
E113: Hlavní součásti výrobku: umělopryskyřičná disperze, minerální přísady
E114: Použití: penetrační nátěr základní vrstvy určený pro konečné povrchové úpravy MAMUT
E115: MAMUT Kontakt mozaika | G115: 0,20 l/m² | H115: -
E116: Stav při dodání: tekutina připravená k použití
E117: Postup přípravy: neředit, promíchat
E118: Hlavní součásti výrobku: umělopryskyřičná disperze, minerální přísady
E119: Použití: penetrační nátěr základní vrstvy určený pro konečné povrchové úpravy MAMUT mozaika
E120: Minerální omítky (použity vždy s ochranným nátěrem MAMUT Color EG)
C122: Povrchová úprava – PÚ | D122: Konečná povrchová úprava | E122: MAMUT ip 44 | G122: 2,5 – 3,7 (kg/m²) dle max.velikosti zrna | H122: Dle max. velikosti zrna
E123: minerální omítka zatíraná - max.zrno 1,5; 2,0; 3,0mm)
E124: Stav při dodání: prášek
E125: Postup přípravy: prášek vyžadující přípravek vody 0,23-0,3l/kg
E126: Hlavní součásti výrobku: bílý vápenný hydrát, bílý cement, kamenivo, anorganické stálobarevné pigmenty, speciální přísady
E127: MAMUT ip 42 | G127: 2,7 – 3,9 (kg/m²) dle max.velikosti zrna | H127: Dle max. velikosti zrna
E128: minerální omítka rýhovaná - max.zrno 2,0; 3,0mm)
E129: Stav při dodání: prášek
E130: Postup přípravy: prášek vyžadující přípravek vody 0,23-0,3l/kg
E131: Hlavní součásti výrobku:bílý vápenný hydrát, bílý cement, kamenivo, anorganické stálobarevné pigmenty, speciální přísady
E132: MAMUT Spektrum Z | G132: 2,5 – 3,8 (kg/m²) dle max.velikosti zrna | H132: Dle max. velikosti zrna
E133: akrylátová zatíraná omítka -max. zrno 1,5; 2,0; 3,0mm
E134: Stav při dodání: pasta připravená k použití
E135: Složení: směs kameniva, pigmentů, plniv a pojiva na bázi umělé pryskyřice
E136: MAMUT Spektrum R | G136: 2,4 – 3,7 (kg/m²) dle max.velikosti zrna | H136: Dle max. velikosti zrna
E137: akrylátová rýhovaná omítka -max. zrno 1,5; 2,0; 3,0mm
E138: Stav při dodání: pasta připravená k použití
E139: Složení: směs kameniva, pigmentů, plniv a pojiva na bázi umělé pryskyřice
E140: MAMUT Silikát Z | G140: 2,5 – 3,8 (kg/m²) dle max.velikosti zrna | H140: Dle max. velikosti zrna
E141: silikátová zatíraná omítka -max. zrno 1,5; 2,0; 3,0mm
E142: Stav při dodání: pasta připravená k použití
E143: Složení: směs kameniva, pigmentů, plniv a pojiva na bázi vodního skla
E144: MAMUT Silikát R | G144: 2,4 – 3,7 (kg/m²) dle max.velikosti zrna | H144: Dle max. velikosti zrna
E145: silikátová rýhovaná omítka -max. zrno 1,5; 2,0; 3,0mm
E146: Stav při dodání: pasta připravená k použití
E147: Složení: směs kameniva, pigmentů, plniv a pojiva na bázi vodního skla
E148: MAMUT Silikon Z | G148: 2,5 – 3,8 (kg/m²) dle max.velikosti zrna | H148: Dle max. velikosti zrna
E149: silikonová zatíraná omítka -max. zrno 1,5; 2,0; 3,0mm
E150: Stav při dodání: pasta připravená k použití
E151: Složení: směs kameniva, pigmentů, plniv a pojiva na bázi silikonové pryskyřice
E152: MAMUT Silikon R | G152: 2,4 – 3,7 (kg/m²) dle max.velikosti zrna | H152: Dle max. velikosti zrna
E153: silikonová rýhovaná omítka -max. zrno 1,5; 2,0; 3,0mm
E154: Stav při dodání: pasta připravená k použití
E155: Složení: směs kameniva, pigmentů, plniv a pojiva na bázi silikonové pryskyřice
E156: MAMUT Mozaika | G156: 4,5 (kg/m²)
E157: akrylátová omítka -max. zrno 2,0
E158: Stav při dodání: pasta připravená k použití
E159: Složení: směs kameniva, pigmentů a pojiva na bázi umělé pryskyřice
C160: Povrchová úprava – PÚ | D160: Ochranný nátěr (pro minerální povrchové úpravy vždy, pro ostatní povrchové úpravy se nepoužívá) | E160: MAMUT Color EG | G160: 0,2 -0,3 l/m² | H160: -
E161: Egalizační nátěr
E162: Stav při dodání: tekutina připravená k použití
E163: Postup přípravy: neředit
E164: Hlavní součásti výrobku: bezrozpouštědlový vodní nátěr na bázi umělopryskyřičné disperze a minerálních přísad
E165: Použití: nátěr minerálních omítek MAMUT ip44 a MAMUT ip42 zajišťující sjednocení barevnosti
D166: Příslušenství | E166: Odpovídá popisu dle § 3.2.2.5 ETAG 004 na zodpovědnosti držitele ETA.
C168: Zamýšlené použití:
C169: Tento ETICS MAMUT-THERM Pb se uplatňuje na venkovních stěnách budov. Tyto stěny jsou vytvořeny zděním (z cihel, bloků, kamene…) nebo z betonu (monolitického nebo z prefabrikovaných panelů) s třídou reakce na oheň A1 nebo A2-s2,d0 dle EN 13501-1 nebo A1 dle doplňujícího EC 96/603/EC. ETICS je navrhován tak, aby dodával stěnám odpovídající tepelnou izolaci. ETICS je tvořen nenosnými konstrukčními součástmi. Nepřispívá ke stabilitě stěn, na něž se uplatňuje, ale přispívá k celkové odolnosti zvýšenou ochranou před vlivy povětrnosti. ETICS může být uplatněn na nové nebo již existující svislé stěny. Může být také uplatněn na vodorovné nebo nakloněné roviny, které nejsou vystaveny srážkám. Účelem ETICS není zajišťování neprodyšnosti budovy. Výběr způsobu připevňování a návrh konkrétní skladby závisí na vlastnostech podkladu, který může vyžadovat úpravu (viz čl. 7.2.1.ETAG 004) a musí být v souladu s národními předpisy. Ustanovení tohoto Evropského technického schválení vycházejí z předpokladu životnosti 25 roků dotčeného ETICS, za předpokladu jeho řádného užívání a údržby. Uvedený údaj životnosti však nelze považovat za záruku výrobce nebo schvalovacího orgánu, neboť slouží jen jako prostředek k volbě vhodných produktů s ohledem na očekávanou ekonomicky přiměřenou životnost díla.

Sheet M-T Ps
C3: Všeobecná definice výrobku ETICS MAMUT-THERM Ps a zamýšlené použití
C5: ETA 17/0385
C6: Reakce na oheň Evropská třída dle EN 13501-1:2003: B – s1, d0 *)
C8: Vnější tepelně izolační kompozitní systém (ETICS) MAMUT-THERM Ps, zvaný ETICS v dalším textu, je navržen a prováděn v souladu s návrhovými a montážními pokyny držitele ETA, uloženými v Technickém a zkušebním ústavu stavebním Praha s.p. (TZÚS), pobočka České Budějovice. ETICS se skládá z následujících součástí, které jsou vyráběny držitelem ETA nebo jeho subdodavatelem, z těch se poté zabudovává do stavby.
C9: Tento systém je prodáván pod jedním obchodním názvem ve skladbách vyplývajících z všeobecné definice výrobku.
C11: Definice výrobku | E11: Součásti | G11: Spotřeba (kg/m2) | H11: Tloušťka (mm)
C13: Mechanicky kotvený ETICS s doplňkovým lepením (minimální plocha lepení 30% povrchu desky EPS).
C14: Národní prováděcí předpisy musí být brány v úvahu.
C15: Izolační vrstva – IV a související způsob upevnění | D15: Lepicí hmota | E15: MAMUT Flex T | G15: 3,0 - 5,0 (kg/m²) suché směsi | H15: max 10
E16: Stav při dodání: prášek
E17: Postup přípravy: prášek vyžadující přípravek vody 0,25 l/kg
E18: Hlavní součásti výrobku: portlandský cement, plnivo o zrnitosti 0-0,7mm, speciální přísady
D19: Izolační výrobek | E19: Desky z pěnového polystyrenu s příměsí grafitu (EPS s reakcí na oheň E, pevností v tahu kolmo k rovině desky TR 100) a s dalšími sledovanými vlastnostmi uvedenými v příloze č.1 17/0385. | H19: 50 - 500*)
D20: kotvicí hmoždinky | E20: ejotherm STR U 2G | F20: ETA-04/0023 | G20: dle PD | H20: -
E21: plastové šroubovací hmoždinky
E22: EJOT H1 eco | F22: ETA-11/0192 | G22: dle PD | H22: -
E23: plastové zatloukací hmoždinky
E24: EJOT H4 eco | F24: ETA-11/0192 | G24: dle PD | H24: -
E25: plastové zatloukací hmoždinky
E26: EJOT H3 | F26: ETA-14/0130 | G26: dle PD | H26: -
E27: plastové zatloukací hmoždinky
E28: BRAVOLL PTH-KZ 60/8 | F28: ETA-05/0055 | G28: dle PD | H28: -
E29: plastové zatloukací hmoždinky
E30: BRAVOLL PTH-S | F30: ETA-08/0267 | G30: dle PD | H30: -
E31: plastové šroubovací hmoždinky
E32: BRAVOLL PTH-SX | F32: ETA-10/0028 | G32: dle PD | H32: -
E33: plastové šroubovací hmoždinky
E34: BRAVOLL PTH-X | F34: ETA-13/0951 | G34: dle PD | H34: -
E35: plastové zatloukací hmoždinky
E36: BRAVOLL PTH-EX | F36: ETA-13/0951 | G36: dle PD | H36: -
E37: plastové zatloukací hmoždinky
E38: termoz SV II ecotwist | F38: ETA-12/0208 | G38: dle PD | H38: -
E39: plastové šroubovací hmoždinky
E40: fischer TERMOFIX CF 8 | F40: ETA-07/0287 | G40: dle PD | H40: -
E41: plastové zatloukací hmoždinky
E42: fischer Termoz CN 8 | F42: ETA-09/0394 | G42: dle PD | H42: -
E43: plastové zatloukací hmoždinky
E44: fischer TERMOZ 8 U | F44: ETA-02/0019 | G44: dle PD | H44: -
E45: plastové šroubovací hmoždinky
E46: fischer termoz PN 8 | F46: ETA-09/0171 | G46: dle PD | H46: -
E47: plastové zatloukací hmoždinky
E48: fischer Termoz CS 8 | F48: ETA-14/0372 | G48: dle PD | H48: -
E49: plastové šroubovací hmoždinky
E50: fischer Termoz CS 8 DT 110 V | F50: ETA-14/0372 | G50: dle PD | H50: -
E51: plastové šroubovací hmoždinky
E52: FIXPLUG ø 8 ; FIXPLUG ø 10 | F52: ETA-11/0231 | G52: dle PD | H52: -
E53: plastové zatloukací hmoždinky
E54: WKTHERM ø 8 | F54: ETA-11/0232 | G54: dle PD | H54: -
E55: plastové zatloukací hmoždinky
E56: eco-drive; eco-drive S | F56: ETA-13/0107 | G56: dle PD | H56: -
E57: plastové šroubovací hmoždinky
E58: WKRET-MET-LFN ø 8; WKRET-MET-LFM ø 8 | F58: ETA-06/0105 | G58: dle PD | H58: -
E59: plastové zatloukací hmoždinky
E60: WKRET-MET-LFN ø 10; WKRET-MET-LFM ø 10 | F60: ETA-06/0105 | G60: dle PD | H60: -
E61: plastové zatloukací hmoždinky
E62: WKTHERM S | F62: ETA-13/0724 | G62: dle PD | H62: -
E63: plastové šroubovací hmoždinky
E64: Talířová hmoždinka TTH 10/60-La | F64: ETA-09/0318 | G64: dle PD | H64: -
E65: plastové zatloukací hmoždinky
C66: Základní vrstva – ZV | D66: Malta základní vrstvy – armovací hmota | E66: MAMUT Flex T | G66: 3,0 - 5,0 (kg/m²) suché směsi | H66: 3 - 5
E67: Stav při dodání: prášek
E68: Postup přípravy: prášek vyžadující přípravek vody 0,25 l/kg
E69: Hlavní součásti výrobku: portlandský cement, plnivo o zrnitosti 0-0,7mm, speciální přísady
D70: Výztuž | E70: Skleněná síťovina pro ETICS
E71: VERTEX R 131 A101 (rozměry mřížky 3,5 x 3,8 mm) | G71: - | H71: -
E72: VERTEX R 117 A101 (rozměry mřížky 4,0 x 4,5 mm)
E73: Valmiera SSA-1363-SM (rozměry mřížky 5,0 x 4,0 mm)
C74: Povrchová úprava – PÚ | D74: Penetrační nátěr | E74: MAMUT Kontakt | G74: 0,20 l/m² | H74: -
E75: Stav při dodání: tekutina připravená k použití
E76: Postup přípravy: neředit, promíchat
E77: Hlavní součásti výrobku: umělopryskyřičná disperze, minerální přísady
E78: Použití: penetrační nátěr základní vrstvy určený pro konečné povrchové úpravy MAMUT
E79: MAMUT Kontakt mozaika | G79: 0,20 l/m² | H79: -
E80: Stav při dodání: tekutina připravená k použití
E81: Postup přípravy: neředit, promíchat
E82: Hlavní součásti výrobku: umělopryskyřičná disperze, minerální přísady
E83: Použití: penetrační nátěr základní vrstvy určený pro konečné povrchové úpravy MAMUT mozaika
E84: Minerální omítky (použity vždy s ochranným nátěrem MAMUT Color EG)
C86: Povrchová úprava – PÚ | D86: Konečná povrchová úprava | E86: MAMUT ip 44 | G86: 2,5 – 3,7 (kg/m²) dle max.velikosti zrna | H86: Dle max. velikosti zrna
E87: minerální omítka zatíraná - max.zrno 1,5; 2,0; 3,0mm)
E88: Stav při dodání: prášek
E89: Postup přípravy: prášek vyžadující přípravek vody 0,23-0,3l/kg
E90: Hlavní součásti výrobku: bílý vápenný hydrát, bílý cement, kamenivo, anorganické stálobarevné pigmenty, speciální přísady
E91: MAMUT ip 42 | G91: 2,7 – 3,9 (kg/m²) dle max.velikosti zrna | H91: Dle max. velikosti zrna
E92: minerální omítka rýhovaná - max.zrno 2,0; 3,0mm)
E93: Stav při dodání: prášek
E94: Postup přípravy: prášek vyžadující přípravek vody 0,23-0,3l/kg
E95: Hlavní součásti výrobku:bílý vápenný hydrát, bílý cement, kamenivo, anorganické stálobarevné pigmenty, speciální přísady
E96: Pastovité omítky
E97: MAMUT Spektrum Z | G97: 2,5 – 3,8 (kg/m²) dle max.velikosti zrna | H97: Dle max. velikosti zrna
E98: akrylátová zatíraná omítka -max. zrno 1,5; 2,0; 3,0mm
E99: Stav při dodání: pasta připravená k použití
E100: Složení: směs kameniva, pigmentů, plniv a pojiva na bázi umělé pryskyřice
E101: MAMUT Spektrum R | G101: 2,4 – 3,7 (kg/m²) dle max.velikosti zrna | H101: Dle max. velikosti zrna
E102: akrylátová rýhovaná omítka -max. zrno 1,5; 2,0; 3,0mm
E103: Stav při dodání: pasta připravená k použití
E104: Složení: směs kameniva, pigmentů, plniv a pojiva na bázi umělé pryskyřice
E105: MAMUT Silikát Z | G105: 2,5 – 3,8 (kg/m²) dle max.velikosti zrna | H105: Dle max. velikosti zrna
E106: silikátová zatíraná omítka -max. zrno 1,5; 2,0; 3,0mm
E107: Stav při dodání: pasta připravená k použití
E108: Složení: směs kameniva, pigmentů, plniv a pojiva na bázi vodního skla
E109: MAMUT Silikát R | G109: 2,4 – 3,7 (kg/m²) dle max.velikosti zrna | H109: Dle max. velikosti zrna
E110: silikátová rýhovaná omítka -max. zrno 1,5; 2,0; 3,0mm
E111: Stav při dodání: pasta připravená k použití
E112: Složení: směs kameniva, pigmentů, plniv a pojiva na bázi vodního skla
E113: MAMUT Silikon Z | G113: 2,5 – 3,8 (kg/m²) dle max.velikosti zrna | H113: Dle max. velikosti zrna
E114: silikonová zatíraná omítka -max. zrno 1,5; 2,0; 3,0mm
E115: Stav při dodání: pasta připravená k použití
E116: Složení: směs kameniva, pigmentů, plniv a pojiva na bázi silikonové pryskyřice
E117: MAMUT Silikon R | G117: 2,4 – 3,7 (kg/m²) dle max.velikosti zrna | H117: Dle max. velikosti zrna
E118: silikonová rýhovaná omítka -max. zrno 1,5; 2,0; 3,0mm
E119: Stav při dodání: pasta připravená k použití
E120: Složení: směs kameniva, pigmentů, plniv a pojiva na bázi silikonové pryskyřice
E121: MAMUT Mozaika | G121: 4,5 (kg/m²)
E122: akrylátová omítka -max. zrno 2,5
E123: Stav při dodání: pasta připravená k použití
E124: Složení: směs kameniva, pigmentů a pojiva na bázi umělé pryskyřice
C125: Povrchová úprava – PÚ | D125: Ochranný nátěr (pro minerální povrchové úpravy vždy, pro ostatní povrchové úpravy se nepoužívá) | E125: MAMUT Color EG | G125: 0,2 -0,3 l/m² | H125: -
E126: Egalizační nátěr
E127: Stav při dodání: tekutina připravená k použití
E128: Postup přípravy: neředit
E129: Hlavní součásti výrobku: bezrozpouštědlový vodní nátěr na bázi umělopryskyřičné disperze a minerálních přísad
E130: Použití: nátěr minerálních omítek MAMUT ip44 a MAMUT ip42 zajišťující sjednocení barevnosti
D131: Příslušenství | E131: Zůstává na zodpovědnosti držitele ETA.
C132: *) platí pro všechny kombinace uvedené v tab. č. 2 a č. 3 mimo kombinace uvedené v tab. č. 4 ETA 17/0385 a MAMUT mozaika
C134: Zamýšlené použití:
C135: Tento ETICS MAMUT-THERM Ps se uplatňuje na venkovních stěnách budov. Tyto stěny jsou vytvořeny zděním (z cihel, bloků, kamene…) nebo z betonu (monolitického nebo z prefabrikovaných panelů) s třídou reakce na oheň A1 nebo A2-s2,d0 dle EN 13501-1 nebo A1 dle doplňujícího EC 96/603/EC. ETICS je navrhován tak, aby dodával stěnám odpovídající tepelnou izolaci. ETICS musí být navržen a proveden podle pokynů držitele schválení (ETA) pro jejich projektování a montáž. Systém se skládá ze součástí, které vyrábí držitel schválení (ETA) nebo jejich dodavatel. Držitel schválení (ETA) je finálně zodpovědný za systém. Všechny součásti systému musejí být specifikovány držitelem schválení (ETA). ETICS je vyroben jako nenosný stavební prvek. Nepůsobí přímo ke zvýšení stability zdi, na níž je aplikován, není určen pro zajištění vzduchotěsnosti stavební konstrukce, ale působí proti vlivům počasí. ETICS může být použit jak na nových, tak i na stávajících (rekonstruovaných) vertikálních zdech. Může být také použit na horizontálních nebo nakloněných površích, které nejsou vystaveny dešťovým srážkám. Účelem ETICS není zajišťování neprodyšnosti budovy. Způsob upevnění, návrh konkrétní skladby a vlastní provádění na stávající obvodovou stěnu závisí na vlastnostech podkladu a konkrétních okrajových podmínkách budovy. Ustanovení tohoto Evropského technického schválení vycházejí z předpokladu životnosti 25 roků dotčeného ETICS, za předpokladu jeho řádného užívání a údržby. Uvedený údaj životnosti však nelze považovat za záruku výrobce nebo schvalovacího orgánu, neboť slouží jen jako prostředek k volbě vhodných produktů s ohledem na očekávanou ekonomicky přiměřenou životnost díla.
B136: Dle zákona 22/1997 Sb. v platném znění, zejména pak Nařízení vlády č. 163/2002 Sb.v platném znění, jsou tepelně izolační kompozitní systémy (ETICS) stanovenými výrobky. Z pohledu výše uvedeného zákona ve znění pozdějších předpisů vyplývá, že ETICS je brán jako výrobek a jako takový musí být nejprve odzkoušen v akreditovaných zkušebnách a certifikován. Odpovědnost podle příslušných předpisů pro stavební výrobky nese společnost MAMUT-THERM s.r.o. za ty specifikované ETICS, které sama, jako sestavy součástí, uvádí na trh. Každý ETICS je jednoznačně definovaným výrobkem, který má určenou skladbu komponentů, které na sebe vzájemně navazují. Záměnou komponentů, nedodržením skladby nebo nedodržením technologického postupu ETICS k odborné montáži, určených výrobcem, je hrubým zásahem do charakteristiky výrobku a vzniklý produkt již přestává být stanoveným a tedy certifikovaným výrobkem.

Sheet MAMUT-THERM Ps2011 (hidden)
C3: Všeobecná definice výrobku ETICS MAMUT-THERM Ps, zamýšlené použití
C5: ETA 07/0153
C6: Reakce na oheň Evropská třída dle EN 13501-1: B – s1, d0
C8: Vnější tepelně izolační kompozitní systém (ETICS) MAMUT-THERM Ps, zvaný ETICS v dalším textu, je navržen a prováděn v souladu s návrhovými a montážními pokyny držitele ETA, uloženými v Technickém a zkušebním ústavu stavebním Praha s.p. (TZÚS), pobočka České Budějovice. ETICS se skládá z následujících součástí, které jsou vyráběny držitelem ETA nebo jeho subdodavatelem, z těch se poté zabudovává do stavby.
C9: Tento systém je prodáván pod jedním obchodním názvem ve skladbách vyplývajících z všeobecné definice výrobku.
C11: Definice výrobku | E11: Součásti | G11: Spotřeba (kg/m2) | H11: Tloušťka (mm)
C13: Částečně nebo plně lepený ETICS s doplňkovým mechanickým kotvením (minimální plocha lepení 40% povrchu desky EPS).
C14: Národní prováděcí předpisy musí být brány v úvahu.
C15: Izolační vrstva – IV a související způsob upevnění | D15: Lepicí hmota | E15: MAMUT Flex T | G15: 3,0 - 5,0 (kg/m²) suché směsi | H15: -
E16: Stav při dodání: prášek
E17: Postup přípravy: prášek vyžadující přípravek vody 0,25 l/kg
E18: Hlavní součásti výrobku: portlandský cement, plnivo o zrnitosti 0-0,7mm, speciální přísady
D19: Izolační výrobek | E19: Desky z pěnového polystyrenu s příměsí grafitových částic (EPS s reakcí na oheň E, pevností v tahu kolmo k rovině desky TR 100) a s dalšími sledovanými vlastnostmi uvedenými v tabulce č. 13 ETA 07/0153. | G19: - | H19: 50 - 180
C20: Mechanicky kotvený ETICS s doplňkovým lepením (minimální plocha lepení 30% povrchu desky EPS).
C21: Národní prováděcí předpisy musí být brány v úvahu.
C22: Izolační vrstva – IV a související způsob upevnění | D22: Lepicí hmota | E22: MAMUT Flex T | G22: 3,0 - 5,0 (kg/m²) suché směsi | H22: -
E23: Stav při dodání: prášek
E24: Postup přípravy: prášek vyžadující přípravek vody 0,25 l/kg
E25: Hlavní součásti výrobku: portlandský cement, plnivo o zrnitosti 0-0,7mm, speciální přísady
D26: Izolační výrobek | E26: s - Desky z pěnového polystyrenu s příměsí grafitových částic (EPS s reakcí na oheň E, pevností v tahu kolmo k rovině desky TR 100) a s dalšími sledovanými vlastnostmi uvedenými v tabulce č. 13 ETA 07/0153. | G26: - | H26: 50 - 180
D27: Mechanicky kotvící prvky | E27: ejotherm NT U | F27: ETA-05/0009 | G27: dle PD | H27: -
E28: plastové zatloukací hmoždinky
E29: ejotherm NTK U | F29: ETA-07/0026 | G29: dle PD | H29: -
E30: plastové zatloukací hmoždinky
E31: ejotherm ST U | F31: ETA-02/0018 | G31: dle PD | H31: -
E32: plastové šroubovací hmoždinky
E33: ejotherm STR U | F33: ETA-04/0023 | G33: dle PD | H33: -
E34: plastové šroubovací hmoždinky
E35: EJOT SDM – T plus | F35: ETA-04/0064 | G35: dle PD | H35: -
E36: plastové šroubovací hmoždinky
E37: Bravoll PTH-KZ 60/8-La, | F37: ETA-05/0055 | G37: dle PD | H37: -
E38: plastové zatloukací hmoždinky
E40: Bravoll PTH-KZL 60/8-La, | F40: ETA-05/0055 | G40: dle PD | H40: -
E41: plastové zatloukací hmoždinky
E42: Bravoll PTH 60/8-La, | F42: ETA-05/0055 | G42: dle PD | H42: -
E43: plastové zatloukací hmoždinky
E44: Bravoll PTH-L 60/8-La | F44: ETA-05/0055 | G44: dle PD | H44: -
E45: plastové zatloukací hmoždinky
E46: Bravoll PTH-S 60/8-La, Bravoll PTH-SL 60/8-La | F46: ETA-08/0267 | G46: dle PD | H46: -
E47: plastové šroubovací hmoždinky
E48: Bravoll PTH-SX | F48: ETA-10/0028 | G48: dle PD | H48: -
E49: plastové šroubovací hmoždinky
E50: fischer Termoz 8 SV | F50: ETA-06/0180 | G50: dle PD | H50: -
E51: plastové šroubovací hmoždinky
E52: fischer Termoz KS 8 | F52: ETA-04/0114 | G52: dle PD | H52: -
E53: plastové šroubovací hmoždinky
E54: fischer Termoz 8N | F54: ETA-03/0019 | G54: dle PD | H54: -
E55: plastové zatloukací hmoždinky
E56: fischer Termoz 8NZ | F56: ETA-03/0019 | G56: dle PD | H56: -
E57: plastové zatloukací hmoždinky
E58: fischer Termofix CF 8 | F58: ETA-07/0287 | G58: dle PD | H58: -
E59: plastové zatloukací hmoždinky
E60: fischer Termoz CN8 | F60: ETA-09/0394 | G60: dle PD | H60: -
E61: plastové zatloukací hmoždinky
E62: fischer Termoz 8 U | F62: ETA-02/0019 | G62: dle PD | H62: -
E63: plastové šroubovací hmoždinky
E64: fischer Termoz 8 UZ | F64: ETA-02/0019 | G64: dle PD | H64: -
E65: plastové šroubovací hmoždinky
E66: fischer Termoz PN 8 | F66: ETA-09/0171 | G66: dle PD | H66: -
E67: plastové zatloukací hmoždinky
E68: fischer Termoz LO 8 | F68: ETA-10/0460 | G68: dle PD | H68: -
E69: plastové zatloukací hmoždinky
E70: Hilti D 8-FV | F70: ETA-07/0288 | G70: dle PD | H70: -
E71: plastové šroubovací hmoždinky
E72: Hilti XI-FV, | F72: ETA-03/0004 | G72: dle PD | H72: -
E73: plastové nastřelovací hmoždinky
E74: Hilti SDK-FV 8 | F74: ETA-07/0302 | G74: dle PD | H74: -
E75: plastové zatloukací hmoždinky
E76: Hilti SX-FV | F76: ETA-03/0005 | G76: dle PD | H76: -
E77: plastové šroubovací hmoždinky - jednokrok
E78: Hilti SD-FV 8 | F78: ETA-03/0028 | G78: dle PD | H78: -
E79: plastové zatloukací hmoždinky
E80: KEW TSD 8 | F80: ETA-04/0030 | G80: dle PD | H80: -
E81: plastové zatloukací hmoždinky
E82: KEW TSBD 8 | F82: ETA-08/0314 | G82: dle PD | H82: -
E83: plastové šroubovací hmoždinky
E84: KEW TSD-V8 | F84: ETA-08/0315 | G84: dle PD | H84: -
E85: plastové zatloukací hmoždinky
E86: Talířová hmoždinka TTH 10/60-La | F86: ETA-09/0318 | G86: dle PD | H86: -
E87: plastové zatloukací hmoždinky
E88: TFIX-8M | F88: ETA-07/0336 | G88: dle PD | H88: -
E89: plastové zatloukací hmoždinky
E90: KOELNER KI-10, KI-10M | F90: ETA-07/0291 | G90: dle PD | H90: -
E91: plastové zatloukací hmoždinky
C92: Základní vrstva – ZV | D92: Malta základní vrstvy – armovací hmota | E92: MAMUT Flex T | G92: 4,0 (kg/m²) suché směsi | H92: 3
E93: Stav při dodání: prášek
E94: Postup přípravy: prášek vyžadující přípravek vody 0,25 l/kg
E95: Hlavní součásti výrobku: portlandský cement, plnivo o zrnitosti 0-0,7mm, speciální přísady
D96: Výztuž | E96: Skleněná síťovina pro ETICS
E97: VERTEX R 131 A101 (rozměry mřížky 3,5 x 3,5 mm)
C99: Povrchová úprava – PÚ | D99: Penetrační nátěr | E99: MAMUT Kontakt | G99: 0,20 l/m² | H99: -
E100: Stav při dodání: tekutina připravená k použití
E101: Postup přípravy: neředit, promíchat
E102: Hlavní součásti výrobku: umělopryskyřičná disperze, minerální přísady
E103: Použití: penetrační nátěr základní vrstvy určený pro konečné povrchové úpravy MAMUT
E104: MAMUT Kontakt mozaika | G104: 0,20 l/m² | H104: -
E105: Stav při dodání: tekutina připravená k použití
E106: Postup přípravy: neředit, promíchat
E107: Hlavní součásti výrobku: umělopryskyřičná disperze, minerální přísady
E108: Použití: penetrační nátěr základní vrstvy určený pro konečné povrchové úpravy MAMUT mozaika
E109: Minerální omítky (použity vždy s ochranným nátěrem MAMUT Color EG)
D111: Konečná povrchová úprava | E111: MAMUT ip 44 | G111: 2,5 – 3,7 (kg/m²) dle max.velikosti zrna | H111: Dle max. velikosti zrna
E112: minerální omítka zatíraná - max.zrno 1,5; 2,0; 3,0mm)
E113: Stav při dodání: prášek
E114: Postup přípravy: prášek vyžadující přípravek vody 0,23-0,3l/kg
E115: Hlavní součásti výrobku: bílý vápenný hydrát, bílý cement, kamenivo, anorganické stálobarevné pigmenty, speciální přísady
E116: MAMUT ip 42 | G116: 2,7 – 3,9 (kg/m²) dle max.velikosti zrna | H116: Dle max. velikosti zrna
E117: minerální omítka rýhovaná - max.zrno 2,0; 3,0mm)
E118: Stav při dodání: prášek
E119: Postup přípravy: prášek vyžadující přípravek vody 0,23-0,3l/kg
E120: Hlavní součásti výrobku:bílý vápenný hydrát, bílý cement, kamenivo, anorganické stálobarevné pigmenty, speciální přísady
E121: MAMUT Spektrum Z | G121: 2,5 – 3,8 (kg/m²) dle max.velikosti zrna | H121: Dle max. velikosti zrna
E122: akrylátová zatíraná omítka -max. zrno 1,5; 2,0; 3,0mm
E123: Stav při dodání: pasta připravená k použití
E124: Složení: směs kameniva, pigmentů, plniv a pojiva na bázi umělé pryskyřice
E125: MAMUT Spektrum R | G125: 2,4 – 3,7 (kg/m²) dle max.velikosti zrna | H125: Dle max. velikosti zrna
E126: akrylátová rýhovaná omítka -max. zrno 1,5; 2,0; 3,0mm
E127: Stav při dodání: pasta připravená k použití
E128: Složení: směs kameniva, pigmentů, plniv a pojiva na bázi umělé pryskyřice
E129: MAMUT Silikát Z | G129: 2,5 – 3,8 (kg/m²) dle max.velikosti zrna | H129: Dle max. velikosti zrna
E130: silikátová zatíraná omítka -max. zrno 1,5; 2,0; 3,0mm
E131: Stav při dodání: pasta připravená k použití
E132: Složení: směs kameniva, pigmentů, plniv a pojiva na bázi vodního skla
E133: MAMUT Silikát R | G133: 2,4 – 3,7 (kg/m²) dle max.velikosti zrna | H133: Dle max. velikosti zrna
E134: silikátová rýhovaná omítka -max. zrno 1,5; 2,0; 3,0mm
E135: Stav při dodání: pasta připravená k použití
E136: Složení: směs kameniva, pigmentů, plniv a pojiva na bázi vodního skla
E137: MAMUT Silikon Z | G137: 2,5 – 3,8 (kg/m²) dle max.velikosti zrna | H137: Dle max. velikosti zrna
E138: silikonová zatíraná omítka -max. zrno 1,5; 2,0; 3,0mm
E139: Stav při dodání: pasta připravená k použití
E140: Složení: směs kameniva, pigmentů, plniv a pojiva na bázi silikonové pryskyřice
E141: MAMUT Silikon R | G141: 2,4 – 3,7 (kg/m²) dle max.velikosti zrna | H141: Dle max. velikosti zrna
E142: silikonová rýhovaná omítka -max. zrno 1,5; 2,0; 3,0mm
E143: Stav při dodání: pasta připravená k použití
E144: Složení: směs kameniva, pigmentů, plniv a pojiva na bázi silikonové pryskyřice
E145: MAMUT Mozaika | G145: 4,5 (kg/m²)
E146: akrylátová omítka -max. zrno 2,0
E147: Stav při dodání: pasta připravená k použití
E148: Složení: směs kameniva, pigmentů a pojiva na bázi umělé pryskyřice
C149: Povrchová úprava – PÚ | D149: Ochranný nátěr (pro minerální povrchové úpravy vždy, pro ostatní povrchové úpravy se nepoužívá) | E149: MAMUT Color EG | G149: 0,2 -0,3 l/m² | H149: -
E150: Egalizační nátěr
E151: Stav při dodání: tekutina připravená k použití
E152: Postup přípravy: neředit
E153: Hlavní součásti výrobku: bezrozpouštědlový vodní nátěr na bázi umělopryskyřičné disperze a minerálních přísad
E154: Použití: nátěr minerálních omítek MAMUT ip44 a MAMUT ip42 zajišťující sjednocení barevnosti
D155: Příslušenství | E155: Odpovídá popisu dle § 3.2.2.5 ETAG 004 na zodpovědnosti držitele ETA.
C157: Zamýšlené použití:
C158: Tento ETICS MAMUT-THERM Ps se uplatňuje na venkovních stěnách budov. Tyto stěny jsou vytvořeny zděním (z cihel, bloků, kamene…) nebo z betonu (monolitického nebo z prefabrikovaných panelů) s třídou reakce na oheň A1 nebo A2-s2,d0 dle EN 13501-1 nebo A1 dle doplňujícího EC 96/603/EC. ETICS je navrhován tak, aby dodával stěnám odpovídající tepelnou izolaci. ETICS je tvořen nenosnými konstrukčními součástmi. Nepřispívá ke stabilitě stěn, na něž se uplatňuje, ale přispívá k celkové odolnosti zvýšenou ochranou před vlivy povětrnosti. ETICS může být uplatněn na nové nebo již existující svislé stěny. Může být také uplatněn na vodorovné nebo nakloněné roviny, které nejsou vystaveny srážkám. Účelem ETICS není zajišťování neprodyšnosti budovy. Výběr způsobu připevňování a návrh konkrétní skladby závisí na vlastnostech podkladu, který může vyžadovat úpravu (viz čl. 7.2.1.ETAG 004) a musí být v souladu s národními předpisy. Ustanovení tohoto Evropského technického schválení vycházejí z předpokladu životnosti 25 roků dotčeného ETICS, za předpokladu jeho řádného užívání a údržby. Uvedený údaj životnosti však nelze považovat za záruku výrobce nebo schvalovacího orgánu, neboť slouží jen jako prostředek k volbě vhodných produktů s ohledem na očekávanou ekonomicky přiměřenou životnost díla.

Sheet M-T Pu (hidden)
C3: Všeobecná definice výrobku ETICS MAMUT-THERM Pu a zamýšlené použití
C5: ETA 13/0395
C6: Reakce na oheň Evropská třída dle EN 13501-1: B – s1, d0
C8: Vnější tepelně izolační kompozitní systém (ETICS) MAMUT-THERM Pu, zvaný ETICS v dalším textu, je navržen a prováděn v souladu s návrhovými a montážními pokyny držitele ETA, uloženými v Technickém a zkušebním ústavu stavebním Praha s.p. (TZÚS), pobočka České Budějovice. ETICS se skládá z následujících součástí, které jsou vyráběny držitelem ETA nebo jeho subdodavatelem, z těch se poté zabudovává do stavby.
C9: Tento systém je prodáván pod jedním obchodním názvem ve skladbách vyplývajících z všeobecné definice výrobku.
C11: Definice výrobku | E11: Součásti | G11: Spotřeba (kg/m2) | H11: Tloušťka (mm)
C12: Částečně nebo plně lepený ETICS s doplňkovým mechanickým kotvením (minimální plocha lepení 40% povrchu desky EPS).
C13: Národní prováděcí předpisy je nutno bránt v úvahu.
C14: Izolační vrstva – IV a související způsob upevnění | D14: Lepicí hmota | E14: MAMUT Uni | G14: 3,0 - 5,0 (kg/m²) suché směsi | H14: max.10
E15: Stav při dodání: prášek
E16: Postup přípravy: prášek vyžadující přípravek vody 0,24 l/kg
E17: Složení: portlandský cement, plnivo o zrnitosti 0-0,5 mm, speciální přísady
D18: Izolační výrobek | E18: Desky z pěnového polystyrenu (EPS s reakcí na oheň E, pevností v tahu kolmo k rovině desky TR 100) a s dalšími sledovanými vlastnostmi uvedenými v tabulce č. 14 ETA 13/0395. | G18: - | H18: 50 - 300
C19: Mechanicky připevňovaný ETICS s doplňkovým lepením (dle pokynů držitele ETA musí tvořit minimální plocha lepení 40 % povrchu).
C20: Národní prováděcí předpisy je nutno bránt v úvahu.
C21: Izolační vrstva – IV a související způsob upevnění | D21: Lepicí hmota | E21: MAMUT Uni | G21: 3,0 - 5,0 suché směsi | H21: max.10
E22: Stav při dodání: prášek
E23: Postup přípravy: prášek vyžadující přípravek vody 0,24 l/kg
E24: Hlavní součásti výrobku: portlandský cement, plnivo o zrnitosti 0-0,5mm, speciální přísady
D25: Izolační výrobek | E25: Desky z pěnového polystyrenu (EPS s reakcí na oheň E, pevností v tahu kolmo k rovině desky TR 100) a s dalšími sledovanými vlastnostmi uvedenými v tabulce č. 14 ETA 13/0395. | G25: - | H25: 50 - 300
D26: Mechanicky kotvící prvky | E26: ejotherm NT U | F26: ETA-05/0009 | G26: dle PD | H26: -
E27: plastové zatloukací hmoždinky
E28: ejotherm STR U | F28: ETA-04/0023 | G28: dle PD | H28: -
E29: plastové šroubovací hmoždinky
E30: ejotherm STR U 2G | F30: ETA-04/0023 | G30: dle PD | H30: -
E31: plastové šroubovací hmoždinky
E32: ejotherm NTK U | F32: ETA-07/0026 | G32: dle PD | H32: -
E33: plastové zatloukací hmoždinky
E34: Ejot H1 eco | F34: ETA-11/0192 | G34: dle PD
E35: plastové natloukací hmoždinky
E36: Bravoll PTH 60/8-La, | F36: ETA-06/0055 | G36: dle PD | H36: -
E37: plastové zatloukací hmoždinky
E38: Bravoll PTH-KZ 60/8-La, | F38: ETA-06/0055 | G38: dle PD | H38: -
E39: plastové zatloukací hmoždinky
E40: Bravoll PTH-S 60/8-La | F40: ETA-08/0267 | G40: dle PD | H40: -
E41: plastové šroubovací hmoždinky
E42: Bravoll PTH-SX | F42: ETA-10/0028 | G42: dle PD | H42: -
E43: plastové šroubovací hmoždinky
E44: fischer TERMOZ 8 SV | F44: ETA-06/0180 | G44: dle PD | H44: -
E45: plastové šroubovací hmoždinky
E46: fischer TERMOZ 8N | F46: ETA-03/0019 | G46: dle PD | H46: -
E47: plastové zatloukací hmoždinky
E48: fischer TERMOZ CF 8 | F48: ETA-07/0287 | G48: dle PD | H48: -
E49: plastové zatloukací hmoždinky
E50: fischer TERMOZ CN8 | F50: ETA-09/0394 | G50: dle PD | H50: -
E51: plastové zatloukací hmoždinky
E52: fischer TERMOZ 8 U | F52: ETA-02/0019 | G52: dle PD | H52: -
E53: plastové šroubovací hmoždinky
E54: fischer TERMOZ 8 UZ | F54: ETA-02/0019 | G54: dle PD | H54: -
E55: plastové šroubovací hmoždinky
E56: fischer TERMOZ PN 8 | F56: ETA-09/0171 | G56: dle PD | H56: -
E57: plastové šroubovací hmoždinky
E58: Hilti D8-FV | F58: ETA-07/0288 | G58: dle PD | H58: -
E59: plastové šroubovací hmoždinky
E60: Hilti XI-FV, | F60: ETA-03/0004 | G60: dle PD | H60: -
E61: plastové nastřelovací hmoždinky
E62: Hilti SX-FV | F62: ETA-03/0005 | G62: dle PD | H62: -
E63: plastové jednokroková hmoždinky
E64: Hilti SD-FV 8 | F64: ETA-03/0028 | G64: dle PD | H64: -
E65: plastové zatloukací hmoždinky
E66: Hilti SDK-FV 8 | F66: ETA-07/0302 | G66: dle PD | H66: -
E67: plastové zatloukací hmoždinky
E68: KEW TSD 8 | F68: ETA-04/0030 | G68: dle PD | H68: -
E69: plastové zatloukací hmoždinky
E70: KEW TSBD 8 | F70: ETA-08/0314 | G70: dle PD | H70: -
E71: plastové šroubovací hmoždinky
E72: KEW TSD-V | F72: ETA-08/0315 | G72: dle PD | H72: -
E73: plastové zatloukací hmoždinky
E74: TTH 10/60 | F74: ETA-09/0318 | G74: dle PD | H74: -
E75: plastové zatloukací hmoždinky
E76: KOELNER TFIX-8M | F76: ETA-07/0336 | G76: dle PD | H76: -
E77: plastové zatloukací hmoždinky
E78: KOELNER Kl-10, Kl-10M | F78: ETA-07/0291 | G78: dle PD | H78: -
E79: plastové zatloukací hmoždinky
E80: KOELNER KI-10N, KI-10NS | F80: ETA-07/0221 | G80: dle PD | H80: -
E81: plastové zatloukací hmoždinky
E82: Koelner TFIX-8S a TFIX-8ST | F82: ETA-11/0144 | G82: dle PD | H82: -
E83: plastové šroubovací hmoždinky
E84: WKRET-MET LFN 10, LFM 10 | F84: ETA-06/0105 | G84: dle PD | H84: -
E85: plastové zatloukací hmoždinky
E86: WKRET-MET LFN 8, LFM 8 | F86: ETA-06/0080 | G86: dle PD | H86: -
E87: plastové zatloukací hmoždinky
E88: WKRET-MET LTX 10, LMX 10 | F88: ETA-08/0172 | G88: dle PD | H88: -
E89: plastové zatloukací hmoždinky
E90: WKRET-MET LTX 8, LMX 8 | F90: ETA-09/0001 | G90: dle PD | H90: -
E91: plastové zatloukací hmoždinky
E92: FIXPLUG ø 8, FIXPLUG ø 10 | F92: ETA-11/0144 | G92: dle PD | H92: -
E93: plastové zatloukací hmoždinky
E94: WKTHERM ø 8 | F94: ETA-11/0232 | G94: dle PD | H94: -
E95: plastové zatloukací hmoždinky
C96: Základní vrstva – ZV | D96: Malta základní vrstvy – armovací hmota | E96: MAMUT Uni | G96: 4,0 suché směsi | H96: 3
E97: Stav při dodání: prášek
E98: Postup přípravy: prášek vyžadující přípravek vody 0,24 l/kg
E99: Hlavní součásti výrobku: portlandský cement, plnivo o zrnitosti 0-0,5mm, speciální přísady
D100: Výztuž | E100: Sklovláknitá tkanina pro ETICS | G100: 1,1-1,2 m²/m² | H100: -
E101: R 117 A101
E102: R 131 A101
E103: OMFA 117S
E104: OMFA 122
E105: Valmiera SSA-1363-SM , 165 g/m² - pouze pro MAMUT Uni
C106: Povrchová úprava – PÚ | D106: Penetrační nátěr | E106: MAMUT Kontakt Uni | G106: 0,20 l/m² | H106: -
E107: Stav při dodání: tekutina připravená k použití
E108: Postup přípravy: ředit 20% vody
E109: Hlavní součásti výrobku: akrylátová disperze, titandioxid, křemičitý písek, pigmenty, aditiva a změkčovadla
E110: Použití: penetrační nátěr základní vrstvy určený pro umělopryskyřičné a silikonové konečné povrchové úpravy MAMUT Spektrum Uni a MAMUT Silikon Uni
D111: Konečná povrchová úprava | E111: MAMUT Spektrum Uni Z | G111: dle ETA-13/0395 | H111: Dle max. velikosti zrna
E112: akrylátová zatíraná omítka - dle ETA-13/0395
E113: Stav při dodání: pasta připravená k použití
E114: Postup přípravy: ředit maximálně 5% vody
E115: Složení: draselné vodní sklo, minerální plniva, pigmenty, aditiva a protiplísňové přísady
E116: MAMUT Spektrum Uni R | G116: dle ETA-13/0395 | H116: Dle max. velikosti zrna
E117: akrylátová rýhovaná omítka - dle ETA-13/0395
E118: Stav při dodání: pasta připravená k použití
E119: Postup přípravy: ředit maximálně 5% vody
E120: Složení: akrylátová disperze, titandioxid, křemičitý písek, pigmenty, aditiva a změkčovadla
E121: MAMUT Silikon Uni Z | G121: dle ETA-13/0395 | H121: Dle max. velikosti zrna
E122: silikonová zatíraná omítka - dle ETA-13/0395
E123: Stav při dodání: pasta připravená k použití
E124: Postup přípravy: ředit maximálně 5% vody
E125: Složení: silikonová disperze, titandioxid, křemičitý písek, UV-stabilní pigmenty, aditiva a změkčovadla
E126: MAMUT Silikon Uni R | G126: dle ETA-13/0395 | H126: Dle max. velikosti zrna
E127: silikonová rýhovaná omítka - dle ETA-13/0395
E128: Stav při dodání: pasta připravená k použití
E129: Postup přípravy: ředit maximálně 5% vody
E130: Složení: směs kameniva, pigmentů, plniv a pojiva na bázi silikonové pryskyřice
D131: Příslušenství | E131: Specifikované v odstavci § 3.2.2.5 ETAG 004 na zodpovědnosti držitele ETA.
C133: Zamýšlené použití:
C134: Tento ETICS MAMUT-THERM Pu se uplatňuje na venkovních stěnách budov. Tyto stěny jsou vytvořeny zděním (z cihel, bloků, kamene…) nebo z betonu (monolitického nebo z prefabrikovaných panelů) s třídou reakce na oheň A1 nebo A2-s2,d0 dle EN 13501-1 nebo A1 dle doplňujícího EC 96/603/EC. ETICS je navrhován tak, aby dodával stěnám odpovídající tepelnou izolaci. ETICS musí být navržen a proveden podle pokynů držitele schválení (ETA) pro jejich projektování a montáž. Systém se skládá ze součástí, které vyrábí držitel schválení (ETA) nebo jejich dodavatel. Držitel schválení (ETA) je finálně zodpovědný za systém. Všechny součásti systému musejí být specifikovány držitelem schválení (ETA). ETICS je vyroben jako nenosný stavební prvek. Nepůsobí přímo ke zvýšení stability zdi, na níž je aplikován, není určen pro zajištění vzduchotěsnosti stavební konstrukce, ale působí ke zvýšení odolnosti proti vlivům počasí. Musí zajišťovat minimální tepelný odpor přes 1,0 m2K/W. ETICS může být použit jak na nových, tak i na stávajících (rekonstruovaných) vertikálních zdech. Může být také použit na horizontálních nebo nakloněných površích, které nejsou vystaveny dešťovým srážkám. Účelem ETICS není zajišťování neprodyšnosti budovy. Způsob upevnění, návrh konkrétní skladby a vlastní provádění na stávající obvodovou stěnu závisí na vlastnostech podkladu a konkrétních okrajových podmínkách budovy. Musí být vzaty v úvahu požadavky kap. 4. a 7. (viz ETAG č. 004, vydání říjen 2011) a musí být proveden ve shodě s národními požadavky. Ustanovení tohoto Evropského technického schválení vycházejí z předpokladu životnosti 25 roků dotčeného ETICS, za předpokladu jeho řádného užívání a údržby. Uvedený údaj životnosti však nelze považovat za záruku výrobce nebo schvalovacího orgánu, neboť slouží jen jako prostředek k volbě vhodných produktů s ohledem na očekávanou ekonomicky přiměřenou životnost díla.
B135: Dle zákona 22/1997 Sb. v platném znění, zejména pak Nařízení vlády č. 163/2002 Sb.v platném znění, jsou tepelně izolační kompozitní systémy (ETICS) stanovenými výrobky. Z pohledu výše uvedeného zákona ve znění pozdějších předpisů vyplývá, že ETICS je brán jako výrobek a jako takový musí být nejprve odzkoušen v akreditovaných zkušebnách a certifikován. Odpovědnost podle příslušných předpisů pro stavební výrobky nese společnost MAMUT-THERM s.r.o. za ty specifikované ETICS, které sama, jako sestavy součástí, uvádí na trh. Každý ETICS je jednoznačně definovaným výrobkem, který má určenou skladbu komponentů, které na sebe vzájemně navazují. Záměnou komponentů, nedodržením skladby nebo nedodržením technologického postupu ETICS k odborné montáži, určených výrobcem, je hrubým zásahem do charakteristiky výrobku a vzniklý produkt již přestává být stanoveným a tedy certifikovaným výrobkem.

Sheet M-T C
C3: Všeobecná definice výrobku ETICS MAMUT-THERM C a zamýšlené použití
C5: STO 020-033838 ze dne 2. 10.2015
C6: Reakce na oheň Evropská třída dle EN 13501-1: B – s1, d0 *)
C8: Vnější tepelně izolační kompozitní systém (ETICS) MAMUT-THERM C, zvaný ETICS v dalším textu, je navržen a prováděn v souladu s návrhovými a montážními pokyny držitele STO, uloženými v Technickém a zkušebním ústavu stavebním Praha s.p. (TZÚS), pobočka Brno. ETICS se skládá z následujících součástí, které jsou vyráběny držitelem STO nebo jeho subdodavatelem, z těch se poté zabudovává do stavby.
C9: Tento systém je prodáván pod jedním obchodním názvem ve skladbách vyplývajících z všeobecné definice výrobku.
C11: Definice výrobku | E11: Součásti | G11: Spotřeba (kg/m2) | H11: Tloušťka (mm)
C13: Částečně nebo plně lepený ETICS s doplňkovým mechanickým kotvením (minimální plocha lepení 40% povrchu desky EPS).
C14: Národní prováděcí předpisy musí být brány v úvahu.
D15: Lepicí hmota | E15: MAMUT Multi | G15: 3,0 - 5,0 (kg/m²) suché směsi | H15: -
E16: Stav při dodání: prášek
E17: Postup přípravy: prášek vyžadující přídavek vody 0,20 l/kg
E18: Hlavní součásti výrobku: portlandský cement, plnivo o zrnitosti 0-0,6 mm, speciální přísady
D19: Izolační výrobek | E19: Desky z pěnového polystyrenu (EPS s reakcí na oheň E, pevností v tahu kolmo k rovině desky TR 100, ) dle ČSN EN 13163 ed.2 a s dalšími sledovanými vlastnostmi (T1;L2;W2;S2;P3;DS(70;-)1;MU40-T50) | G19: - | H19: 50 - není omezeno
C20: Mechanicky kotvený ETICS s doplňkovým lepením (minimální plocha lepení 30% povrchu desky EPS).
C21: Národní prováděcí předpisy musí být brány v úvahu.
C22: Izolační vrstva – IV a související způsob upevnění | D22: Lepicí hmota | E22: MAMUT Flex T | G22: 3,0 - 5,0 (kg/m²) suché směsi | H22: -
E23: Stav při dodání: prášek
E24: Postup přípravy: prášek vyžadující přípravek vody 0,25 l/kg
E25: Hlavní součásti výrobku: portlandský cement, plnivo o zrnitosti 0-0,7mm, speciální přísady
D26: Lepicí hmota | E26: MAMUT Multi | G26: 3,0 - 5,0 (kg/m²) suché směsi | H26: -
E27: Stav při dodání: prášek
E28: Postup přípravy: prášek vyžadující přídavek vody 0,20 l/kg
E29: Hlavní součásti výrobku: portlandský cement, plnivo o zrnitosti 0-0,6 mm, speciální přísady
D30: Izolační výrobek | E30: Desky z pěnového polystyrenu (EPS s reakcí na oheň E, pevností v tahu kolmo k rovině desky TR 100, ) dle ČSN EN 13163 ed.2 a s dalšími sledovanými vlastnostmi (T1;L2;W2;S2;P3;DS(70;-)1;MU40-T50) | G30: - | H30: 50 - není omezeno
D31: Mechanicky kotvící prvky | E31: ejotherm NT U | F31: ETA-05/0009 | G31: dle PD | H31: -
E32: plastové zatloukací hmoždinky
E33: ejotherm STR U | F33: ETA-04/0023 | G33: dle PD | H33: -
E34: plastové šroubovací hmoždinky
E35: ejotherm STR U 2G | F35: ETA-04/0023 | G35: dle PD | H35: -
E36: plastové šroubovací hmoždinky
E37: EJOT H1 eco | F37: ETA-11/0192 | G37: dle PD | H37: -
E38: plastové zatloukací hmoždinky
E39: EJOT H3 | F39: ETA-14/0130 | G39: dle PD | H39: -
E40: plastové zatloukací hmoždinky
E41: EJOT H4 eco | F41: ETA-11/0192 | G41: dle PD | H41: -
E42: plastové zatloukací hmoždinky
E43: EJOT SDM – T plus | F43: ETA-04/0064 | G43: dle PD | H43: -
E44: plastové šroubovací hmoždinky
E45: Bravoll PTH-KZ | F45: ETA-05/0055 | G45: dle PD | H45: -
E46: plastové zatloukací hmoždinky
E47: Bravoll PTH-KZL 60/8-La, | F47: ETA-05/0055 | G47: dle PD | H47: -
E48: plastové zatloukací hmoždinky
E49: Bravoll PTH | F49: ETA-05/0055 | G49: dle PD | H49: -
E50: plastové zatloukací hmoždinky
E51: Bravoll PTH-S | F51: ETA-08/0267 | G51: dle PD | H51: -
E52: plastové šroubovací hmoždinky
E53: Bravoll PTH-SX | F53: ETA-10/0028 | G53: dle PD | H53: -
E54: plastové šroubovací hmoždinky
E55: Bravoll PTH X | F55: ETA-13/0951 | G55: dle PD | H55: -
E56: plastové zatloukací hmoždinky
E57: Bravoll PTH EX | F57: ETA-13/0951 | G57: dle PD | H57: -
E58: plastové zatloukací hmoždinky
E59: fischer Termoz 8 SV | F59: ETA-06/0180 | G59: dle PD | H59: -
E60: plastové šroubovací hmoždinky
E61: fischer Termoz KS 8 | F61: ETA-04/0114 | G61: dle PD | H61: -
E62: plastové šroubovací hmoždinky
E63: fischer Termoz 8N | F63: ETA-03/0019 | G63: dle PD | H63: -
E64: plastové zatloukací hmoždinky
E65: fischer Termoz 8NZ | F65: ETA-03/0019 | G65: dle PD | H65: -
E66: plastové zatloukací hmoždinky
E67: fischer Termofix CF 8 | F67: ETA-07/0287 | G67: dle PD | H67: -
E68: plastové zatloukací hmoždinky
E69: fischer Termoz CN 8 | F69: ETA-09/0394 | G69: dle PD | H69: -
E70: plastové zatloukací hmoždinky
E71: fischer Termoz 8 U | F71: ETA-02/0019 | G71: dle PD | H71: -
E72: plastové šroubovací hmoždinky
E73: fischer Termoz 8 UZ | F73: ETA-02/0019 | G73: dle PD | H73: -
E74: plastové šroubovací hmoždinky
E75: fischer Termoz PN 8 | F75: ETA-09/0171 | G75: dle PD | H75: -
E76: plastové zatloukací hmoždinky
E77: fischer Termoz LO 8 | F77: ETA-10/0460 | G77: dle PD | H77: -
E78: plastové zatloukací hmoždinky
E79: fischer Termoz CS 8 | F79: ETA-14/0372 | G79: dle PD | H79: -
E80: plastové šroubovací hmoždinky
E81: fischer Termoz SV II ekotwist | F81: ETA-12/0208 | G81: dle PD | H81: -
E82: plastové zatloukací hmoždinky
E83: Hilti D 8-FV | F83: ETA-07/0288 | G83: dle PD | H83: -
E84: plastové šroubovací hmoždinky
E85: Hilti SDK-FV 8 | F85: ETA-07/0302 | G85: dle PD | H85: -
E86: plastové zatloukací hmoždinky
E87: Hilti SX-FV | F87: ETA-03/0005 | G87: dle PD | H87: -
E88: plastové šroubovací hmoždinky - jednokrok
E89: Hilti SD-FV 8 | F89: ETA-03/0028 | G89: dle PD | H89: -
E90: plastové zatloukací hmoždinky
E91: KEW TSD 8 | F91: ETA-04/0030 | G91: dle PD | H91: -
E92: plastové zatloukací hmoždinky
E93: KEW TSBD 8 | F93: ETA-08/0314 | G93: dle PD | H93: -
E94: plastové šroubovací hmoždinky
E95: KEW TSD-V | F95: ETA-08/0315 | G95: dle PD | H95: -
E96: plastové zatloukací hmoždinky
E97: KEW TSDL-V | F97: ETA-12/0148 | G97: dle PD
E98: plastové zatloukací hmoždinky
E99: TTH 10/60-La | F99: ETA-09/0318 | G99: dle PD | H99: -
E100: plastové zatloukací hmoždinky
E101: KOELNER TFIX-8M | F101: ETA-07/0336 | G101: dle PD | H101: -
E102: plastové zatloukací hmoždinky
E103: KOELNER KI-10 | F103: ETA-07/0291 | G103: dle PD | H103: -
E104: plastové zatloukací hmoždinky
E105: KOELNER KI-10M | F105: ETA-07/0291 | G105: dle PD | H105: -
E106: plastové zatloukací hmoždinky
E107: KOELNER TFIX-8S | F107: ETA-11/0144 | G107: dle PD | H107: -
E108: plastové šroubovací hmoždinky
E109: KOELNER TFIX-8ST | F109: ETA-11/0144 | G109: dle PD | H109: -
E110: plastové šroubovací hmoždinky
E111: KOELNER TFIX-8P | F111: ETA-13/0845 | G111: dle PD
E112: plastové zatloukací hmoždinky
E113: KOELNER KI-10N | F113: ETA-07/0221 | G113: dle PD
E114: plastové zatloukací hmoždinky
E115: KOELNER KI-10NS | F115: ETA-07/0221 | G115: dle PD
E116: plastové šroubovací hmoždinky
E117: WKRET-MET eco drive | F117: ETA-13/0107 | G117: dle PD
E118: plastové šroubovací hmoždinky
E119: WKRET-MET eco drive S | F119: ETA-13/0107 | G119: dle PD
E120: plastové šroubovací hmoždinky
E121: WKRET-MET eco drive W | F121: ETA-13/0107 | G121: dle PD
E122: plastové šroubovací hmoždinky
E123: WKRET-MET WKTHERM S | F123: ETA 13/0724 | G123: dle PD
E124: plastové šroubovací hmoždinky
E125: WKRET-MET LFNØ10; LFMØ10 | F125: ETA 06/0105 | G125: dle PD
E126: plastové zatloukací hmoždinky
E127: WKRET-MET LFNØ8; LFMØ8 | F127: ETA 06/0080 | G127: dle PD
E128: plastové zatloukací hmoždinky
E129: WKRET-MET LTXØ10; LMXØ10 | F129: ETA 08/0172 | G129: dle PD
E130: plastové zatloukací hmoždinky
E131: WKRET-MET WKTHERM | F131: ETA-11/0232 | G131: dle PD
E132: plastové zatloukací hmoždinky
E133: WKRET-MET FIXPLUG 8 | F133: ETA-11/0231 | G133: dle PD
E134: plastové zatloukací hmoždinky
E135: WKRET-MET FIXPLUG 10 | F135: ETA-11/0231 | G135: dle PD | H135: -
E136: plastové zatloukací hmoždinky
C137: Základní vrstva – ZV | D137: Malta základní vrstvy – armovací hmota | E137: MAMUT Multi | G137: 3,0 - 5,0 (kg/m²) suché směsi | H137: 3 - 4
E138: Stav při dodání: prášek
E139: Postup přípravy: prášek vyžadující přípravek vody 0,25 l/kg
E140: Hlavní součásti výrobku: portlandský cement, plnivo o zrnitosti 0-0,7mm, speciální přísady
D141: Výztuž | E141: Skleněná síťovina pro ETICS | G141: 1,1 - 1,2 m²/m² | H141: -
E142: VERTEX R 131 A101 (rozměry mřížky 3,5 x 3,5 mm)
C144: Povrchová úprava – PÚ | D144: Penetrační nátěr | E144: MAMUT Kontakt | G144: 0,20 l/m² | H144: -
E145: Stav při dodání: tekutina připravená k použití
E146: Postup přípravy: neředit, promíchat
E147: Hlavní součásti výrobku: organické pojivo, minerální přísady, voda
E148: Použití: penetrační nátěr základní vrstvy určený pro umělopryskyřičné a silikonové konečné úpravy MAMUT … Z/R
E149: MAMUT Kontakt VSP
E150: Stav při dodání: tekutina připravená k použití
E151: Postup přípravy: neředit, promíchat
E152: Hlavní součásti výrobku: umělopryskyřičná disperze, minerální přísady
E153: Použití: penetrační nátěr základní vrstvy určený pro konečné úpravy MAMUT Spektrum VZ/VR
E154: MAMUT Kontakt VSICA
E155: Stav při dodání: tekutina připravená k použití
E156: Postup přípravy: neředit, promíchat
E157: Hlavní součásti výrobku: draselné vodní sklo, minerální přísady, voda
E158: Použití: penetrační nátěr základní vrstvy určený pro konečné úpravy MAMUT Silikát VZ/VR
E159: MAMUT Kontakt VSIL
E160: Stav při dodání: tekutina připravená k použití
E161: Postup přípravy: neředit, promíchat
E162: Hlavní součásti výrobku: organické pojivo, minerální přísady, voda
E163: Použití: penetrační nátěr základní vrstvy určený pro konečné úpravy MAMUT Silikon VZ/VR
E164: MAMUT Kontakt mozaika | G164: 0,20 l/m² | H164: -
E165: Stav při dodání: tekutina připravená k použití
E166: Postup přípravy: neředit, promíchat
E167: Hlavní součásti výrobku: umělopryskyřičná disperze, minerální přísady
E168: Použití: penetrační nátěr základní vrstvy určený pro mozaikové dekorativní omítky MAMUT
D169: Konečná povrchová úprava | E169: MAMUT Spektrum uni Z 1,5 | G169: 2,4 (kg/m²) | H169: 1,5mm
E170: akrylátová zatíraná omítka
E171: Stav při dodání: pasta připravená k použití
E172: Složení: směs kameniva, pigmentů, plniv a pojiva na bázi umělé pryskyřice
E173: MAMUT Spektrum uni R 2,0 | G173: 2,5 (kg/m²) | H173: 2 mm
E174: akrylátová rýhovaná omítka -max. zrno 2,0mm
E175: Stav při dodání: pasta připravená k použití
E176: Složení: směs kameniva, pigmentů, plniv a pojiva na bázi umělé pryskyřice
E177: MAMUT Spektrum Z | G177: 2,5 – 3,8 (kg/m²) dle max.velikosti zrna | H177: Dle max. velikosti zrna
E178: akrylátová zatíraná omítka -max. zrno 1,5; 2,0; 3,0mm
E179: Stav při dodání: pasta připravená k použití
E180: Složení: směs kameniva, pigmentů, plniv a pojiva na bázi umělé pryskyřice
E181: MAMUT Spektrum R | G181: 2,4 – 3,7 (kg/m²) dle max.velikosti zrna | H181: Dle max. velikosti zrna
E182: akrylátová rýhovaná omítka -max. zrno 1,5; 2,0; 3,0mm
E183: Stav při dodání: pasta připravená k použití
E184: Složení: směs kameniva, pigmentů, plniv a pojiva na bázi umělé pryskyřice
E185: MAMUT Silikon AS Z | G185: 2,5 – 3,8 (kg/m²) dle max.velikosti zrna | H185: Dle max. velikosti zrna
E186: silikátová zatíraná omítka -max. zrno 1,5; 2,0; 3,0mm
E187: Stav při dodání: pasta připravená k použití
E188: Složení: směs kameniva, pigmentů, plniv a pojiva na bázi silikonové pryskyřice
E189: MAMUT Silikon AS R | G189: 2,4 – 3,7 (kg/m²) dle max.velikosti zrna | H189: Dle max. velikosti zrna
E190: silikátová rýhovaná omítka -max. zrno 1,5; 2,0; 3,0mm
E191: Stav při dodání: pasta připravená k použití
E192: Složení: směs kameniva, pigmentů, plniv a pojiva na bázi silikonové pryskyřice
E193: MAMUT Silikon Z | G193: 2,5 – 3,8 (kg/m²) dle max.velikosti zrna | H193: Dle max. velikosti zrna
E194: silikonová zatíraná omítka -max. zrno 1,5; 2,0; 3,0mm
E195: Stav při dodání: pasta připravená k použití
E196: Složení: směs kameniva, pigmentů, plniv a pojiva na bázi silikonové pryskyřice
E197: MAMUT Silikon R | G197: 2,4 – 3,7 (kg/m²) dle max.velikosti zrna | H197: Dle max. velikosti zrna
E198: silikonová rýhovaná omítka -max. zrno 1,5; 2,0; 3,0mm
E199: Stav při dodání: pasta připravená k použití
E200: Složení: směs kameniva, pigmentů, plniv a pojiva na bázi silikonové pryskyřice
E201: MAMUT Spektrum VZ | G201: 1,7 – 4,0 (kg/m²) dle max.velikosti zrna | H201: Dle max. velikosti zrna
E202: umělopryskyřičná zatíraná omítka -max. zrno 1,0;1,5; 2,0; 3,0mm
E203: Stav při dodání: pasta připravená k použití
E204: Složení: směs kameniva, pigmentů, plniv a pojiva na bázi umělé pryskyřice
E205: MAMUT Spektrum VR | G205: 2,4 – 3,8 (kg/m²) dle max.velikosti zrna | H205: Dle max. velikosti zrna
E206: umělopryskyřičná rýhovaná omítka -max. zrno 1,5; 2,0; 3,0mm
E207: Stav při dodání: pasta připravená k použití
... 26 more rows

Sheet M-T Ma2014 (hidden)
C3: Všeobecná definice výrobku ETICS MAMUT-THERM Ma a zamýšlené použití
C5: ETA 17/0386
C6: Reakce na oheň Evropská třída dle EN 13501-1: A2 – s1, d0
C8: Vnější tepelně izolační kompozitní systém (ETICS) MAMUT-THERM Ma, zvaný ETICS v dalším textu, je navržen a prováděn v souladu s návrhovými a montážními pokyny držitele ETA, uloženými v Technickém a zkušebním ústavu stavebním Praha s.p. (TZÚS), pobočka České Budějovice. ETICS se skládá z následujících součástí, které jsou vyráběny držitelem ETA nebo jeho subdodavatelem, z těch se poté zabudovává do stavby.
C9: Tento systém je prodáván pod jedním obchodním názvem ve skladbách vyplývajících z všeobecné definice výrobku.
C11: Definice výrobku | E11: Součásti | G11: Spotřeba (kg/m2) | H11: Tloušťka (mm)
C13: Mechanicky připevňovaný ETICS s doplňkovým lepením (minimální plocha lepení 30% povrchu desky MW).
C14: Národní prováděcí předpisy musí být brány v úvahu.
C15: Izolační vrstva – IV a související způsob upevnění | D15: Lepicí hmota | E15: MAMUT Flex T | G15: 3,0 - 5,0 suché směsi | H15: -
E16: Stav při dodání: prášek
E17: Postup přípravy: prášek vyžadující přípravek vody 0,25 l/kg
E18: Hlavní součásti výrobku: portlandský cement, plnivo o zrnitosti 0-0,7mm, speciální přísady
D19: Izolační výrobek | E19: tuhá tepelně izolační deska kvalitativní třídy A dle TP CZB 05/2007
E20: FASROCK (výrobce Rockwool a.s.) MW-EM 13162-T5-DS(T+)-DS(TH)-CS(10)40-TR15-WS-WL(P)-MU1 | G20: - | H20: 60 - 180
E21: NOBASIL FKD (výrobce Knauf Insulation s.r.o.) MW-EN 13162-T5-DS(TH)-CS(10)40-TR15-WS-WL(P)-MU3,5 | G21: - | H21: 60 - 180
E22: NOBASIL FKD S (výrobce Knauf Insulation s.r.o.) MW-EN 13162-T5-DS(TH)-CS(10)30-TR10-WS-WL(P)-MU3,5 | G22: - | H22: 60 - 180
D23: Mechanicky kotvící prvky | E23: ejotherm NT U | F23: ETA-05/0009 | G23: dle PD | H23: -
E24: plastové zatloukací hmoždinky
E25: ejotherm STR U | F25: ETA-04/0023 | G25: dle PD | H25: -
E26: plastové šroubovací hmoždinky
E27: ejotherm STR U 2G | F27: ETA-04/0023 | G27: dle PD | H27: -
E28: plastové šroubovací hmoždinky
E29: Ejot H1 eco | F29: ETA-11/0192 | G29: dle PD
E30: plastové natloukací hmoždinky
E31: Bravoll PTH-KZ 60/8-La, | F31: ETA-06/0055 | G31: dle PD | H31: -
E32: plastové zatloukací hmoždinky
E33: Bravoll PTH-S 60/8-La | F33: ETA-08/0267 | G33: dle PD | H33: -
E34: plastové šroubovací hmoždinky
E35: fischer TERMOZ 8 SV | F35: ETA-06/0180 | G35: dle PD | H35: -
E36: plastové šroubovací hmoždinky
E37: fischer TERMOZ 8NZ | F37: ETA-03/0019 | G37: dle PD | H37: -
E38: plastové zatloukací hmoždinky
E39: fischer TERMOZ CN 8 | F39: ETA-09/0394 | G39: dle PD | H39: -
E40: plastové zatloukací hmoždinky
E41: fischer TERMOZ 8U | F41: ETA-02/0019 | G41: dle PD | H41: -
E42: plastové zatloukací hmoždinky
E43: fischer TERMOFIX CF 8 | F43: ETA-07/0287 | G43: dle PD
E44: plastové zatloukací hmoždinky
E45: KEW TSBD 8 | F45: ETA-08/0314 | G45: dle PD | H45: -
E46: plastové šroubovací hmoždinky
E47: KEW TSD-V | F47: ETA-08/0315 | G47: dle PD | H47: -
E48: plastové zatloukací hmoždinky
E49: KEW TSD 8 | F49: ETA-04/0030 | G49: dle PD | H49: -
E50: plastové zatloukací hmoždinky
E51: KOELNER TFIX-8M | F51: ETA-07/0336 | G51: dle PD | H51: -
E52: plastové zatloukací hmoždinky
C53: Základní vrstva – ZV | D53: Malta základní vrstvy – armovací hmota | E53: MAMUT Flex T | G53: 4,0 suché směsi | H53: 3
E54: Stav při dodání: prášek
E55: Postup přípravy: prášek vyžadující přípravek vody 0,25 l/kg
E56: Hlavní součásti výrobku: portlandský cement, plnivo o zrnitosti 0-0,7mm, speciální přísady
D57: Výztuž | E57: Skleněná síťovina pro ETICS
E58: VERTEX R 131 A101 (rozměry mřížky 3,5 x 3,5 mm)
C60: Povrchová úprava – PÚ | D60: Penetrační nátěr | E60: MAMUT Kontakt | G60: 0,20 l/m2 | H60: -
E61: Stav při dodání: tekutina připravená k použití
E62: Postup přípravy: neředit, promíchat
E63: Hlavní součásti výrobku: umělopryskyřičná disperze, minerální přísady
E64: Použití: penetrační nátěr základní vrstvy určený pro konečné povrchové úpravy MAMUT
D65: Konečná povrchová úprava | E65: MAMUT Silikon Z | G65: 2,5 – 3,8 dle max.velikosti zrna | H65: Dle max. velikosti zrna
E66: silikonová zatíraná omítka -max. zrno 1,5; 2,0; 3,0mm
E67: Stav při dodání: pasta připravená k použití
E68: Složení: směs kameniva, pigmentů, plniv a pojiva na bázi silikonové pryskyřice
E69: MAMUT Silikon R | G69: 2,4 – 3,7 dle max.velikosti zrna | H69: Dle max. velikosti zrna
E70: silikonová rýhovaná omítka -max. zrno 1,5; 2,0; 3,0mm
E71: Stav při dodání: pasta připravená k použití
E72: Složení: směs kameniva, pigmentů, plniv a pojiva na bázi silikonové pryskyřice
D73: Příslušenství | E73: Odpovídá popisu dle § 3.2.2.5 ETAG 004 na zodpovědnosti držitele ETA.
C75: Zamýšlené použití:
C76: Tento ETICS MAMUT-THERM Ma se uplatňuje na venkovních stěnách budov. Tyto stěny jsou vytvořeny zděním (z cihel, bloků, kamene…) nebo z betonu (monolitického nebo z prefabrikovaných panelů) s třídou reakce na oheň A1 nebo A2-s2,d0 dle EN 13501-1 nebo A1 dle doplňujícího EC 96/603/EC. ETICS je navrhován tak, aby dodával stěnám odpovídající tepelnou izolaci. ETICS musí být navržen a proveden podle pokynů držitele schválení (ETA) pro jejich projektování a montáž. Systém se skládá ze součástí, které vyrábí držitel schválení (ETA) nebo jejich dodavatel. Držitel schválení (ETA) je finálně zodpovědný za systém. Všechny součásti systému musejí být specifikovány držitelem schválení (ETA). ETICS je vyroben jako nenosný stavební prvek. Nepůsobí přímo ke zvýšení stability zdi, na níž je aplikován, není určen pro zajištění vzduchotěsnosti stavební konstrukce, ale působí ke zvýšení odolnosti proti vlivům počasí. Musí zajišťovat minimální tepelný odpor přes 1,0 m².K/W. ETICS může být použit jak na nových, tak i na stávajících (rekonstruovaných) vertikálních zdech. Může být také použit na horizontálních nebo nakloněných površích, které nejsou vystaveny dešťovým srážkám. Účelem ETICS není zajišťování neprodyšnosti budovy. Způsob upevnění, návrh konkrétní skladby a vlastní provádění na stávající obvodovou stěnu závisí na vlastnostech podkladu a konkrétních okrajových podmínkách budovy. Musí být vzaty v úvahu požadavky kap. 4. a 7. (viz ETAG č. 004, vydání říjen 2011) a musí být proveden ve shodě s národními požadavky. Ustanovení tohoto Evropského technického schválení vycházejí z předpokladu životnosti 25 roků dotčeného ETICS, za předpokladu jeho řádného užívání a údržby. Uvedený údaj životnosti však nelze považovat za záruku výrobce nebo schvalovacího orgánu, neboť slouží jen jako prostředek k volbě vhodných produktů s ohledem na očekávanou ekonomicky přiměřenou životnost díla.
B77: Dle zákona 22/1997 Sb. v platném znění, zejména pak Nařízení vlády č. 163/2002 Sb.v platném znění, jsou tepelně izolační kompozitní systémy (ETICS) stanovenými výrobky. Z pohledu výše uvedeného zákona ve znění pozdějších předpisů vyplývá, že ETICS je brán jako výrobek a jako takový musí být nejprve odzkoušen v akreditovaných zkušebnách a certifikován. Odpovědnost podle příslušných předpisů pro stavební výrobky nese společnost MAMUT-THERM s.r.o. za ty specifikované ETICS, které sama, jako sestavy součástí, uvádí na trh. Každý ETICS je jednoznačně definovaným výrobkem, který má určenou skladbu komponentů, které na sebe vzájemně navazují. Záměnou komponentů, nedodržením skladby nebo nedodržením technologického postupu ETICS k odborné montáži, určených výrobcem, je hrubým zásahem do charakteristiky výrobku a vzniklý produkt již přestává být stanoveným a tedy certifikovaným výrobkem.

Sheet M-T Ma
C3: Všeobecná definice výrobku ETICS MAMUT-THERM Ma a zamýšlené použití
C5: ETA 17/0386
C6: Reakce na oheň Evropská třída dle EN 13501-1: A2 – s1, d0
C8: Vnější tepelně izolační kompozitní systém (ETICS) MAMUT-THERM Ma, zvaný ETICS v dalším textu, je navržen a prováděn v souladu s návrhovými a montážními pokyny držitele ETA, uloženými v Technickém a zkušebním ústavu stavebním Praha s.p. (TZÚS), pobočka České Budějovice. ETICS se skládá z následujících součástí, které jsou vyráběny držitelem ETA nebo jeho subdodavatelem, z těch se poté zabudovává do stavby.
C9: Tento systém je prodáván pod jedním obchodním názvem ve skladbách vyplývajících z všeobecné definice výrobku.
C11: Definice výrobku | E11: Součásti | G11: Spotřeba (kg/m2) | H11: Tloušťka (mm)
C13: Mechanicky připevňovaný ETICS s doplňkovým lepením (minimální plocha lepení 30% povrchu desky MW).
C14: Národní prováděcí předpisy musí být brány v úvahu.
C15: Izolační vrstva – IV a související způsob upevnění | D15: Lepicí hmota | E15: MAMUT Flex T | G15: 3,0 - 5,0 suché směsi | H15: -
E16: Stav při dodání: prášek
E17: Postup přípravy: prášek vyžadující přípravek vody 0,25 l/kg
E18: Hlavní součásti výrobku: portlandský cement, plnivo o zrnitosti 0-0,7mm, speciální přísady
D19: Izolační výrobek | E19: tuhá tepelně izolační deska kvalitativní třídy A dle TP CZB 05/2007
E20: FASROCK (výrobce Rockwool a.s.) | G20: - | H20: 60 - 500
E21: NOBASIL FKD (výrobce Knauf Insulation s.r.o.) | G21: - | H21: 60 - 500
E22: NOBASIL FKD S Thermal (výrobce Knauf Insulation s.r.o.) | G22: - | H22: 60 - 180
D23: kotvicí hmoždinky | E23: ejotherm STR U 2G | F23: ETA-04/0023 | G23: dle PD | H23: -
E24: plastové šroubovací hmoždinky pro povrchovou montáž
E25: ejotherm STR U 2G +VT 2G | F25: ETA-04/0023 | G25: dle PD | H25: -
E26: plastové šroubovací hmoždinky s rozšiř.talířkem pro zapuštěnou montáž
E27: EJOT H1 eco | F27: ETA-11/0192 | G27: dle PD | H27: -
E28: plastové natloukací hmoždinky pro povrchovou montáž
E29: BRAVOLL PTH-KZ 60/8 | F29: ETA-06/0055 | G29: dle PD | H29: -
E30: plastové zatloukací hmoždinky pro povrchovou montáž
E31: BRAVOLL PTH-S | F31: ETA-08/0267 | G31: dle PD | H31: -
E32: plastové šroubovací hmoždinky pro povrchovou montáž
E33: BRAVOLL PTH-S + ZT 100 | F33: ETA-08/0267 | G33: dle PD | H33: -
E34: plastové šroubovací hmoždinky s rozšiř.talířkem pro zapuštěnou montáž
E35: BRAVOLL PTH-SX | F35: ETA-10/0028 | G35: dle PD | H35: -
E36: plastové šroubovcí hmoždinky pro povrchovou montáž
E37: BRAVOLL PTH-X | F37: ETA-13/0951 | G37: dle PD | H37: -
E38: plastové zatloukací hmoždinky pro povrchovou montáž
E39: BRAVOLL PTH-EX | F39: ETA-13/0951 | G39: dle PD | H39: -
E40: plastové zatloukací hmoždinky pro povrchovou montáž
E41: fischer TERMOFIX CF 8 | F41: ETA-07/0287 | G41: dle PD | H41: -
E42: plastové zatloukací hmoždinky pro povrchovou montáž
E43: fischer termoz PN 8 | F43: ETA-09/0171 | G43: dle PD | H43: -
E44: plastové zatloukací hmoždinky pro povrchovou montáž
E45: fischer Termoz CN 8 | F45: ETA-09/0394 | G45: dle PD | H45: -
E46: plastové zatloukací hmoždinky pro povrchovou montáž
E47: fischer TERMOZ 8 U | F47: ETA-02/0019 | G47: dle PD | H47: -
E48: plastové šroubovací hmoždinky pro povrchovou montáž
E49: fischer termoz CS 8 | F49: ETA-14/0372 | G49: dle PD | H49: -
E50: plastové šroubovací hmoždinky pro povrchovou montáž
E51: fischer termoz CS 8 DT 110 V | F51: ETA-14/0372 | G51: dle PD | H51: -
E52: plastové šroubovací hmoždinky s rozšiř.talířkem pro zapuštěnou montáž
E53: WKTHERM ø 8 | F53: ETA-11/0232 | G53: dle PD | H53: -
E54: plastové zatloukací hmoždinky pro povrchovou montáž
E55: eco drive | F55: ETA-13/0107 | G55: dle PD | H55: -
E56: plastové šroubovací hmoždinky s rozšiř.talířkem pro zapuštěnou montáž
E57: eco drive S | F57: ETA-13/0107 | G57: dle PD | H57: -
E58: plastové šroubovací hmoždinky s rozšiř.talířkem pro zapuštěnou montáž
E59: WKTHERM S | F59: ETA-13/0724 | G59: dle PD | H59: -
E60: plastové šroubovací hmoždinky pro povrchovou montáž
E61: FIXPLUG ø 8 | F61: ETA-11/0231 | G61: dle PD | H61: -
E62: plastové zatloukací hmoždinky pro povrchovou montáž
E63: FIXPLUG ø 10 | F63: ETA-11/0231 | G63: dle PD | H63: -
E64: plastové zatloukací hmoždinky pro povrchovou montáž
E65: WKRET-MET-LFN ø8; WKRET-MET-LFM ø8 | F65: ETA-06/0080 | G65: dle PD | H65: -
E66: plastové zatloukací hmoždinky pro povrchovou montáž
E67: WKRET-MET-LFN ø10; WKRET-MET-LFM ø10 | F67: ETA-06/0105 | G67: dle PD | H67: -
E68: plastové zatloukací hmoždinky pro povrchovou montáž
E69: WKRET-MET-LTX ø10; WKRET-MET-LMX ø10 | F69: ETA-08/0172 | G69: dle PD | H69: -
E70: plastové zatloukací hmoždinky pro povrchovou montáž
E71: WKRET-MET-LTX ø8; WKRET-MET-LMX ø8 | F71: ETA-09/0001 | G71: dle PD | H71: -
E72: plastové zatloukací hmoždinky pro povrchovou montáž
E73: Talířová hmoždinka TTH 10/60-La | F73: ETA-09/0318 | G73: dle PD | H73: -
E74: plastové zatloukací hmoždinky pro povrchovou montáž
C75: Základní vrstva – ZV | D75: Malta základní vrstvy – armovací hmota | E75: MAMUT Flex T | G75: 5,0 - 6,5 | H75: 4 - 5
E76: Stav při dodání: prášek
E77: Postup přípravy: prášek vyžadující přípravek vody 0,25 l/kg
E78: Hlavní součásti výrobku: portlandský cement, plnivo o zrnitosti 0-0,7mm, speciální přísady
D79: Výztuž | E79: Skleněná síťovina pro ETICS
E80: VERTEX R 131 A101 (rozměry mřížky 3,5 x 3,5 mm)
C82: Povrchová úprava – PÚ | D82: Penetrační nátěr | E82: MAMUT Kontakt | G82: 0,20 l/m2 | H82: -
E83: Stav při dodání: tekutina připravená k použití
E84: Postup přípravy: neředit, promíchat
E85: Hlavní součásti výrobku: umělopryskyřičná disperze, minerální přísady
E86: Použití: penetrační nátěr základní vrstvy určený pro konečné povrchové úpravy MAMUT
D87: Konečná povrchová úprava | E87: MAMUT Silikon Z | G87: 2,5 – 3,8 dle max.velikosti zrna | H87: Dle max. velikosti zrna
E88: silikonová zatíraná omítka -max. zrno 1,5; 2,0; 3,0mm
E89: Stav při dodání: pasta připravená k použití
E90: Složení: směs kameniva, pigmentů, plniv a pojiva na bázi silikonové pryskyřice
E91: MAMUT Silikon R | G91: 2,4 – 3,7 dle max.velikosti zrna | H91: Dle max. velikosti zrna
E92: silikonová rýhovaná omítka -max. zrno 1,5; 2,0; 3,0mm
E93: Stav při dodání: pasta připravená k použití
E94: Složení: směs kameniva, pigmentů, plniv a pojiva na bázi silikonové pryskyřice
D95: Příslušenství | E95: Zůstává na zodpovědnosti držitele ETA.
C97: Zamýšlené použití:
C98: Tento ETICS MAMUT-THERM Ma se uplatňuje na venkovních stěnách budov. Tyto stěny jsou vytvořeny zděním (z cihel, bloků, kamene…) nebo z betonu (monolitického nebo z prefabrikovaných panelů) s třídou reakce na oheň A1 nebo A2-s2,d0 dle EN 13501-1 nebo A1 dle doplňujícího EC 96/603/EC. ETICS je navrhován tak, aby dodával stěnám odpovídající tepelnou izolaci. ETICS musí být navržen a proveden podle pokynů držitele schválení (ETA) pro jejich projektování a montáž. Systém se skládá ze součástí, které vyrábí držitel schválení (ETA) nebo jejich dodavatel. Držitel schválení (ETA) je finálně zodpovědný za systém. Všechny součásti systému musejí být specifikovány držitelem schválení (ETA). ETICS je vyroben jako nenosný stavební prvek. Nepůsobí přímo ke zvýšení stability zdi, na níž je aplikován, není určen pro zajištění vzduchotěsnosti stavební konstrukce, ale působí proti vlivům počasí. ETICS může být použit jak na nových, tak i na stávajících (rekonstruovaných) vertikálních zdech. Může být také použit na horizontálních nebo nakloněných površích, které nejsou vystaveny dešťovým srážkám. Účelem ETICS není zajišťování neprodyšnosti budovy. Způsob upevnění, návrh konkrétní skladby a vlastní provádění na stávající obvodovou stěnu závisí na vlastnostech podkladu a konkrétních okrajových podmínkách budovy. Ustanovení tohoto Evropského technického schválení vycházejí z předpokladu životnosti 25 roků dotčeného ETICS, za předpokladu jeho řádného užívání a údržby. Uvedený údaj životnosti však nelze považovat za záruku výrobce nebo schvalovacího orgánu, neboť slouží jen jako prostředek k volbě vhodných produktů s ohledem na očekávanou ekonomicky přiměřenou životnost díla.
B99: Dle zákona 22/1997 Sb. v platném znění, zejména pak Nařízení vlády č. 163/2002 Sb.v platném znění, jsou tepelně izolační kompozitní systémy (ETICS) stanovenými výrobky. Z pohledu výše uvedeného zákona ve znění pozdějších předpisů vyplývá, že ETICS je brán jako výrobek a jako takový musí být nejprve odzkoušen v akreditovaných zkušebnách a certifikován. Odpovědnost podle příslušných předpisů pro stavební výrobky nese společnost MAMUT-THERM s.r.o. za ty specifikované ETICS, které sama, jako sestavy součástí, uvádí na trh. Každý ETICS je jednoznačně definovaným výrobkem, který má určenou skladbu komponentů, které na sebe vzájemně navazují. Záměnou komponentů, nedodržením skladby nebo nedodržením technologického postupu ETICS k odborné montáži, určených výrobcem, je hrubým zásahem do charakteristiky výrobku a vzniklý produkt již přestává být stanoveným a tedy certifikovaným výrobkem.

Sheet M-T Md
C3: Všeobecná definice výrobku ETICS MAMUT-THERM Md a zamýšlené použití
C5: ETA 17/0386
C6: Reakce na oheň Evropská třída dle EN 13501-1: A2 – s1, d0
C8: Vnější tepelně izolační kompozitní systém (ETICS) MAMUT-THERM Md, zvaný ETICS v dalším textu, je navržen a prováděn v souladu s návrhovými a montážními pokyny držitele ETA, uloženými v Technickém a zkušebním ústavu stavebním Praha s.p. (TZÚS), pobočka České Budějovice. ETICS se skládá z následujících součástí, které jsou vyráběny držitelem ETA nebo jeho subdodavatelem, z těch se poté zabudovává do stavby.
C9: Tento systém je prodáván pod jedním obchodním názvem ve skladbách vyplývajících z všeobecné definice výrobku.
C11: Definice výrobku | E11: Součásti | G11: Spotřeba (kg/m2) | H11: Tloušťka (mm)
C13: Mechanicky připevňovaný ETICS s doplňkovým lepením (minimální plocha lepení 30% povrchu desky MW).
C14: Národní prováděcí předpisy musí být brány v úvahu. | L14: FKS S | M14: MW-EN 13162-T5-CS(10)30-TR10-WS-WL(P)-MU1
C15: Izolační vrstva – IV a související způsob upevnění | D15: Lepicí hmota | E15: MAMUT Flex T | G15: 3,0 - 5,0 suché směsi | H15: max. 10 | L15: isover tF ProFi | M15: MW-EN 13162-T5-DS(TH)-CS(10)30-TR10-WS-WL(P)-MU1
E16: Stav při dodání: prášek | L16: FRONTROCK S | M16: MW-EN 13162–T5-DS(70,90)-CS(10)30-TR10-WS–WL(P)-MU1
E17: Postup přípravy: prášek vyžadující přípravek vody 0,25 l/kg
E18: Hlavní součásti výrobku: portlandský cement, plnivo o zrnitosti 0-0,7mm, speciální přísady
D19: Izolační výrobek | E19: Desky z minerální vlny (MW"deska", TR 15) MW-EN 13162–T5–DS(70,90)–TR15-WS–WL(P)–MU1 | G19: - | H19: 60 - 500
E20: Desky z minerální vlny (MW"deska", TR 10) MW-EN 13162–T5–DS(70,90)–TR10-WS–WL(P)–MU1 | G20: - | H20: 60 - 180 | L20: Isover TF | M20: MW-EN 13162-T5-DS(TH)-CS(10)40-TR15-WS-WL(P)-MU1
E21: ejotherm STR U 2G | F21: ETA-04/0023 | G21: dle PD | H21: -
E22: plastové šroubovací hmoždinky pro povrchovou montáž
E23: ejotherm STR U 2G +VT 2G | F23: ETA-04/0023 | G23: dle PD | H23: -
E24: plastové šroubovací hmoždinky s rozšiř.talířkem pro zapuštěnou montáž
E25: EJOT H1 eco | F25: ETA-11/0192 | G25: dle PD | H25: -
E26: plastové natloukací hmoždinky pro povrchovou montáž
E27: BRAVOLL PTH-KZ 60/8 | F27: ETA-06/0055 | G27: dle PD | H27: -
E28: plastové zatloukací hmoždinky pro povrchovou montáž
E29: BRAVOLL PTH-S | F29: ETA-08/0267 | G29: dle PD | H29: -
E30: plastové šroubovací hmoždinky pro povrchovou montáž
E31: BRAVOLL PTH-S + ZT 100 | F31: ETA-08/0267 | G31: dle PD | H31: -
E32: plastové šroubovací hmoždinky s rozšiř.talířkem pro zapuštěnou montáž
E33: BRAVOLL PTH-SX | F33: ETA-10/0028 | G33: dle PD | H33: -
E34: plastové šroubovcí hmoždinky pro povrchovou montáž
E35: BRAVOLL PTH-X | F35: ETA-13/0951 | G35: dle PD | H35: -
E36: plastové zatloukací hmoždinky pro povrchovou montáž
E37: BRAVOLL PTH-EX | F37: ETA-13/0951 | G37: dle PD | H37: -
E38: plastové zatloukací hmoždinky pro povrchovou montáž
E39: fischer TERMOFIX CF 8 | F39: ETA-07/0287 | G39: dle PD | H39: -
E40: plastové zatloukací hmoždinky pro povrchovou montáž
E41: fischer termoz PN 8 | F41: ETA-09/0171 | G41: dle PD | H41: -
E42: plastové zatloukací hmoždinky pro povrchovou montáž
E43: fischer Termoz CN 8 | F43: ETA-09/0394 | G43: dle PD | H43: -
E44: plastové zatloukací hmoždinky pro povrchovou montáž
E45: fischer TERMOZ 8 U | F45: ETA-02/0019 | G45: dle PD | H45: -
E46: plastové šroubovací hmoždinky pro povrchovou montáž
E47: fischer termoz CS 8 | F47: ETA-14/0372 | G47: dle PD | H47: -
E48: plastové šroubovací hmoždinky pro povrchovou montáž
E49: fischer termoz CS 8 DT 110 V | F49: ETA-14/0372 | G49: dle PD | H49: -
E50: plastové šroubovací hmoždinky s rozšiř.talířkem pro zapuštěnou montáž
E51: WKTHERM ø 8 | F51: ETA-11/0232 | G51: dle PD | H51: -
E52: plastové zatloukací hmoždinky pro povrchovou montáž
E53: eco drive | F53: ETA-13/0107 | G53: dle PD | H53: -
E54: plastové šroubovací hmoždinky s rozšiř.talířkem pro zapuštěnou montáž
E55: eco drive S | F55: ETA-13/0107 | G55: dle PD | H55: -
E56: plastové šroubovací hmoždinky s rozšiř.talířkem pro zapuštěnou montáž
E57: WKTHERM S | F57: ETA-13/0724 | G57: dle PD | H57: -
E58: plastové šroubovací hmoždinky pro povrchovou montáž
E59: FIXPLUG ø 8 | F59: ETA-11/0231 | G59: dle PD | H59: -
E60: plastové zatloukací hmoždinky pro povrchovou montáž
E61: FIXPLUG ø 10 | F61: ETA-11/0231 | G61: dle PD | H61: -
E62: plastové zatloukací hmoždinky pro povrchovou montáž
E63: WKRET-MET-LFN ø8; WKRET-MET-LFM ø8 | F63: ETA-06/0080 | G63: dle PD | H63: -
E64: plastové zatloukací hmoždinky pro povrchovou montáž
E65: WKRET-MET-LFN ø10; WKRET-MET-LFM ø10 | F65: ETA-06/0105 | G65: dle PD | H65: -
E66: plastové zatloukací hmoždinky pro povrchovou montáž
E67: WKRET-MET-LTX ø10; WKRET-MET-LMX ø10 | F67: ETA-08/0172 | G67: dle PD | H67: -
E68: plastové zatloukací hmoždinky pro povrchovou montáž
E69: WKRET-MET-LTX ø8; WKRET-MET-LMX ø8 | F69: ETA-09/0001 | G69: dle PD | H69: -
E70: plastové zatloukací hmoždinky pro povrchovou montáž
E71: Talířová hmoždinka TTH 10/60-La | F71: ETA-09/0318 | G71: dle PD | H71: -
E72: plastové zatloukací hmoždinky pro povrchovou montáž
C73: Základní vrstva – ZV | D73: Malta základní vrstvy – armovací hmota | E73: MAMUT Flex T | G73: 5,0 - 6,5 | H73: 4 - 5
E74: Stav při dodání: prášek
E75: Postup přípravy: prášek vyžadující přípravek vody 0,25 l/kg
E76: Hlavní součásti výrobku: portlandský cement, plnivo o zrnitosti 0-0,7mm, speciální přísady
D77: Výztuž | E77: Skleněná síťovina pro ETICS | G77: - | H77: -
E78: VERTEX R 131 A101 (rozměry mřížky 3,5 x 3,8 mm)
E79: VERTEX R 117 A101 (rozměry mřížky 4,0 x 4,5 mm)
E80: Valmiera SSA-1363-SM (rozměry mřížky 5,0 x 4,0 mm)
C81: Povrchová úprava – PÚ | D81: Penetrační nátěr | E81: MAMUT Kontakt | G81: 0,20 l/m2 | H81: -
E82: Stav při dodání: tekutina připravená k použití
E83: Postup přípravy: neředit, promíchat
E84: Hlavní součásti výrobku: umělopryskyřičná disperze, minerální přísady
E85: Použití: penetrační nátěr základní vrstvy určený pro konečné povrchové úpravy MAMUT
D86: Konečná povrchová úprava | E86: MAMUT Silikát Z | G86: 2,5 – 3,8 dle max.velikosti zrna | H86: Dle max. velikosti zrna
E87: silikátová zatíraná omítka -max. zrno 1,5; 2,0; 3,0mm
E88: Stav při dodání: pasta připravená k použití
E89: Složení: směs kameniva, pigmentů, plniv a pojiva na bázi vodního skla
E90: MAMUT Silikát R | G90: 2,4 – 3,7 dle max.velikosti zrna | H90: Dle max. velikosti zrna
E91: silikátová rýhovaná omítka -max. zrno 1,5; 2,0; 3,0mm
E92: Stav při dodání: pasta připravená k použití
E93: Složení: směs kameniva, pigmentů, plniv a pojiva na bázi vodního skla
E94: MAMUT Silikon Z | G94: 2,5 – 3,8 dle max.velikosti zrna | H94: Dle max. velikosti zrna
E95: silikonová zatíraná omítka -max. zrno 1,5; 2,0; 3,0mm
E96: Stav při dodání: pasta připravená k použití
E97: Složení: směs kameniva, pigmentů, plniv a pojiva na bázi silikonové pryskyřice
E98: MAMUT Silikon R | G98: 2,4 – 3,7 dle max.velikosti zrna | H98: Dle max. velikosti zrna
E99: silikonová rýhovaná omítka -max. zrno 1,5; 2,0; 3,0mm
E100: Stav při dodání: pasta připravená k použití
E101: Složení: směs kameniva, pigmentů, plniv a pojiva na bázi silikonové pryskyřice
D102: Příslušenství | E102: Zůstává na zodpovědnosti držitele ETA.
C104: Zamýšlené použití:
C105: Tento ETICS MAMUT-THERM Md se uplatňuje na venkovních stěnách budov. Tyto stěny jsou vytvořeny zděním (z cihel, bloků, kamene…) nebo z betonu (monolitického nebo z prefabrikovaných panelů) s třídou reakce na oheň A1 nebo A2-s2,d0 dle EN 13501-1 nebo A1 dle doplňujícího EC 96/603/EC. ETICS je navrhován tak, aby dodával stěnám odpovídající tepelnou izolaci. ETICS musí být navržen a proveden podle pokynů držitele schválení (ETA) pro jejich projektování a montáž. Systém se skládá ze součástí, které vyrábí držitel schválení (ETA) nebo jejich dodavatel. Držitel schválení (ETA) je finálně zodpovědný za systém. Všechny součásti systému musejí být specifikovány držitelem schválení (ETA). ETICS je vyroben jako nenosný stavební prvek. Nepůsobí přímo ke zvýšení stability zdi, na níž je aplikován, není určen pro zajištění vzduchotěsnosti stavební konstrukce, ale působí proti vlivům počasí. ETICS může být použit jak na nových, tak i na stávajících (rekonstruovaných) vertikálních zdech. Může být také použit na horizontálních nebo nakloněných površích, které nejsou vystaveny dešťovým srážkám. Účelem ETICS není zajišťování neprodyšnosti budovy. Způsob upevnění, návrh konkrétní skladby a vlastní provádění na stávající obvodovou stěnu závisí na vlastnostech podkladu a konkrétních okrajových podmínkách budovy. Ustanovení tohoto Evropského technického schválení vycházejí z předpokladu životnosti 25 roků dotčeného ETICS, za předpokladu jeho řádného užívání a údržby. Uvedený údaj životnosti však nelze považovat za záruku výrobce nebo schvalovacího orgánu, neboť slouží jen jako prostředek k volbě vhodných produktů s ohledem na očekávanou ekonomicky přiměřenou životnost díla.
B106: Dle zákona 22/1997 Sb. v platném znění, zejména pak Nařízení vlády č. 163/2002 Sb.v platném znění, jsou tepelně izolační kompozitní systémy (ETICS) stanovenými výrobky. Z pohledu výše uvedeného zákona ve znění pozdějších předpisů vyplývá, že ETICS je brán jako výrobek a jako takový musí být nejprve odzkoušen v akreditovaných zkušebnách a certifikován. Odpovědnost podle příslušných předpisů pro stavební výrobky nese společnost MAMUT-THERM s.r.o. za ty specifikované ETICS, které sama, jako sestavy součástí, uvádí na trh. Každý ETICS je jednoznačně definovaným výrobkem, který má určenou skladbu komponentů, které na sebe vzájemně navazují. Záměnou komponentů, nedodržením skladby nebo nedodržením technologického postupu ETICS k odborné montáži, určených výrobcem, je hrubým zásahem do charakteristiky výrobku a vzniklý produkt již přestává být stanoveným a tedy certifikovaným výrobkem.

Sheet M-T Ml
C3: Všeobecná definice výrobku ETICS MAMUT-THERM Ml a zamýšlené použití
C5: ETA 17/0386
C6: Reakce na oheň Evropská třída dle EN 13501-1: A2 – s1, d0
C8: Vnější tepelně izolační kompozitní systém (ETICS) MAMUT-THERM Ml, zvaný ETICS v dalším textu, je navržen a prováděn v souladu s návrhovými a montážními pokyny držitele ETA, uloženými v Technickém a zkušebním ústavu stavebním Praha s.p. (TZÚS), pobočka České Budějovice. ETICS se skládá z následujících součástí, které jsou vyráběny držitelem ETA nebo jeho subdodavatelem, z těch se poté zabudovává do stavby.
C9: Tento systém je prodáván pod jedním obchodním názvem ve skladbách vyplývajících z všeobecné definice výrobku.
C11: Definice výrobku | E11: Součásti | G11: Spotřeba (kg/m2) | H11: Tloušťka (mm)
C13: Plně lepený ETICS s doplňkovým mechanickým kotvením.
C14: Národní prováděcí předpisy musí být brány v úvahu.
C15: Izolační vrstva – IV a související způsob upevnění | D15: Lepicí hmota | E15: MAMUT Flex T | G15: 3,0 - 5,0 suché směsi | H15: max 10
E16: Stav při dodání: prášek
E17: Postup přípravy: prášek vyžadující přípravek vody 0,25 l/kg
E18: Hlavní součásti výrobku: portlandský cement, plnivo o zrnitosti 0-0,7mm, speciální přísady
D19: Izolační výrobek | E19: Lamely z minerální vlny (MW "lamela" dle EN 13162, TR 80) s vlastnostmi min.: MW-EN 13162-T5-DS(70,90)-TR80-WS-WL(P)-MU1 | G19: - | H19: 60 - 500
E20: Kotvení stěn je nutné od tloušťky izolace ≥ 180mm a nebo je-li nosný podklad opatřen povrchvou úpravou (omítka, nátěr,...) a dále pak v okrajových oblastech; je-li izolant kotven, musí se použít hmoždinky s rozšiřujícím přídavným talířem. Nemá-li hmoždinka systémový rozšiřující talíř, není ji možno použít.
E21: ejotherm STR U 2G | F21: ETA-04/0023 | G21: dle PD | H21: -
E22: plastové šroubovací hmoždinky pro povrchovou montáž
E23: ejotherm STR U 2G +VT 2G | F23: ETA-04/0023 | G23: dle PD | H23: -
E24: plastové šroubovací hmoždinky s rozšiř.talířkem pro zapuštěnou montáž
E25: EJOT H1 eco | F25: ETA-11/0192 | G25: dle PD | H25: -
E26: plastové natloukací hmoždinky pro povrchovou montáž
E27: BRAVOLL PTH-KZ 60/8 | F27: ETA-06/0055 | G27: dle PD | H27: -
E28: plastové zatloukací hmoždinky pro povrchovou montáž
E29: BRAVOLL PTH-S | F29: ETA-08/0267 | G29: dle PD | H29: -
E30: plastové šroubovací hmoždinky pro povrchovou montáž
E31: BRAVOLL PTH-S + ZT 100 | F31: ETA-08/0267 | G31: dle PD | H31: -
E32: plastové šroubovací hmoždinky s rozšiř.talířkem pro zapuštěnou montáž
E33: BRAVOLL PTH-SX | F33: ETA-10/0028 | G33: dle PD | H33: -
E34: plastové šroubovcí hmoždinky pro povrchovou montáž
E35: BRAVOLL PTH-X | F35: ETA-13/0951 | G35: dle PD | H35: -
E36: plastové zatloukací hmoždinky pro povrchovou montáž
E37: BRAVOLL PTH-EX | F37: ETA-13/0951 | G37: dle PD | H37: -
E38: plastové zatloukací hmoždinky pro povrchovou montáž
E39: fischer TERMOFIX CF 8 | F39: ETA-07/0287 | G39: dle PD | H39: -
E40: plastové zatloukací hmoždinky pro povrchovou montáž
E41: fischer termoz PN 8 | F41: ETA-09/0171 | G41: dle PD | H41: -
E42: plastové zatloukací hmoždinky pro povrchovou montáž
E43: fischer Termoz CN 8 | F43: ETA-09/0394 | G43: dle PD | H43: -
E44: plastové zatloukací hmoždinky pro povrchovou montáž
E45: fischer TERMOZ 8 U | F45: ETA-02/0019 | G45: dle PD | H45: -
E46: plastové šroubovací hmoždinky pro povrchovou montáž
E47: fischer termoz CS 8 | F47: ETA-14/0372 | G47: dle PD | H47: -
E48: plastové šroubovací hmoždinky pro povrchovou montáž
E49: fischer termoz CS 8 DT 110 V | F49: ETA-14/0372 | G49: dle PD | H49: -
E50: plastové šroubovací hmoždinky s rozšiř.talířkem pro zapuštěnou montáž
E51: WKTHERM ø 8 | F51: ETA-11/0232 | G51: dle PD | H51: -
E52: plastové zatloukací hmoždinky pro povrchovou montáž
E53: eco drive | F53: ETA-13/0107 | G53: dle PD | H53: -
E54: plastové šroubovací hmoždinky s rozšiř.talířkem pro zapuštěnou montáž
E55: eco drive S | F55: ETA-13/0107 | G55: dle PD | H55: -
E56: plastové šroubovací hmoždinky s rozšiř.talířkem pro zapuštěnou montáž
E57: WKTHERM S | F57: ETA-13/0724 | G57: dle PD | H57: -
E58: plastové šroubovací hmoždinky pro povrchovou montáž
E59: FIXPLUG ø 8 | F59: ETA-11/0231 | G59: dle PD | H59: -
E60: plastové zatloukací hmoždinky pro povrchovou montáž
E61: FIXPLUG ø 10 | F61: ETA-11/0231 | G61: dle PD | H61: -
E62: plastové zatloukací hmoždinky pro povrchovou montáž
E63: WKRET-MET-LFN ø8; WKRET-MET-LFM ø8 | F63: ETA-06/0080 | G63: dle PD | H63: -
E64: plastové zatloukací hmoždinky pro povrchovou montáž
E65: WKRET-MET-LFN ø10; WKRET-MET-LFM ø10 | F65: ETA-06/0105 | G65: dle PD | H65: -
E66: plastové zatloukací hmoždinky pro povrchovou montáž
E67: WKRET-MET-LTX ø10; WKRET-MET-LMX ø10 | F67: ETA-08/0172 | G67: dle PD | H67: -
E68: plastové zatloukací hmoždinky pro povrchovou montáž
E69: WKRET-MET-LTX ø8; WKRET-MET-LMX ø8 | F69: ETA-09/0001 | G69: dle PD | H69: -
E70: plastové zatloukací hmoždinky pro povrchovou montáž
E71: Talířová hmoždinka TTH 10/60-La | F71: ETA-09/0318 | G71: dle PD | H71: -
E72: plastové zatloukací hmoždinky pro povrchovou montáž
C73: Základní vrstva – ZV | D73: Malta základní vrstvy – armovací hmota | E73: MAMUT Flex T | G73: 5,0 - 6,5 | H73: 4 - 5
E74: Stav při dodání: prášek
E75: Postup přípravy: prášek vyžadující přípravek vody 0,25 l/kg
E76: Hlavní součásti výrobku: portlandský cement, plnivo o zrnitosti 0-0,7mm, speciální přísady
D77: Výztuž | E77: Skleněná síťovina pro ETICS
E78: VERTEX R 131 A101 (rozměry mřížky 3,5 x 3,5 mm)
E79: Valmiera SSA-1363-SM (rozměry mřížky 5,0 x 4,0 mm)
C80: Povrchová úprava – PÚ | D80: Penetrační nátěr | E80: MAMUT Kontakt | G80: 0,20 l/m2 | H80: -
E81: Stav při dodání: tekutina připravená k použití
E82: Postup přípravy: neředit, promíchat
E83: Hlavní součásti výrobku: umělopryskyřičná disperze, minerální přísady
E84: Použití: penetrační nátěr základní vrstvy určený pro konečné povrchové úpravy MAMUT
E85: Minerální omítky (použity vždy s ochranným nátěrem MAMUT Color EG)
D87: Konečná povrchová úprava | E87: MAMUT ip 44 | G87: 2,5 – 3,8 dle max.velikosti zrna | H87: Dle max. velikosti zrna
E88: minerální omítka zatíraná - max.zrno 1,5; 2,0; 3,0mm)
E89: Stav při dodání: prášek
E90: Postup přípravy: prášek vyžadující přípravek vody 0,23-0,3l/kg
E91: Hlavní součásti výrobku: bílý vápenný hydrát, bílý cement, kamenivo, anorganické stálobarevné pigmenty, speciální přísady
E93: MAMUT ip 42 | G93: 2,4 – 3,7 dle max.velikosti zrna | H93: Dle max. velikosti zrna
E94: minerální omítka rýhovaná - max.zrno 2,0; 3,0mm)
E95: Stav při dodání: prášek
E96: Postup přípravy: prášek vyžadující přípravek vody 0,23-0,3l/kg
E97: Hlavní součásti výrobku:bílý vápenný hydrát, bílý cement, kamenivo, anorganické stálobarevné pigmenty, speciální přísady
E98: Pastovité omítky
E99: MAMUT Silikát Z | G99: 2,5 – 3,8 dle max.velikosti zrna | H99: Dle max. velikosti zrna
E100: silikátová zatíraná omítka -max. zrno 1,5; 2,0; 3,0mm
E101: Stav při dodání: pasta připravená k použití
E102: Složení: směs kameniva, pigmentů, plniv a pojiva na bázi vodního skla
E104: MAMUT Silikát R | G104: 2,4 – 3,7 dle max.velikosti zrna | H104: Dle max. velikosti zrna
E105: silikátová rýhovaná omítka -max. zrno 1,5; 2,0; 3,0mm
E106: Stav při dodání: pasta připravená k použití
E107: Složení: směs kameniva, pigmentů, plniv a pojiva na bázi vodního skla
D108: Ochranný nátěr (pro minerální povrchové úpravy vždy, pro ostatní povrchové úpravy se nepoužívá) | E108: MAMUT Color EG | G108: 0,2 -0,3 l/m2 | H108: -
E109: Egalizační nátěr
E110: Stav při dodání: tekutina připravená k použití
E111: Postup přípravy: neředit
E112: Hlavní součásti výrobku: bezrozpouštědlový vodní nátěr na bázi umělopryskyřičné disperze a minerálních přísad
E113: Použití: nátěr minerálních omítek MAMUT ip44 a MAMUT ip42 zajišťující sjednocení barevnosti
D114: Příslušenství | E114: Zůstává na zodpovědnosti držitele ETA.
C116: Zamýšlené použití:
C117: Tento ETICS MAMUT-THERM Ml se uplatňuje na venkovních stěnách budov. Tyto stěny jsou vytvořeny zděním (z cihel, bloků, kamene…) nebo z betonu (monolitického nebo z prefabrikovaných panelů) s třídou reakce na oheň A1 nebo A2-s2,d0 dle EN 13501-1 nebo A1 dle doplňujícího EC 96/603/EC. ETICS je navrhován tak, aby dodával stěnám odpovídající tepelnou izolaci. ETICS musí být navržen a proveden podle pokynů držitele schválení (ETA) pro jejich projektování a montáž. Systém se skládá ze součástí, které vyrábí držitel schválení (ETA) nebo jejich dodavatel. Držitel schválení (ETA) je finálně zodpovědný za systém. Všechny součásti systému musejí být specifikovány držitelem schválení (ETA). ETICS je vyroben jako nenosný stavební prvek. Nepůsobí přímo ke zvýšení stability zdi, na níž je aplikován, není určen pro zajištění vzduchotěsnosti stavební konstrukce, ale působí proti vlivům počasí. ETICS může být použit jak na nových, tak i na stávajících (rekonstruovaných) vertikálních zdech. Může být také použit na horizontálních nebo nakloněných površích, které nejsou vystaveny dešťovým srážkám. Účelem ETICS není zajišťování neprodyšnosti budovy. Způsob upevnění, návrh konkrétní skladby a vlastní provádění na stávající obvodovou stěnu závisí na vlastnostech podkladu a konkrétních okrajových podmínkách budovy. Ustanovení tohoto Evropského technického schválení vycházejí z předpokladu životnosti 25 roků dotčeného ETICS, za předpokladu jeho řádného užívání a údržby. Uvedený údaj životnosti však nelze považovat za záruku výrobce nebo schvalovacího orgánu, neboť slouží jen jako prostředek k volbě vhodných produktů s ohledem na očekávanou ekonomicky přiměřenou životnost díla.
B118: Dle zákona 22/1997 Sb. v platném znění, zejména pak Nařízení vlády č. 163/2002 Sb.v platném znění, jsou tepelně izolační kompozitní systémy (ETICS) stanovenými výrobky. Z pohledu výše uvedeného zákona ve znění pozdějších předpisů vyplývá, že ETICS je brán jako výrobek a jako takový musí být nejprve odzkoušen v akreditovaných zkušebnách a certifikován. Odpovědnost podle příslušných předpisů pro stavební výrobky nese společnost MAMUT-THERM s.r.o. za ty specifikované ETICS, které sama, jako sestavy součástí, uvádí na trh. Každý ETICS je jednoznačně definovaným výrobkem, který má určenou skladbu komponentů, které na sebe vzájemně navazují. Záměnou komponentů, nedodržením skladby nebo nedodržením technologického postupu ETICS k odborné montáži, určených výrobcem, je hrubým zásahem do charakteristiky výrobku a vzniklý produkt již přestává být stanoveným a tedy certifikovaným výrobkem.

Sheet MAMUT-THERM Mu (hidden)
C3: Všeobecná definice výrobku ETICS MAMUT-THERM Mu a zamýšlené použití
C5: ETA 13/0396
C6: Reakce na oheň Evropská třída dle EN 13501-1: A2 – s1, d0
C8: Vnější tepelně izolační kompozitní systém (ETICS) MAMUT-THERM Mu, zvaný ETICS v dalším textu, je navržen a prováděn v souladu s návrhovými a montážními pokyny držitele ETA, uloženými v Technickém a zkušebním ústavu stavebním Praha s.p. (TZÚS), pobočka České Budějovice. ETICS se skládá z následujících součástí, které jsou vyráběny držitelem ETA nebo jeho subdodavatelem, z těch se poté zabudovává do stavby.
C9: Tento systém je prodáván pod jedním obchodním názvem ve skladbách vyplývajících z všeobecné definice výrobku.
C11: Definice výrobku | E11: Součásti | G11: Spotřeba (kg/m2) | H11: Tloušťka (mm)
C13: Mechanicky připevňovaný ETICS s doplňkovým lepením (minimální plocha lepení 30% povrchu desky MW).
C14: Národní prováděcí předpisy musí být brány v úvahu.
C15: Izolační vrstva – IV a související způsob upevnění | D15: Lepicí hmota | E15: MAMUT Uni | G15: 3,0 - 5,0 suché směsi | H15: -
E16: Stav při dodání: prášek
E17: Postup přípravy: prášek vyžadující přípravek vody 0,24 l/kg
E18: Hlavní součásti výrobku: portlandský cement, plnivo o zrnitosti 0-0,5mm, speciální přísady
D19: Izolační výrobek | E19: Desky z minerální vlny (MW"deska", TR 15) MW-EN 13162–T5–DS(T+)– DS(TH)–TR15-WS–WL(P)–MU5, | G19: - | H19: 50 - 300
E20: NOBASIL FKD S (výrobce Knauf Insulation s.r.o.) MW-EN 13162-T5-DS(TH)-CS(10)30-TR10-WS-WL(P)-MU3,5 | G20: - | H20: 60 - 180
E21: Desky z minerální vlny Frontrock MAX E (výrobce ROCKWOOL a.s.) MW-EN 13162-T5-DS(T+)-DS(TH)-CS(10)20-TR10-PL(5)250-WS-WL(P)-MU1 | G21: - | H21: 80 - 240
D22: Mechanicky kotvící prvky | E22: ejotherm NT U | F22: ETA-05/0009 | G22: dle PD | H22: -
E23: plastové zatloukací hmoždinky
E24: ejotherm STR U | F24: ETA-04/0023 | G24: dle PD | H24: -
E25: plastové šroubovací hmoždinky
E26: ejotherm STR U 2G | F26: ETA-04/0023 | G26: dle PD | H26: -
E27: plastové šroubovací hmoždinky
E28: ejotherm NTK U | F28: ETA-07/0026 | G28: dle PD | H28: -
E29: plastové zatloukací hmoždinky
E30: Ejot H1 eco | F30: ETA-11/0192 | G30: dle PD
E31: plastové natloukací hmoždinky
E32: Bravoll PTH 60/8-La, | F32: ETA-06/0055 | G32: dle PD | H32: -
E33: plastové zatloukací hmoždinky
E34: Bravoll PTH-KZ 60/8-La, | F34: ETA-06/0055 | G34: dle PD | H34: -
E35: plastové zatloukací hmoždinky
E36: Bravoll PTH-S 60/8-La | F36: ETA-08/0267 | G36: dle PD | H36: -
E37: plastové šroubovací hmoždinky
E38: Bravoll PTH-SX | F38: ETA-10/0028 | G38: dle PD | H38: -
E39: plastové šroubovací hmoždinky
E40: fischer TERMOZ 8 SV | F40: ETA-06/0180 | G40: dle PD | H40: -
E41: plastové šroubovací hmoždinky
E42: fischer TERMOZ 8N | F42: ETA-03/0019 | G42: dle PD | H42: -
E43: plastové zatloukací hmoždinky
E44: fischer TERMOZ 8NZ | F44: ETA-03/0019 | G44: dle PD | H44: -
E45: plastové zatloukací hmoždinky
E46: fischer TERMOZ CF 8 | F46: ETA-07/0287 | G46: dle PD | H46: -
E47: plastové zatloukací hmoždinky
E48: fischer TERMOZ CN8 | F48: ETA-09/0394 | G48: dle PD | H48: -
E49: plastové zatloukací hmoždinky
E50: fischer TERMOZ 8 U | F50: ETA-02/0019 | G50: dle PD | H50: -
E51: plastové šroubovací hmoždinky
E52: fischer TERMOZ 8 UZ | F52: ETA-02/0019 | G52: dle PD | H52: -
E53: plastové šroubovací hmoždinky
E54: fischer TERMOZ PN 8 | F54: ETA-09/0171 | G54: dle PD
E55: plastové šroubovací hmoždinky
E56: Hilti D8-FV | F56: ETA-07/0288 | G56: dle PD | H56: -
E57: plastové šroubovací hmoždinky
E58: Hilti XI-FV, | F58: ETA-03/0004 | G58: dle PD | H58: -
E59: plastové nastřelovací hmoždinky
E60: Hilti SX-FV | F60: ETA-03/0005 | G60: dle PD | H60: -
E61: plastové jednokroková hmoždinky
E62: Hilti SD-FV 8 | F62: ETA-03/0028 | G62: dle PD | H62: -
E63: plastové zatloukací hmoždinky
E64: Hilti SDK-FV 8 | F64: ETA-07/0302 | G64: dle PD | H64: -
E65: plastové zatloukací hmoždinky
E66: KEW TSD 8 | F66: ETA-04/0030 | G66: dle PD | H66: -
E67: plastové zatloukací hmoždinky
E68: KEW TSBD 8 | F68: ETA-08/0314 | G68: dle PD | H68: -
E69: plastové šroubovací hmoždinky
E70: KEW TSD-V | F70: ETA-08/0315 | G70: dle PD | H70: -
E71: plastové zatloukací hmoždinky
E72: TTH 10/60 | F72: ETA-09/0318 | G72: dle PD | H72: -
E73: plastové zatloukací hmoždinky
E74: KOELNER TFIX-8M | F74: ETA-07/0336 | G74: dle PD | H74: -
E75: plastové zatloukací hmoždinky
E76: KOELNER KI-8M | F76: ETA-06/0191 | G76: dle PD | H76: -
E77: plastové zatloukací hmoždinky
E78: KOELNER Kl-10, Kl-10M | F78: ETA-07/0291 | G78: dle PD | H78: -
E79: plastové zatloukací hmoždinky
E80: KOELNER KI-10N, KI-10NS | F80: ETA-07/0221 | G80: dle PD | H80: -
E81: plastové zatloukací hmoždinky
E82: Koelner TFIX-8S a TFIX-8ST | F82: ETA-11/0144 | G82: dle PD | H82: -
E83: plastové šroubovací hmoždinky
E84: WKRET-MET LFN 10, LFM 10 | F84: ETA-06/0105 | G84: dle PD | H84: -
E85: plastové zatloukací hmoždinky
E86: WKRET-MET LFN 8, LFM 8 | F86: ETA-06/0080 | G86: dle PD | H86: -
E87: plastové zatloukací hmoždinky
E88: WKRET-MET LTX 8, LMX 8 | F88: ETA-09/0001 | G88: dle PD | H88: -
E89: plastové zatloukací hmoždinky
E90: FIXPLUG ø 8, FIXPLUG ø 10 | F90: ETA-11/0144 | G90: dle PD | H90: -
E91: plastové zatloukací hmoždinky
E92: WKTHERM ø 8 | F92: ETA-11/0232 | G92: dle PD | H92: -
E93: plastové zatloukací hmoždinky
C94: Základní vrstva – ZV | D94: Malta základní vrstvy – armovací hmota | E94: MAMUT Uni | G94: 4,0 suché směsi | H94: 3
E95: Stav při dodání: prášek
E96: Postup přípravy: prášek vyžadující přípravek vody 0,24 l/kg
E97: Hlavní součásti výrobku: portlandský cement, plnivo o zrnitosti 0-0,5mm, speciální přísady
D98: Výztuž | E98: Skleněná síťovina pro ETICS | G98: 1,1-1,2 m²/m² | H98: -
E99: VERTEX R 117 A101
E100: VERTEX R 131 A101
E101: OMFA 117S
E102: OMFA 122
E103: Valmiera SSA-1363-SM , 165 g/m²
C104: Povrchová úprava – PÚ | D104: Penetrační nátěr | E104: MAMUT Kontakt Uni | G104: 0,20 l/m² | H104: -
E105: Stav při dodání: tekutina připravená k použití
E106: Postup přípravy: ředit 20% vody
E107: Hlavní součásti výrobku: akrylátová disperze, titandioxid, křemičitý písek, pigmenty, aditiva a změkčovadla
E108: Použití: penetrační nátěr základní vrstvy určený pro silikonové konečné povrchové úpravy MAMUT Silikon Uni
E109: MAMUT Silikon Uni Z | G109: dle ETA-13/0396 | H109: Dle max. velikosti zrna
E110: silikonová zatíraná omítka - dle ETA-13/0396
E111: Stav při dodání: pasta připravená k použití
E112: Postup přípravy: ředit maximálně 5% vody
E113: Složení: silikonová disperze, titandioxid, křemičitý písek, UV-stabilní pigmenty, aditiva a změkčovadla
E114: MAMUT Silikon Uni R | G114: dle ETA-13/0396 | H114: Dle max. velikosti zrna
E115: silikonová rýhovaná omítka - dle ETA-13/0396
E116: Stav při dodání: pasta připravená k použití
E117: Postup přípravy: ředit maximálně 5% vody
E118: Složení: směs kameniva, pigmentů, plniv a pojiva na bázi silikonové pryskyřice
D119: Příslušenství | E119: Odpovídá popisu dle § 3.2.2.5 ETAG 004 na zodpovědnosti držitele ETA.
C121: Zamýšlené použití:
C122: Tento ETICS MAMUT-THERM Mu se uplatňuje na venkovních stěnách budov. Tyto stěny jsou vytvořeny zděním (z cihel, bloků, kamene…) nebo z betonu (monolitického nebo z prefabrikovaných panelů) s třídou reakce na oheň A1 nebo A2-s2,d0 dle EN 13501-1 nebo A1 dle doplňujícího EC 96/603/EC. ETICS je navrhován tak, aby dodával stěnám odpovídající tepelnou izolaci. ETICS musí být navržen a proveden podle pokynů držitele schválení (ETA) pro jejich projektování a montáž. Systém se skládá ze součástí, které vyrábí držitel schválení (ETA) nebo jejich dodavatel. Držitel schválení (ETA) je finálně zodpovědný za systém. Všechny součásti systému musejí být specifikovány držitelem schválení (ETA). ETICS je vyroben jako nenosný stavební prvek. Nepůsobí přímo ke zvýšení stability zdi, na níž je aplikován, není určen pro zajištění vzduchotěsnosti stavební konstrukce, ale působí ke zvýšení odolnosti proti vlivům počasí. Musí zajišťovat minimální tepelný odpor přes 1,0 m2K/W. ETICS může být použit jak na nových, tak i na stávajících (rekonstruovaných) vertikálních zdech. Může být také použit na horizontálních nebo nakloněných površích, které nejsou vystaveny dešťovým srážkám. Účelem ETICS není zajišťování neprodyšnosti budovy. Způsob upevnění, návrh konkrétní skladby a vlastní provádění na stávající obvodovou stěnu závisí na vlastnostech podkladu a konkrétních okrajových podmínkách budovy. Musí být vzaty v úvahu požadavky kap. 4. a 7. (viz ETAG č. 004, vydání říjen 2011) a musí být proveden ve shodě s národními požadavky. Ustanovení tohoto Evropského technického schválení vycházejí z předpokladu životnosti 25 roků dotčeného ETICS, za předpokladu jeho řádného užívání a údržby. Uvedený údaj životnosti však nelze považovat za záruku výrobce nebo schvalovacího orgánu, neboť slouží jen jako prostředek k volbě vhodných produktů s ohledem na očekávanou ekonomicky přiměřenou životnost díla.
B123: Dle zákona 22/1997 Sb. v platném znění, zejména pak Nařízení vlády č. 163/2002 Sb.v platném znění, jsou tepelně izolační kompozitní systémy (ETICS) stanovenými výrobky. Z pohledu výše uvedeného zákona ve znění pozdějších předpisů vyplývá, že ETICS je brán jako výrobek a jako takový musí být nejprve odzkoušen v akreditovaných zkušebnách a certifikován. Odpovědnost podle příslušných předpisů pro stavební výrobky nese společnost MAMUT-THERM s.r.o. za ty specifikované ETICS, které sama, jako sestavy součástí, uvádí na trh. Každý ETICS je jednoznačně definovaným výrobkem, který má určenou skladbu komponentů, které na sebe vzájemně navazují. Záměnou komponentů, nedodržením skladby nebo nedodržením technologického postupu ETICS k odborné montáži, určených výrobcem, je hrubým zásahem do charakteristiky výrobku a vzniklý produkt již přestává být stanoveným a tedy certifikovaným výrobkem.

Sheet M-T E (hidden)
C3: Všeobecná definice výrobku ETICS MAMUT-THERM E a zamýšlené použití
C5: ETA 09/0239
C6: Reakce na oheň Evropská třída dle EN 13501-1: A2 – s1, d0
C8: Vnější tepelně izolační kompozitní systém (ETICS) MAMUT-THERM E, zvaný ETICS v dalším textu, je navržen a prováděn v souladu s návrhovými a montážními pokyny držitele ETA, uloženými v Technickém a zkušebním ústavu stavebním Praha s.p. (TZÚS), pobočka Brno. ETICS se skládá z následujících součástí, které jsou vyráběny držitelem ETA nebo jeho subdodavatelem, z těch se poté zabudovává do stavby.
C9: Tento systém je prodáván pod jedním obchodním názvem ve skladbě vyplývající z všeobecné definice výrobku.
C11: Definice výrobku | E11: Součásti | G11: Spotřeba (kg/m2) | H11: Tloušťka (mm)
C13: Mechanicky připevňovaný ETICS s doplňkovým lepením (minimální plocha lepení 40% povrchu desky MW).
C14: Národní prováděcí předpisy musí být brány v úvahu.
C15: Izolační vrstva – IV a související způsob upevnění | D15: Lepicí hmota | E15: MAMUT Flex T | G15: 3,0 - 5,0 suché směsi | H15: -
E16: Stav při dodání: prášek
E17: Postup přípravy: prášek vyžadující přípravek vody 0,25 l/kg
E18: Hlavní součásti výrobku: portlandský cement, plnivo o zrnitosti 0-0,7mm, speciální přísady
D19: Izolační výrobek | E19: Dvouvrstvé (double density) desky z minerální vlny (TR10) | G19: - | H19: 80 - 280
E20: Frontrock MAX E (výrobce Rockwool a.s., závod Bohumín)
D21: Doplňkové mechanicky kotvící prvky | E21: ejotherm STR U (2G) + přídavný talíř | F21: ETA-04/0023 | G21: dle PD | H21: -
E22: plastové šroubovací hmoždinky
E23: Bravoll PTH-S 60/8-La, | F23: ETA-08/0267 | G23: dle PD | H23: -
E24: plastové šroubovací hmoždinky
E25: KEW TSBD 8 | F25: ETA-08/0314 | G25: dle PD | H25: -
E26: plastové šroubovací hmoždinky
C27: Základní vrstva – ZV | D27: Malta základní vrstvy – armovací hmota | E27: MAMUT Flex T | G27: 4,0 suché směsi | H27: 3
E28: Stav při dodání: prášek
E29: Postup přípravy: prášek vyžadující přípravek vody 0,25 l/kg
E30: Hlavní součásti výrobku: portlandský cement, plnivo o zrnitosti 0-0,7mm, speciální přísady
D31: Výztuž | E31: Skleněná síťovina pro ETICS
E32: VERTEX R 131 A101 (rozměry mřížky 3,5 x 3,5 mm)
C34: Povrchová úprava – PÚ | D34: Penetrační nátěr | E34: MAMUT Kontakt | G34: 0,20 l/m2 | H34: -
E35: Stav při dodání: tekutina připravená k použití
E36: Postup přípravy: neředit, promíchat
E37: Hlavní součásti výrobku: umělopryskyřičná disperze, minerální přísady
E38: Použití: penetrační nátěr základní vrstvy určený pro konečné povrchové úpravy MAMUT
D39: Konečná povrchová úprava | E39: MAMUT ip 44 | G39: 2,5 – 3,8 dle max.velikosti zrna | H39: Dle max. velikosti zrna
E40: minerální omítka zatíraná - max.zrno 1,5; 2,0; 3,0mm)
E41: Stav při dodání: prášek
E42: Postup přípravy: prášek vyžadující přípravek vody 0,23-0,3l/kg
E43: Hlavní součásti výrobku: bílý vápenný hydrát, bílý cement, kamenivo, anorganické stálobarevné pigmenty, speciální přísady
E45: MAMUT ip 42 | G45: 2,4 – 3,7 dle max.velikosti zrna | H45: Dle max. velikosti zrna
E46: minerální omítka rýhovaná - max.zrno 2,0; 3,0mm)
E47: Stav při dodání: prášek
E48: Postup přípravy: prášek vyžadující přípravek vody 0,23-0,3l/kg
E49: Hlavní součásti výrobku:bílý vápenný hydrát, bílý cement, kamenivo, anorganické stálobarevné pigmenty, speciální přísady
E50: MAMUT Silikát Z | G50: 2,5 – 3,8 dle max.velikosti zrna | H50: Dle max. velikosti zrna
E51: silikátová zatíraná omítka -max. zrno 1,5; 2,0; 3,0mm
E52: Stav při dodání: pasta připravená k použití
E53: Složení: směs kameniva, pigmentů, plniv a pojiva na bázi vodního skla
E55: MAMUT Silikát R | G55: 2,4 – 3,7 dle max.velikosti zrna | H55: Dle max. velikosti zrna
E56: silikátová rýhovaná omítka -max. zrno 1,5; 2,0; 3,0mm
E57: Stav při dodání: pasta připravená k použití
E58: Složení: směs kameniva, pigmentů, plniv a pojiva na bázi vodního skla
E60: MAMUT Silikon Z | G60: 2,5 – 3,8 dle max.velikosti zrna | H60: Dle max. velikosti zrna
E61: silikonová zatíraná omítka -max. zrno 1,5; 2,0; 3,0mm
E62: Stav při dodání: pasta připravená k použití
E63: Složení: směs kameniva, pigmentů, plniv a pojiva na bázi silikonové pryskyřice
E65: MAMUT Silikon R | G65: 2,4 – 3,7 dle max.velikosti zrna | H65: Dle max. velikosti zrna
E66: silikonová rýhovaná omítka -max. zrno 1,5; 2,0; 3,0mm
E67: Stav při dodání: pasta připravená k použití
E68: Složení: směs kameniva, pigmentů, plniv a pojiva na bázi silikonové pryskyřice
D69: Ochranný nátěr (pro minerální povrchové úpravy vždy, pro ostatní povrchové úpravy se nepoužívá) | E69: MAMUT Color EG | G69: 0,2 -0,3 l/m2 | H69: -
E70: Egalizační nátěr
E71: Stav při dodání: tekutina připravená k použití
E72: Postup přípravy: neředit
E73: Hlavní součásti výrobku: bezrozpouštědlový vodní nátěr na bázi umělopryskyřičné disperze a minerálních přísad
E74: Použití: nátěr minerálních omítek MAMUT ip44 a MAMUT ip42 zajišťující sjednocení barevnosti
D75: Příslušenství | E75: Odpovídá popisu dle § 3.2.2.5 ETAG 004 na zodpovědnosti držitele ETA.
C77: Zamýšlené použití:
C78: Tento ETICS MAMUT-THERM E se uplatňuje na venkovních stěnách budov. Tyto stěny jsou vytvořeny zděním (z cihel, bloků, kamene…) nebo z betonu (monolitického nebo z prefabrikovaných panelů) s třídou reakce na oheň A1 nebo A2-s2,d0 dle EN 13501-1 nebo A1 dle doplňujícího EC 96/603/EC. ETICS je navrhován tak, aby dodával stěnám odpovídající tepelnou izolaci. ETICS musí být navržen a proveden podle pokynů držitele schválení (ETA) pro jejich projektování a montáž. Systém se skládá ze součástí, které vyrábí držitel schválení (ETA) nebo jejich dodavatel. Držitel schválení (ETA) je finálně zodpovědný za systém. Všechny součásti systému musejí být specifikovány držitelem schválení (ETA). ETICS je vyroben jako nenosný stavební prvek. Nepůsobí přímo ke zvýšení stability zdi, na níž je aplikován, není určen pro zajištění vzduchotěsnosti stavební konstrukce, ale působí ke zvýšení odolnosti proti vlivům počasí. Musí zajišťovat minimální tepelný odpor přes 1,0 m².K/W. ETICS může být použit jak na nových, tak i na stávajících (rekonstruovaných) vertikálních zdech. Může být také použit na horizontálních nebo nakloněných površích, které nejsou vystaveny dešťovým srážkám. Účelem ETICS není zajišťování neprodyšnosti budovy. Způsob upevnění, návrh konkrétní skladby a vlastní provádění na stávající obvodovou stěnu závisí na vlastnostech podkladu a konkrétních okrajových podmínkách budovy. Musí být vzaty v úvahu požadavky kap. 4. a 7. (viz ETAG č. 004, vydání říjen 2011) a musí být proveden ve shodě s národními požadavky. Ustanovení tohoto Evropského technického schválení vycházejí z předpokladu životnosti 25 roků dotčeného ETICS, za předpokladu jeho řádného užívání a údržby. Uvedený údaj životnosti však nelze považovat za záruku výrobce nebo schvalovacího orgánu, neboť slouží jen jako prostředek k volbě vhodných produktů s ohledem na očekávanou ekonomicky přiměřenou životnost díla.
B79: Dle zákona 22/1997 Sb. v platném znění, zejména pak Nařízení vlády č. 163/2002 Sb.v platném znění, jsou tepelně izolační kompozitní systémy (ETICS) stanovenými výrobky. Z pohledu výše uvedeného zákona ve znění pozdějších předpisů vyplývá, že ETICS je brán jako výrobek a jako takový musí být nejprve odzkoušen v akreditovaných zkušebnách a certifikován. Odpovědnost podle příslušných předpisů pro stavební výrobky nese společnost MAMUT-THERM s.r.o. za ty specifikované ETICS, které sama, jako sestavy součástí, uvádí na trh. Každý ETICS je jednoznačně definovaným výrobkem, který má určenou skladbu komponentů, které na sebe vzájemně navazují. Záměnou komponentů, nedodržením skladby nebo nedodržením technologického postupu ETICS k odborné montáži, určených výrobcem, je hrubým zásahem do charakteristiky výrobku a vzniklý produkt již přestává být stanoveným a tedy certifikovaným výrobkem.

Sheet M-T Pt
C3: Všeobecná definice výrobku ETICS MAMUT-THERM Pt a zamýšlené použití
C5: STO 020-036557
C6: Reakce na oheň Evropská třída dle EN 13501-1:2010: B – s1, d0 nebo B – s2, d0 *)
C8: Vnější tepelně izolační kompozitní systém (ETICS) MAMUT-THERM Pt, zvaný ETICS v dalším textu, je navržen a prováděn v souladu s návrhovými a montážními pokyny držitele STO, uloženými v Technickém a zkušebním ústavu stavebním Praha s.p. (TZÚS), pobočka České Budějovice. ETICS se skládá z následujících součástí, které jsou vyráběny držitelem STO nebo jeho subdodavatelem, z těch se poté zabudovává do stavby.
C9: Tento systém je prodáván ve skladbách vyplývajících z všeobecné definice výrobku.
C11: Definice výrobku | E11: Součásti | G11: Spotřeba (kg/m2) | H11: Tloušťka (mm)
C13: Mechanicky kotvený ETICS s montážním lepením (minimální plocha lepení 20% povrchu desky EPS).
C15: Podklad | E15: vláknité desky (EN 622-3) | G15: - | H15: ≥ 12,5
E16: sádrokartonové desky | H16: ≥ 12,5
E17: cementotřískové desky (EN 634-2) | H17: ≥ 12,0
E18: desky OSB (EN 300) | H18: ≥ 12,0
E19: desky z rostlého dřeva (EN 13353) | H19: ≥ 22,5
E20: pozinkovaný ocelový plech | H20: ≥ 0,60
E21: hliníkový plech | H21: ≥ 0,80
D22: Penetrační nátěr podkladu | E22: MAMUT Kontakt | G22: 0,2 l/m² | H22: 0.1
E23: Stav při dodání: tekutina připravená k použití
E24: Postup přípravy: neředit
E25: Hlavní součásti: umělopryskyřičná disperze, minerální přísady
C26: Izolační vrstva – IV a související způsob upevnění | D26: Lepicí hmota | E26: MAMUT Flex T | G26: 3,0 - 5,0 suché směsi | H26: max 10
E27: - pouze při použití také jako hmota základní vrstvy
E28: Stav při dodání: prášek
E29: Postup přípravy: prášek vyžadující přípravek vody 0,25 l/kg
E30: Hlavní součásti výrobku: portlandský cement, plnivo o zrnitosti 0-0,7mm, speciální přísady
D31: Izolační výrobek | E31: Desky z expandovaného polystyrenu typu EPS 70F fasádní (EPS s reakcí na oheň E, pevností v tahu kolmo k rovině desky TR 100; lD= 0,039 W/(m².K)) a s dalšími sledovanými vlastnostmi uvedenými v tabulce č. 3 STO 020-030042. | G31: - | H31: 50 - 400
E32: Desky z expandovaného polystyrenu typu EPS 100F fasádní (EPS s reakcí na oheň E, pevností v tahu kolmo k rovině desky TR 150; lD= 0,037 W/(m².K)) a s dalšími sledovanými vlastnostmi uvedenými v tabulce č. 3 STO 020-030042.
E33: Desky z expandovaného polystyrenu typu EPS 70F fasádní s příměsí grafitových částic (EPS s reakcí na oheň E, pevností v tahu kolmo k rovině desky TR 100; lD= 0,032 W/(m².K)) a s dalšími sledovanými vlastnostmi uvedenými v tabulce č. 3 STO 020-030042.
D34: Mechanicky kotvící prvky | E34: ejotherm STR H | F34: hmoty na bázi dřeva, plech Fe a Al | G34: dle PD | H34: -
E35: šroub univerzální, nebo včetně použití talíře VT 90, SBL 140 plus, VT 2G
E36: fischer TERMOFIX H 10 | F36: hmoty na bázi dřeva | G36: dle PD | H36: -
E37: izolační talířek Ø=60mm + vrut pro kotvení do materiálů na bázi dřeva, nebo včetně použití talíře DT90, DT110, DT140
E38: Wkret-met TD 60 + KMH | G38: dle PD | H38: -
E39: izolační talířek Ø=60mm + vrut pro kotvení do materiálů na bázi dřeva
E40: Wkret-met eco-drive | G40: dle PD | H40: -
E41: talířek předmontovaným kovovým vrutem
E42: fischer TERMOFIX B | F42: plech Fe a Al | G42: dle PD | H42: -
E43: izolační talířek Ø=60mm + šroub pro kotvení do plechu, nebo včetně použití talíře DT90, DT110, DT140
E44: Wkret-met TD 60 + WDB-D | G44: dle PD | H44: -
E45: izolační talířek Ø=60mm + šroub pro kotvení do plechu
E46: Wkret-met TD 60 + WSR-D | G46: dle PD | H46: -
E47: izolační talířek Ø=60mm + šroub pro kotvení do plechu
C48: Základní vrstva – ZV | D48: Malta základní vrstvy – armovací hmota | E48: MAMUT Flex T | G48: 3,6 - 5,0 suché směsi | H48: 3 - 4
E49: pouze pro omítky MAMUT Spektrum, MAMUT Silikát, MAMUT Silikon
E50: Stav při dodání: prášek
E51: Postup přípravy: prášek vyžadující přípravek vody 0,25 l/kg
E52: Hlavní součásti výrobku: portlandský cement, plnivo o zrnitosti 0-0,7mm, speciální přísady
D53: Výztuž | E53: Skleněná síťovina pro ETICS
E54: VERTEX R 131 A101 (rozměry mřížky 3,5 x 3,8 mm) | G54: - | H54: -
E55: Valmiera SSA-1363-SM (rozměry mřížky 5,0 x 4,0 mm)
C56: Povrchová úprava – PÚ | D56: Penetrační nátěr | E56: MAMUT Kontakt | G56: 0,20 l/m² | H56: -
E57: Stav při dodání: tekutina připravená k použití
E58: Postup přípravy: neředit, promíchat
E59: Hlavní součásti výrobku: umělopryskyřičná disperze, minerální přísady
E60: Použití: penetrační nátěr základní vrstvy určený pro konečné povrchové úpravy MAMUT Spektrum, MAMUT Silikát a MAMUT Silikon
E61: Pastovité omítky
E62: MAMUT Spektrum Z | G62: 2,5 – 3,8 dle max.velikosti zrna | H62: Dle max. velikosti zrna
E63: akrylátová zatíraná omítka -max. zrno 1,5; 2,0; 3,0mm
E64: Stav při dodání: pasta připravená k použití
E65: Složení: směs kameniva, pigmentů, plniv a pojiva na bázi umělé pryskyřice
E66: MAMUT Spektrum R | G66: 2,4 – 3,7 dle max.velikosti zrna | H66: Dle max. velikosti zrna
E67: akrylátová rýhovaná omítka -max. zrno 1,5; 2,0; 3,0mm
E68: Stav při dodání: pasta připravená k použití
E69: Složení: směs kameniva, pigmentů, plniv a pojiva na bázi umělé pryskyřice
E70: MAMUT Silikát Z | G70: 2,5 – 3,8 dle max.velikosti zrna | H70: Dle max. velikosti zrna
E71: silikátová zatíraná omítka -max. zrno 1,5; 2,0; 3,0mm
E72: Stav při dodání: pasta připravená k použití
E73: Složení: směs kameniva, pigmentů, plniv a pojiva na bázi vodního skla
E74: MAMUT Silikát R | G74: 2,4 – 3,7 dle max.velikosti zrna | H74: Dle max. velikosti zrna
E75: silikátová rýhovaná omítka -max. zrno 1,5; 2,0; 3,0mm
E76: Stav při dodání: pasta připravená k použití
E77: Složení: směs kameniva, pigmentů, plniv a pojiva na bázi vodního skla
E78: MAMUT Silikon Z | G78: 2,5 – 3,8 dle max.velikosti zrna | H78: Dle max. velikosti zrna
E79: silikonová zatíraná omítka -max. zrno 1,5; 2,0; 3,0mm
E80: Stav při dodání: pasta připravená k použití
E81: Složení: směs kameniva, pigmentů, plniv a pojiva na bázi silikonové pryskyřice
E82: MAMUT Silikon R | G82: 2,4 – 3,7 dle max.velikosti zrna | H82: Dle max. velikosti zrna
E83: silikonová rýhovaná omítka -max. zrno 1,5; 2,0; 3,0mm
E84: Stav při dodání: pasta připravená k použití
E85: Složení: směs kameniva, pigmentů, plniv a pojiva na bázi silikonové pryskyřice
D86: Příslušenství | E86: Vlastnosti příslušenství jsou garantovány na odpovědnosti výrobce ETICS
C87: *) platí pro kombinace uvedené v tab. č. 10 STO 020-030042 | K87: ²
C89: Zamýšlené použití:
C90: Tento ETICS MAMUT-THERM Pt je určen k vnějšímu zateplení fasád obytných, občanských a průmyslových budov stávajících i novostaveb, zhotovených z vláknitých desek, sádrokartonových desek, cementotřískových desek, desek OSB, desek z rostlého dřeva, z pozinkovaného plechu a z hliníkového plechu do požární výšky 22,5 m podle požadavků normy ČSN 73 0810. Při aplikaci vnějšího tepelně izolačního kompozitního systému s omítkou MAMUT-THERM Pt je nutné postupovat dle projektové dokumentace, která musí být pro každý konkrétní objekt zpracována v konkrétní skladbě. Nutnou součástí projektu je řešení nosné způsobilosti kotvení, řešení tepelně technických vlastností včetně řešení kondenzace vodní páry – posouzení stavu konstrukce jako celku dle ČSN 73 0540 a požární zpráva. Pro případ požáru musí být zabezpečena ochrana osob unikajících z objektu proti stékání a odpadávání zpěňovatelných plastů. Montáž vnějšího tepelně izolačního kompozitního systému s omítkou MAMUT-THERM Pt mohou provádět pouze firmy, které jsou nositelem platného osvědčení o zaškolení svých pracovníků v provádění.
B91: Dle zákona 22/1997 Sb. v platném znění, zejména pak Nařízení vlády č. 163/2002 Sb.v platném znění, jsou tepelně izolační kompozitní systémy (ETICS) stanovenými výrobky. Z pohledu výše uvedeného zákona ve znění pozdějších předpisů vyplývá, že ETICS je brán jako výrobek a jako takový musí být nejprve odzkoušen v akreditovaných zkušebnách a certifikován. Odpovědnost podle příslušných předpisů pro stavební výrobky nese společnost MAMUT-THERM s.r.o. za ty specifikované ETICS, které sama, jako sestavy součástí, uvádí na trh. Každý ETICS je jednoznačně definovaným výrobkem, který má určenou skladbu komponentů, které na sebe vzájemně navazují. Záměnou komponentů, nedodržením skladby nebo nedodržením technologického postupu ETICS k odborné montáži, určených výrobcem, je hrubým zásahem do charakteristiky výrobku a vzniklý produkt již přestává být stanoveným a tedy certifikovaným výrobkem.

Sheet M-T Mt
C3: Všeobecná definice výrobku ETICS MAMUT-THERM Mt a zamýšlené použití
C5: STO 020-036560
C6: Reakce na oheň Evropská třída dle EN 13501-1:2010: A2 – s1, d0
C8: Vnější tepelně izolační kompozitní systém (ETICS) MAMUT-THERM Mt, zvaný ETICS v dalším textu, je navržen a prováděn v souladu s návrhovými a montážními pokyny držitele STO, uloženými v Technickém a zkušebním ústavu stavebním Praha s.p. (TZÚS), pobočka České Budějovice. ETICS se skládá z následujících součástí, které jsou vyráběny držitelem STO nebo jeho subdodavatelem, z těch se poté zabudovává do stavby.
C9: Tento systém je prodáván ve skladbách vyplývajících z všeobecné definice výrobku.
C11: Definice výrobku | E11: Součásti | G11: Spotřeba (kg/m2) | H11: Tloušťka (mm)
C13: Mechanicky kotvený ETICS s montážním lepením (minimální plocha lepení 20% povrchu desky z MW).
C15: Podklad | E15: vláknité desky (EN 622-3) | G15: - | H15: ≥ 12,5
E16: sádrokartonové desky | H16: ≥ 12,5
E17: cementotřískové desky (EN 634-2) | H17: ≥ 12,0
E18: desky OSB (EN 300) | H18: ≥ 12,0
E19: desky z rostlého dřeva (EN 13353) | H19: ≥ 22,5
E20: pozinkovaný ocelový plech | H20: ≥ 0,60
E21: hliníkový plech | H21: ≥ 0,80
D22: Penetrační nátěr podkladu | E22: MAMUT Kontakt | G22: 0,2 l/m² | H22: 0.1
E23: Stav při dodání: tekutina připravená k použití
E24: Postup přípravy: neředit
E25: Hlavní součásti: umělopryskyřičná disperze, minerální přísady
C26: Izolační vrstva – IV a související způsob upevnění | D26: Lepicí hmota | E26: MAMUT Flex T | G26: 3,0 - 5,0 suché směsi | H26: max 10
E27: - pouze při použití také jako hmota základní vrstvy
E28: Stav při dodání: prášek
E29: Postup přípravy: prášek vyžadující přípravek vody 0,25 l/kg
E30: Hlavní součásti výrobku: portlandský cement, plnivo o zrnitosti 0-0,7mm, speciální přísady
D31: Izolační výrobek | E31: Desky z minerální vlny (MW deska – podélné vlákno, TR 15) deklarovanách vlastností dle tabulky č. 3 STO 020-030045. MW-EN 13162–T5–DS(T+)– DS(TH)–TR15-WS–WL(P)–MU5 | G31: - | H31: 60 - 400
E32: Desky z minerální vlny Frontrock MAX E (MW dvouvrstvá deska - podélné vlákno, TR 10) deklarovaných vlastností dle tabulky č. 4 STO 020-030045. MW-EN 13162-T5-DS(T+)-DS(TH)-CS(10)20-TR10-PL(5)250-WS-WL(P)-MU1 | H32: 80 - 280
E33: Desky z minerální vlny Nobasil FKD S (MW deska - podélné vlákno, TR 10) deklarovanýc vlastností dle tabulky č. 5 STO 020-030042. MW-EN 13162-T5-DS(TH)-CS(10)30-TR10-WS-WL(P)-MU1 | H33: 60 - 240
D34: Mechanicky kotvící prvky | E34: ejotherm STR H | F34: hmoty na bázi dřeva, plech Fe a Al | G34: dle PD | H34: -
E35: šroub univerzální, nebo včetně použití talíře VT 90, SBL 140 plus, VT 2G
E36: fischer TERMOFIX H 10 | F36: hmoty na bázi dřeva | G36: dle PD | H36: -
E37: izolační talířek Ø=60mm + vrut pro kotvení do materiálů na bázi dřeva, nebo včetně použití talíře DT90, DT110, DT140
E38: Wkret-met TD 60 + KMH | G38: dle PD | H38: -
E39: izolační talířek Ø=60mm + vrut pro kotvení do materiálů na bázi dřeva
E40: Wkret-met eco-drive | G40: dle PD | H40: -
E41: talířek předmontovaným kovovým vrutem
E42: fischer TERMOFIX B | F42: plech Fe a Al | G42: dle PD | H42: -
E43: izolační talířek Ø=60mm + šroub pro kotvení do plechu, nebo včetně použití talíře DT90, DT110, DT140
E44: Wkret-met TD 60 + WDB-D | G44: dle PD | H44: -
E45: izolační talířek Ø=60mm + šroub pro kotvení do plechu
E46: Wkret-met TD 60 + WSR-D | G46: dle PD | H46: -
E47: izolační talířek Ø=60mm + šroub pro kotvení do plechu
C48: Základní vrstva – ZV | D48: Malta základní vrstvy – armovací hmota | E48: MAMUT Flex T | G48: 3,6 - 5,0 suché směsi | H48: 3 - 4
E49: pouze v kombinaci s lepicí hmotou MAMUT Flex T a pro omítky MAMUT Silikát, MAMUT Silikon
E50: Stav při dodání: prášek
E51: Postup přípravy: prášek vyžadující přípravek vody 0,25 l/kg
E52: Hlavní součásti výrobku: portlandský cement, plnivo o zrnitosti 0-0,7mm, speciální přísady
D53: Výztuž | E53: Skleněná síťovina pro ETICS
E54: VERTEX R 131 A101 (rozměry mřížky 3,5 x 3,8 mm) | G54: - | H54: -
E55: Valmiera SSA-1363-SM (rozměry mřížky 5,0 x 4,0 mm)
C56: Povrchová úprava – PÚ | D56: Penetrační nátěr | E56: MAMUT Kontakt | G56: 0,20 l/m² | H56: -
E57: Stav při dodání: tekutina připravená k použití
E58: Postup přípravy: neředit, promíchat
E59: Hlavní součásti výrobku: umělopryskyřičná disperze, minerální přísady
E60: Použití: penetrační nátěr základní vrstvy určený pro konečné povrchové úpravy MAMUT Spektrum, MAMUT Silikát a MAMUT Silikon
E61: Pastovité omítky
E62: MAMUT Silikát Z | G62: 2,5 – 3,8 dle max.velikosti zrna | H62: Dle max. velikosti zrna
E63: silikátová zatíraná omítka -max. zrno 1,5; 2,0; 3,0mm
E64: Stav při dodání: pasta připravená k použití
E65: Složení: směs kameniva, pigmentů, plniv a pojiva na bázi vodního skla
E66: MAMUT Silikát R | G66: 2,4 – 3,7 dle max.velikosti zrna | H66: Dle max. velikosti zrna
E67: silikátová rýhovaná omítka -max. zrno 1,5; 2,0; 3,0mm
E68: Stav při dodání: pasta připravená k použití
E69: Složení: směs kameniva, pigmentů, plniv a pojiva na bázi vodního skla
E70: MAMUT Silikon Z | G70: 2,5 – 3,8 dle max.velikosti zrna | H70: Dle max. velikosti zrna
E71: silikonová zatíraná omítka -max. zrno 1,5; 2,0; 3,0mm
E72: Stav při dodání: pasta připravená k použití
E73: Složení: směs kameniva, pigmentů, plniv a pojiva na bázi silikonové pryskyřice
E74: MAMUT Silikon R | G74: 2,4 – 3,7 dle max.velikosti zrna | H74: Dle max. velikosti zrna
E75: silikonová rýhovaná omítka -max. zrno 1,5; 2,0; 3,0mm
E76: Stav při dodání: pasta připravená k použití
E77: Složení: směs kameniva, pigmentů, plniv a pojiva na bázi silikonové pryskyřice
D78: Příslušenství | E78: Vlastnosti příslušenství jsou garantovány na odpovědnosti výrobce ETICS
K79: ²
C80: Zamýšlené použití:
C81: Tento ETICS MAMUT-THERM Mt je vnější tepelně izolační kompozitní systém s omítkou s izolantem z minerální vlny. Vnější tepelně izolační kompozitní systém s omítkou MAMUT-THERM Mt je určen k vnějšímu zateplení fasád obytných, občanských a průmyslových budov stávajících i novostaveb, zhotovených z vláknitých desek, sádrokartonových desek, cementotřískových desek, desek OSB, desek z rostlého dřeva, z pozinkovaného plechu a z hliníkového plechu. Při aplikaci vnějšího tepelně izolačního kompozitního systému s omítkou MAMUT-THERM Mt je nutné postupovat dle projektové dokumentace, která musí být pro každý konkrétní objekt zpracována v konkrétní skladbě. Nutnou součástí projektu je řešení nosné způsobilosti kotvení, řešení tepelně technických vlastností včetně řešení kondenzace vodní páry – posouzení stavu konstrukce jako celku dle ČSN 73 0540 a požární zpráva. Montáž vnějšího tepelně izolačního kompozitního systému s omítkou MAMUT-THERM Mt mohou provádět pouze firmy, které jsou nositelem platného osvědčení o zaškolení svých pracovníků v provádění.
B82: Dle zákona 22/1997 Sb. v platném znění, zejména pak Nařízení vlády č. 163/2002 Sb.v platném znění, jsou tepelně izolační kompozitní systémy (ETICS) stanovenými výrobky. Z pohledu výše uvedeného zákona ve znění pozdějších předpisů vyplývá, že ETICS je brán jako výrobek a jako takový musí být nejprve odzkoušen v akreditovaných zkušebnách a certifikován. Odpovědnost podle příslušných předpisů pro stavební výrobky nese společnost MAMUT-THERM s.r.o. za ty specifikované ETICS, které sama, jako sestavy součástí, uvádí na trh. Každý ETICS je jednoznačně definovaným výrobkem, který má určenou skladbu komponentů, které na sebe vzájemně navazují. Záměnou komponentů, nedodržením skladby nebo nedodržením technologického postupu ETICS k odborné montáži, určených výrobcem, je hrubým zásahem do charakteristiky výrobku a vzniklý produkt již přestává být stanoveným a tedy certifikovaným výrobkem.

Sheet M-T Pv
C3: Všeobecná definice výrobku ETICS MAMUT-THERM Pv a zamýšlené použití
C5: ETA 14/0278
C6: Reakce na oheň Evropská třída dle EN 13501-1:2010: B – s1, d0
C8: Vnější tepelně izolační kompozitní systém (ETICS) MAMUT-THERM Pv, zvaný ETICS v dalším textu, je navržen a prováděn v souladu s návrhovými a montážními pokyny držitele ETA, uloženými v Technickém a zkušebním ústavu stavebním Praha s.p. (TZÚS), pobočka České Budějovice. ETICS se skládá z následujících součástí, které jsou vyráběny držitelem ETA nebo jeho subdodavatelem, z těch se poté zabudovává do stavby.
C9: Tento systém je prodáván pod jedním obchodním názvem.
C11: Definice výrobku | E11: Součásti | G11: Spotřeba (kg/m2) | H11: Tloušťka (mm)
C13: Výlučně lepený ETICS nebo částečně lepený ETICS s doplňkovým mechanickým kotvením (viz níže).
C14: Národní prováděcí předpisy musí být brány v úvahu.
C15: Izolační vrstva – IV a související způsob upevnění | D15: Lepicí hmota | E15: MAMUT Flex 50 | G15: 3,0 - 6,0 (kg/m²) suché směsi | H15: -
E16: Stav při dodání: prášek
E17: Postup přípravy: prášek vyžadující přípravek vody 0,25 – 0,27 l/kg
E18: Hlavní součásti výrobku: portlandský cement, plnivo o zrnitosti 0-0,6mm, speciální přísady
D19: Lepicí hmota | E19: MAMUT Flex 45 | G19: 3,0 - 6,0 (kg/m²) suché směsi | H19: -
E20: Stav při dodání: prášek
E21: Postup přípravy: prášek vyžadující přípravek vody 0,25 – 0,27 l/kg
E22: Hlavní součásti výrobku: portlandský cement, plnivo o zrnitosti 0-0,6mm, speciální přísady
D23: Izolační výrobek | E23: Desky z pěnového polystyrenu dle EN 13163:2012 (EPS s reakcí na oheň E, pevností v tahu kolmo k rovině desky TR 100) a s dalšími sledovanými vlastnostmi viz ETA 14/0278 příloha č.1. | G23: - | H23: 50 - 300
C24: Mechanicky kotvený ETICS s doplňkovým lepením.
C25: Národní prováděcí předpisy musí být brány v úvahu.
C26: Izolační vrstva – IV a související způsob upevnění | D26: Lepicí hmota | E26: MAMUT Flex 50 | G26: 3,0 - 6,0 (kg/m²) suché směsi | H26: -
E27: Stav při dodání: prášek
E28: Postup přípravy: prášek vyžadující přípravek vody 0,25 – 0,27 l/kg
E29: Hlavní součásti výrobku: portlandský cement, plnivo o zrnitosti 0-0,6mm, speciální přísady
D30: Lepicí hmota | E30: MAMUT Flex 45 | G30: 3,0 - 6,0 (kg/m²) suché směsi | H30: -
E31: Stav při dodání: prášek
E32: Postup přípravy: prášek vyžadující přípravek vody 0,25 – 0,27 l/kg
E33: Hlavní součásti výrobku: portlandský cement, plnivo o zrnitosti 0-0,6 mm, speciální přísady
D34: Izolační výrobek | E34: Desky z pěnového polystyrenu dle EN 13163:2012; λD= 0,032 W/(m.K) (EPS s reakcí na oheň E, pevností v tahu kolmo k rovině desky TR 100) a s dalšími sledovanými vlastnostmi viz ETA 14/0278 příloha č.1. | H34: 50 - 300
E35: Desky z pěnového polystyrenu dle EN 13163:2012; λD= 0,037 W/(m.K) (EPS s reakcí na oheň E, pevností v tahu kolmo k rovině desky TR 150) a s dalšími sledovanými vlastnostmi viz ETA 14/0278 příloha č.1. | H35: 50 - 300
E36: Desky z pěnového polystyrenu dle EN 13163:2012; λD= 0,039 W/(m.K) (EPS s reakcí na oheň E, pevností v tahu kolmo k rovině desky TR 100) a s dalšími sledovanými vlastnostmi viz ETA 14/0278 příloha č.1. | H36: 50 - 300
D37: Mechanicky kotvící prvky | E37: ejotherm NT U | F37: ETA-05/0009 | G37: dle PD | H37: -
E38: plastové zatloukací hmoždinky
E39: ejotherm NTK U | F39: ETA-07/0026 | G39: dle PD | H39: -
E40: plastové zatloukací hmoždinky
E41: ejotherm STR U | F41: ETA-04/0023 | G41: dle PD | H41: -
E42: plastové šroubovací hmoždinky
E43: ejotherm STR U 2G | F43: ETA-04/0023 | G43: dle PD | H43: -
E44: plastové šroubovací hmoždinky
E45: EJOT SDM – T plus | F45: ETA-04/0064 | G45: dle PD | H45: -
E46: plastové šroubovací hmoždinky
E47: EJOT H1 eco | F47: ETA-11/0192 | G47: dle PD | H47: -
E48: plastové zatloukací hmoždinky
E49: EJOT H3 | F49: ETA-14/0130 | G49: dle PD | H49: -
E50: plastové zatloukací hmoždinky
E51: Bravoll PTH-KZ 60/8-La, | F51: ETA-05/0055 | G51: dle PD | H51: -
E52: plastové zatloukací hmoždinky
E53: Bravoll PTH-KZL 60/8-La, | F53: ETA-05/0055 | G53: dle PD | H53: -
E54: plastové zatloukací hmoždinky
E55: Bravoll PTH 60/8-La, | F55: ETA-05/0055 | G55: dle PD | H55: -
E56: plastové zatloukací hmoždinky
E57: Bravoll PTH-L 60/8-La | F57: ETA-05/0055 | G57: dle PD | H57: -
E58: plastové zatloukací hmoždinky
E59: Bravoll PTH-S 60/8-La | F59: ETA-08/0267 | G59: dle PD | H59: -
E60: plastové šroubovací hmoždinky
E61: Bravoll PTH 60/10-La, | F61: ETA-08/0166 | G61: dle PD | H61: -
E62: plastové zatloukací hmoždinky
E63: Bravoll PTH-KZ 60/10-La, | F63: ETA-08/0166 | G63: dle PD | H63: -
E64: plastové zatloukací hmoždinky
E65: Bravoll PTH-SX | F65: ETA-10/0028 | G65: dle PD | H65: -
E66: plastové šroubovací hmoždinky
E67: Bravoll PTH-X | F67: ETA 13/0951 | G67: dle PD | H67: -
E68: plastové zatloukací hmoždinky
E69: Bravoll PTH-EX | F69: ETA 13/0951 | G69: dle PD | H69: -
E70: plastové zatloukací hmoždinky
E71: fischer Termoz 8 SV | F71: ETA-06/0180 | G71: dle PD | H71: -
E72: plastové šroubovací hmoždinky
E73: fischer Termoz KS 8 | F73: ETA-04/0114 | G73: dle PD | H73: -
E74: plastové šroubovací hmoždinky
E75: fischer Termoz 8N | F75: ETA-03/0019 | G75: dle PD | H75: -
E76: plastové zatloukací hmoždinky
E77: fischer Termoz 8NZ | F77: ETA-03/0019 | G77: dle PD | H77: -
E78: plastové zatloukací hmoždinky
E79: fischer Termofix CF 8 | F79: ETA-07/0287 | G79: dle PD | H79: -
E80: plastové zatloukací hmoždinky
E81: fischer Termoz CN8 | F81: ETA-09/0394 | G81: dle PD | H81: -
E82: plastové zatloukací hmoždinky
E83: fischer Termoz 8 U | F83: ETA-02/0019 | G83: dle PD | H83: -
E84: plastové šroubovací hmoždinky
E85: fischer Termoz 8 UZ | F85: ETA-02/0019 | G85: dle PD | H85: -
E86: plastové šroubovací hmoždinky
E87: fischer Termoz PN 8 | F87: ETA-09/0171 | G87: dle PD | H87: -
E88: plastové zatloukací hmoždinky
E89: fischer Termoz LO 8 | F89: ETA-10/0460 | G89: dle PD | H89: -
E90: plastové zatloukací hmoždinky
E91: fischer Termoz SV II ecotwist | F91: ETA-12/0208 | G91: dle PD | H91: -
E92: plastové šroubovací hmoždinky
E93: Hilti D 8-FV | F93: ETA-07/0288 | G93: dle PD | H93: -
E94: plastové šroubovací hmoždinky
E95: Hilti XI-FV | F95: ETA-03/0004 | G95: dle PD | H95: -
E96: plastové nastřelovací hmoždinky
E97: Hilti SDK-FV 8 | F97: ETA-07/0302 | G97: dle PD | H97: -
E98: plastové zatloukací hmoždinky
E99: Hilti SX-FV | F99: ETA-03/0005 | G99: dle PD | H99: -
E100: plastové šroubovací hmoždinky - jednokrok
E101: Hilti SD-FV 8 | F101: ETA-03/0028 | G101: dle PD | H101: -
E102: plastové zatloukací hmoždinky
E103: Hilti WDVS-Schraubdübel D-FV a D-FV T | F103: ETA-05/0039 | G103: dle PD | H103: -
E104: plastové šroubovací hmoždinky
E105: KEW TSD 8 | F105: ETA-04/0030 | G105: dle PD | H105: -
E106: plastové zatloukací hmoždinky
E107: KEW TSBD 8 | F107: ETA-08/0314 | G107: dle PD | H107: -
E108: plastové šroubovací hmoždinky
E109: KEW TSD-V8, KEW TSDL-V8 | F109: ETA-08/0315 | G109: dle PD | H109: -
E110: plastové zatloukací hmoždinky
E111: KEW TSDL-V | F111: ETA-12/0148 | G111: dle PD | H111: -
E112: plastové zatloukací hmoždinky
E113: TTH 10/60-La | F113: ETA-09/0318 | G113: dle PD | H113: -
E114: plastové zatloukací hmoždinky
E115: KOELNER TFIX-8M | F115: ETA-07/0336 | G115: dle PD | H115: -
E116: plastové zatloukací hmoždinky
E117: Koelner TFIX-8S a TFIX-8ST | F117: ETA-11/0144 | G117: dle PD
E118: plastové šroubovací hmoždinky
E119: KOELNER TFIX-8P | F119: ETA-13/0845 | G119: dle PD | H119: -
E120: plastové zatloukací hmoždinky
E121: KOELNER KI-10, KI-10PA, KI-10M | F121: ETA-07/0291 | G121: dle PD | H121: -
E122: plastové zatloukací hmoždinky
E123: KOELNER KI-10N | F123: ETA-07/0221 | G123: dle PD | H123: -
E124: plastové zatloukací hmoždinky
E125: KOELNER KI-10NS | F125: ETA-07/0221 | G125: dle PD | H125: -
E126: plastové šroubovací hmoždinky
E127: WKTHERM ø 8 | F127: ETA-11/0232 | G127: dle PD | H127: -
E128: plastové zatloukací hmoždinky
E129: FIXPLUG ø 8 ; FIXPLUG ø 10 | F129: ETA-11/0231 | G129: dle PD | H129: -
E130: plastové zatloukací hmoždinky
E131: WKRET-MET LFN 10, LFM 10 | F131: ETA-06/0105 | G131: dle PD | H131: -
E132: plastové zatloukací hmoždinky
E133: WKRET-MET LFN 8, LFM 8 | F133: ETA-06/0080 | G133: dle PD | H133: -
E134: plastové zatloukací hmoždinky
E135: WKRET-MET LTX 10, LMX 10 | F135: ETA-08/0172 | G135: dle PD | H135: -
E136: plastové zatloukací hmoždinky
E137: WKRET-MET LTX 8, LMX 8 | F137: ETA-09/0001 | G137: dle PD | H137: -
E138: plastové zatloukací hmoždinky
E139: TOP-KRAFT-FI-08P, TOP-KRAFT-FI-08M | F139: ETA-11/0236 | G139: dle PD | H139: -
E140: plastové zatloukací hmoždinky
E141: TOP-KRAFT-FI-10P, TOP-KRAFT-FI-10M | F141: ETA-11/0234 | G141: dle PD | H141: -
E142: plastové zatloukací hmoždinky
E143: WKRET-MET eco-drive | F143: ETA-13/0107 | G143: dle PD | H143: -
E144: plastové šroubovací hmoždinky
E145: WKRET-MET eco-drive S | F145: ETA-13/0107 | G145: dle PD | H145: -
E146: plastové šroubovací hmoždinky
E147: WKRET-MET WKTHERM-S | F147: ETA-13/0724 | G147: dle PD | H147: -
E148: plastové šroubovací hmoždinky
E149: Kromě výše uvedených, mohou být v sestavě použity další typy hmoždinek posouzené podle ETAG 014, za předpokladu že splňují následující požadavky:
E150: Průměr talířku | F150: ≥ 60 mm
E151: Tuhost talířku | F151: Povrchová montáž | H151: ≥ 0,3 kN/mm
F152: Zapuštěná montáž: | H152: ≥ 0,6 kN/mm
E153: Síla při porušení talířku | F153: ≥ 0,52 kN
C154: Základní vrstva – ZV | D154: Malta základní vrstvy – armovací hmota | E154: MAMUT Flex 50 | G154: 4,0 - 6,0 (kg/m²) suché směsi | H154: 3 - 6
E155: Stav při dodání: prášek
E156: Postup přípravy: prášek vyžadující přípravek vody 0,25 – 0,27 l/kg
E157: Hlavní součásti výrobku: portlandský cement, plnivo o zrnitosti 0-0,6mm, speciální přísady
D158: Malta základní vrstvy – armovací hmota | E158: MAMUT Flex 45 | G158: 4,0 - 6,0 (kg/m²) suché směsi | H158: 3 - 6
E159: Stav při dodání: prášek
E160: Postup přípravy: prášek vyžadující přípravek vody 0,25 – 0,27 l/kg
E161: Hlavní součásti výrobku: portlandský cement, plnivo o zrnitosti 0-0,6mm, speciální přísady
E162: pouze pod omítky MAMUT Spektrum VZ/VR, MAMUT Silikon VZ/VR a MAMUT Silikon extra VZ/VR s max. velikostí zrna 1,5 až 3,0 mm
D163: Výztuž | E163: Skleněná síťovina pro ETICS
E164: VERTEX R 131 A101 (rozměry mřížky 3,5 x 3,8 mm) | G164: - | H164: -
E165: VERTEX R 117 A101 (rozměry mřížky 4,0 x 4,5 mm)
E166: REDNET CB 145 NOVA (rozměry mřížky 4,0 x 4,0 mm)
E167: 117S (rozměry mřížky 4,0 x 4,0 mm)
E168: 122 (rozměry mřížky 5,0 x 5,0 mm)
E169: 122L (rozměry mřížky 4,0 x 4,5 mm)
E170: LIFITEX PRO 165 (rozměry mřížky 4,0 x 4,8 mm)
E171: LIFITEX PRO 145 (rozměry mřížky 4,0 x 6,0 mm)
E172: Valmiera SSA-1363-SM (rozměry mřížky 5,0 x 4,0 mm)
C173: Povrchová úprava – PÚ | D173: Penetrační nátěr | E173: MAMUT Kontakt VSP | G173: 0,20 l/m² | H173: -
E174: Stav při dodání: tekutina připravená k použití
E175: Postup přípravy: neředit, promíchat
E176: Hlavní součásti výrobku: organické pojivo, minerální přísady, voda
E177: Použití: penetrační nátěr základní vrstvy určený pro konečné povrchové úpravy MAMUT Spektrum VZ/VR
E178: MAMUT Kontakt VSICA | G178: 0,20 l/m²
E179: Stav při dodání: tekutina připravená k použití
E180: Postup přípravy: neředit, promíchat
E181: Hlavní součásti výrobku: Drasekné vodní sklo, minerální přísady, voda
E182: Použití: penetrační nátěr základní vrstvy určený pro konečné povrchové úpravy MAMUT Silikát VZ/VR
E183: MAMUT Kontakt VSIL | G183: 0,20 l/m²
E184: Stav při dodání: tekutina připravená k použití
E185: Postup přípravy: neředit, promíchat
E186: Hlavní součásti výrobku: organické pojivo, minerální přísady, voda
E187: Použití: penetrační nátěr základní vrstvy určený pro konečné povrchové úpravy MAMUT Silikon VZ/VR
E188: MAMUT Kontakt | G188: 0,20 l/m² | H188: -
E189: Stav při dodání: tekutina připravená k použití
E190: Postup přípravy: neředit, promíchat
E191: Hlavní součásti výrobku: Draselné vodní sklo, organické pojivo, minerální přísady a voda
E192: Použití: penetrační nátěr základní vrstvy určený pro konečné povrchové úpravy MAMUT Spektrum, MAMUT Silikat, MAMUT Silikon
D193: Konečné povrchové úpravy | E193: Pastovité omítky
E194: MAMUT Spektrum VZ | G194: 1,5 – 4,5 (kg/m²) dle max.velikosti zrna | H194: Dle max. velikosti zrna
E195: akrylátová zatíraná omítka -max. zrno 1,0; 1,5; 2,0; 3,0mm
E196: Stav při dodání: pasta připravená k použití
E197: Složení: směs kameniva, pigmentů, plniv a pojiv na bázi akrylátových copolymerů
E198: MAMUT Spektrum VR | G198: 1,8 – 4,2 (kg/m²) dle max.velikosti zrna | H198: Dle max. velikosti zrna
E199: akrylátová rýhovaná omítka -max. zrno 1,5; 2,0; 3,0mm
E200: Stav při dodání: pasta připravená k použití
E201: Složení: směs kameniva, pigmentů, plniv a pojiv na bázi akrylátových copolymerů
E202: MAMUT Silikát VZ | G202: 1,5 – 4,5 (kg/m²) dle max.velikosti zrna | H202: Dle max. velikosti zrna
E203: silikátová zatíraná omítka -max. zrno 1,0; 1,5; 2,0; 3,0mm
E204: Stav při dodání: pasta připravená k použití
E205: Složení: směs kameniva, pigmentů, plniv a pojiva na bázi vodního skla
E206: MAMUT Silikát VR | G206: 1,8 – 4,2 (kg/m²) dle max.velikosti zrna | H206: Dle max. velikosti zrna
... 18 more rows

Sheet M-T Mv
C3: Všeobecná definice výrobku ETICS MAMUT-THERM Mv a zamýšlené použití
C5: ETA 14/0277
C6: Reakce na oheň Evropská třída dle EN 13501-1:2010: A2 – s1, d0
C8: Vnější tepelně izolační kompozitní systém (ETICS) MAMUT-THERM Mv, zvaný ETICS v dalším textu, je navržen a prováděn v souladu s návrhovými a montážními pokyny držitele ETA, uloženými v Technickém a zkušebním ústavu stavebním Praha s.p. (TZÚS), pobočka České Budějovice. ETICS se skládá z následujících součástí, které jsou vyráběny držitelem ETA nebo jeho subdodavatelem, z těch se poté zabudovává do stavby.
C9: Tento systém je prodáván pod jedním obchodním názvem.
C11: Definice výrobku | E11: Součásti | G11: Spotřeba (kg/m2) | H11: Tloušťka (mm)
C13: Výlučně lepený ETICS nebo částečně lepený ETICS s doplňkovým mechanickým kotvením.
C14: Národní prováděcí předpisy musí být brány v úvahu.
C15: Izolační vrstva – IV a související způsob upevnění | D15: Lepicí hmota | E15: MAMUT Flex 50 | G15: 3,0 - 6,0 (kg/m²) suché směsi | H15: -
E16: Stav při dodání: prášek
E17: Postup přípravy: prášek vyžadující přípravek vody 0,25 – 0,27 l/kg
E18: Hlavní součásti výrobku: portlandský cement, plnivo o zrnitosti 0-0,6mm, speciální přísady
D19: Lepicí hmota | E19: MAMUT Flex 45 | G19: 3,0 - 6,0 (kg/m²) suché směsi | H19: -
E20: Stav při dodání: prášek
E21: Postup přípravy: prášek vyžadující přípravek vody 0,25 – 0,27 l/kg
E22: Hlavní součásti výrobku: portlandský cement, plnivo o zrnitosti 0-0,6mm, speciální přísady
D23: Izolační výrobek | E23: Lamely z minerální vlny (MW "lamela", TR 80); λD= 0,041 W/(m.K) EN 13162–T5–DS(70,90)– TR80-WS–WL(P)–MU1 | H23: 50 - 300
C24: Mechanicky kotvený ETICS s doplňkovým lepením.
C25: Národní prováděcí předpisy musí být brány v úvahu.
C26: Izolační vrstva – IV a související způsob upevnění | D26: Lepicí hmota | E26: MAMUT Flex 50 | G26: 3,0 - 6,0 (kg/m²) suché směsi | H26: -
E27: Stav při dodání: prášek
E28: Postup přípravy: prášek vyžadující přípravek vody 0,25 – 0,27 l/kg
E29: Hlavní součásti výrobku: portlandský cement, plnivo o zrnitosti 0-0,6mm, speciální přísady
D30: Lepicí hmota | E30: MAMUT Flex 45 | G30: 3,0 - 6,0 (kg/m²) suché směsi | H30: -
E31: Stav při dodání: prášek
E32: Postup přípravy: prášek vyžadující přípravek vody 0,25 – 0,27 l/kg
E33: Hlavní součásti výrobku: portlandský cement, plnivo o zrnitosti 0-0,6 mm, speciální přísady
D34: Izolační výrobek | E34: Lamely z minerální vlny (MW "lamela", TR 80); λD= 0,041 W/(m.K) EN 13162–T5–DS(70,90)– TR80-WS–WL(P)–MU1
E35: Desky z minerální vlny (MW"deska", TR 15); λD= 0,039 W/(m.K) MW-EN 13162–T5–DS(T+)– DS(TH)–TR15-WS–WL(P)–MU1, | H35: 50-300
E36: FKD S Thermal (výrobce Knauf Insulation s.r.o.); λD= 0,035 W/(m.K) MW-EN 13162-T5-DS(TH)-CS(10)30-TR10-WS-WL(P)-MU1
E37: SMARTwall S C1 (výr.Knauf Insulation s.r.o.); λD= 0,035 W/(m.K) MW-EN 13162-T5-DS(TH)-CS(10)30-TR10-WS-WL(P)-MU1
E38: SMARTwall S C2 (výr.Knauf Insulation s.r.o.); λD= 0,035 W/(m.K) MW-EN 13162-T5-DS(TH)-CS(10)30-TR10-WS-WL(P)-MU1
E39: Frontrock MAX E (výrobce ROCKWOOL a.s.); λD= 0,036 W/(m.K) MW-EN 13162-T5-DS(T+)-DS(TH)-CS(10)20-TR10-PL(5)250-WS-WL(P)-MU1
E40: FKD N Thermal (výr.Knauf Insulation s.r.o.); λD= 0,035 W/(m.K) MW-EN 13162-T5-DS(TH)-CS(10)25-TR7,5-WS-WL(P)
E41: SMARTwall N C1 (výr.Knauf Insulation s.r.o.); λD= 0,035 W/(m.K) MW-EN 13162-T5-DS(TH)-CS(10)25-TR7,5-WS-WL(P)
E42: SMARTwall N C2 (výr.Knauf Insulation s.r.o.); λD= 0,035 W/(m.K) MW-EN 13162-T5-DS(TH)-CS(10)25-TR7,5-WS-WL(P)
E43: Isover TF PROFI (výr. SGCP CZ a.s.); λD= 0,036 W/(m.K) MW- EN 13162-T5- DS(TH)-CS(10)30-TR10-WS-WL(P)-MU1
D44: Mechanicky kotvící prvky | E44: ejotherm NT U | F44: ETA-05/0009 | G44: dle PD | H44: -
E45: plastové zatloukací hmoždinky
E46: ejotherm STR U | F46: ETA-04/0023 | G46: dle PD | H46: -
E47: plastové šroubovací hmoždinky alternativně s přídavným talířem: EJOT VT 90 (povrchová montáž)/EJOT VT 2G (zapuštěná montáž)
E48: ejotherm STR U 2G | F48: ETA-04/0023 | G48: dle PD | H48: -
E49: plastové šroubovací hmoždinky alternativně s přídavným talířem: EJOT VT 90 (povrchová montáž)/EJOT VT 2G (zapuštěná montáž)
E50: EJOT H1 eco | F50: ETA-11/0192 | G50: dle PD | H50: -
E51: plastové zatloukací hmoždinky
E52: EJOT H3 | F52: ETA-14/0130 | G52: dle PD | H52: -
E53: plastové zatloukací hmoždinky
E54: Bravoll PTH-KZ 60/8-La, PTH-KZL 60/8-La, | F54: ETA-05/0055 | G54: dle PD | H54: -
E55: plastové zatloukací hmoždinky
E56: Bravoll PTH-KZ 60/10-La, | F56: ETA-05/0055 | G56: dle PD | H56: -
E57: plastové zatloukací hmoždinky
E58: Bravoll PTH-S 60/8-La | F58: ETA-08/0267 | G58: dle PD | H58: -
E59: plastové šroubovací hmoždinky alternativně s přídavným talířem: IT PTH 100, IT PTH 140 (povrchová montáž)/ZT100, zápustným přípravkem BRAVOLL - ZP (zapuštěná montáž)
E60: Bravoll PTH-X | F60: ETA 13/0951 | G60: dle PD | H60: -
E61: plastové zatloukací hmoždinky alternativně s přídavným talířem: IT PTH 100, IT PTH 140 (povrchová montáž)
E62: Bravoll PTH-EX | F62: ETA 13/0951 | G62: dle PD | H62: -
E63: plastové zatloukací hmoždinky alternativně s přídavným talířem: IT PTH 100, IT PTH 140 (povrchová montáž)
E64: fischer Termoz 8 SV | F64: ETA-06/0180 | G64: dle PD | H64: -
E65: plastové šroubovací hmoždinky
E66: fischer Termoz 8N | F66: ETA-03/0019 | G66: dle PD | H66: -
E67: plastové zatloukací hmoždinky
E68: fischer Termoz 8NZ | F68: ETA-03/0019 | G68: dle PD | H68: -
E69: plastové zatloukací hmoždinky
E70: fischer Termofix CF 8 | F70: ETA-07/0287 | G70: dle PD | H70: -
E71: plastové zatloukací hmoždinky
E72: fischer Termoz CN8 | F72: ETA-09/0394 | G72: dle PD | H72: -
E73: plastové zatloukací hmoždinky
E74: fischer Termoz 8 U | F74: ETA-02/0019 | G74: dle PD | H74: -
E75: plastové šroubovací hmoždinky
E76: fischer Termoz SV II ecotwist | F76: ETA-12/0208 | G76: dle PD | H76: -
E77: plastové šroubovací hmoždinky
E78: Hilti D 8-FV | F78: ETA-07/0288 | G78: dle PD | H78: -
E79: plastové šroubovací hmoždinky
E80: Hilti XI-FV | F80: ETA-03/0004 | G80: dle PD | H80: -
E81: plastové nastřelovací hmoždinky
E82: Hilti SX-FV | F82: ETA-03/0005 | G82: dle PD | H82: -
E83: plastové šroubovací hmoždinky - jednokrok
E84: Hilti WDVS-Schraubdübel D-FV a D-FV T | F84: ETA-05/0039 | G84: dle PD | H84: -
E85: plastové šroubovací hmoždinky
E86: KOELNER TFIX-8M | F86: ETA-07/0336 | G86: dle PD | H86: -
E87: plastové zatloukací hmoždinky
E88: Koelner TFIX-8S a TFIX-8ST | F88: ETA-11/0144 | G88: dle PD | H88: -
E89: plastové šroubovací hmoždinky
E90: KOELNER KI-10M | F90: ETA-07/0291 | G90: dle PD | H90: -
E91: plastové zatloukací hmoždinky
E92: KOELNER KI-10N | F92: ETA-07/0221 | G92: dle PD | H92: -
E93: plastové zatloukací hmoždinky
E94: KOELNER KI-10NS | F94: ETA-07/0221 | G94: dle PD | H94: -
E95: plastové šroubovací hmoždinky
E96: KOELNER TFIX-8P | F96: ETA-13/0845 | G96: dle PD | H96: -
E97: plastové zatloukací hmoždinky
E98: KEW TSDL-V | F98: ETA-12/0148 | G98: dle PD | H98: -
E99: plastové zatloukací hmoždinky
E100: WKTHERM ø 8 | F100: ETA-11/0232 | G100: dle PD | H100: -
E101: plastové zatloukací hmoždinky
E102: WKRET-MET LFM 10 | F102: ETA-06/0105 | G102: dle PD | H102: -
E103: plastové zatloukací hmoždinky
E104: WKRET-MET LFM 8 | F104: ETA-06/0080 | G104: dle PD | H104: -
E105: plastové zatloukací hmoždinky
E106: WKRET-MET LMX 10 | F106: ETA-08/0172 | G106: dle PD | H106: -
E107: plastové zatloukací hmoždinky
E108: WKRET-MET eco-drive | F108: ETA-13/0107 | G108: dle PD | H108: -
E109: plastové šroubovací hmoždinky
E110: WKRET-MET eco-drive S | F110: ETA-13/0107 | G110: dle PD | H110: -
E111: plastové šroubovací hmoždinky
E112: WKRET-MET eco-drive W | F112: ETA-13/0107 | G112: dle PD | H112: -
E113: plastové šroubovací hmoždinky
E114: WKRET-MET WKTHERM S | F114: ETA-13/0724 | G114: dle PD | H114: -
E115: plastové šroubovací hmoždinky
E116: Kromě výše uvedených, mohou být v sestavě použity další typy hmoždinek posouzené podle ETAG 014, za předpokladu že splňují následující požadavky:
E117: Průměr talířku | F117: ≥ 60 mm
E118: Tuhost talířku | F118: Povrchová montáž | H118: ≥ 0,3 kN/mm
F119: Zapuštěná montáž: | H119: ≥ 0,6 kN/mm
E120: Síla při porušení talířku pro izolaci
E121: TR 15 | F121: Povrchová montáž | H121: ≥0,48 kN/mm
F122: Zapuštěná montáž: | H122: ≥0,48 kN/mm
F123: Speciální montáž: | H123: ≥0,52 kN/mm
E124: FKD S (C1/C2) TR 10 | F124: Povrchová montáž | H124: ≥0,44 kN/mm
F125: Zapuštěná montáž: | H125: ≥0,41 kN/mm
F126: Speciální montáž: | H126: nelze
F127: zapuštěná s přídavným talířkem d ≥ 100mm | H127: ≥0,91 kN/mm
E128: Isover TF PROFI (TR10) | F128: Povrchová montáž | H128: ≥0,47 kN/mm
F129: Povrchová montáž s příd. talířem d≥100mm | H129: ≥0,78 kN/mm
F130: Povrchová montáž s příd. talířem d≥140mm | H130: ≥0,93 kN/mm
F131: Zapuštěná montáž s příd. talířem d≥100mm | H131: ≥0,81 kN/mm
E132: dvouvrstvá deska Frontrock MAX E (TR10) | F132: Povrchová montáž | H132: ≥0,53 kN/mm
F133: Povrchová montáž s příd. talířem d≥ 90mm | H133: ≥0,79 kN/mm
F134: Povrchová montáž s příd. talířem d≥ 140mm | H134: ≥0,95 kN/mm
F135: Zapuštěná montáž s příd. talířem d≥100mm | H135: ≥0,84 kN/mm
F136: Zapuštěná montáž s příd. talířem d≥112,5mm | H136: ≥0,92 kN/mm
E137: FKD N (C1/C2, TR7,5) | F137: Povrchová montáž | H137: ≥0,42 kN/mm
F138: Povrchová montáž s příd. talířem d≥ 90mm | H138: ≥0,47 kN/mm
F139: Zapuštěná montáž s příd. talířem d≥112,5mm | H139: ≥0,78 kN/mm
C140: Základní vrstva – ZV | D140: Malta základní vrstvy – armovací hmota | E140: MAMUT Flex 50 | G140: 5,5 - 8,0 (kg/m²) suché směsi | H140: 4 - 6
E141: Stav při dodání: prášek
E142: Postup přípravy: prášek vyžadující přípravek vody 0,25 – 0,27 l/kg
E143: Hlavní součásti výrobku: portlandský cement, plnivo o zrnitosti 0-0,6mm, speciální přísady
D144: Malta základní vrstvy – armovací hmota | E144: MAMUT Flex 45 | G144: 4,0 - 6,0 (kg/m²) suché směsi | H144: 3 - 6
E145: Stav při dodání: prášek
E146: Postup přípravy: prášek vyžadující přípravek vody 0,25 – 0,27 l/kg
E147: Hlavní součásti výrobku: portlandský cement, plnivo o zrnitosti 0-0,6mm, speciální přísady
E148: pouze pod omítky MAMUT Spektrum VZ/VR, MAMUT Silikon VZ/VR a MAMUT Silikon extra VZ/VR; max. velikost zrna 1,5 až 3,0 mm; mimo izolační výrobky s TR 7,5
D149: Výztuž | E149: Skleněná síťovina pro ETICS
E150: VERTEX R 131 A101 (rozměry mřížky 3,5 x 3,8 mm) | G150: - | H150: -
E151: VERTEX R 117 A101 (rozměry mřížky 4,0 x 4,5 mm)
E152: REDNET CB 145 NOVA (rozměry mřížky 4,0 x 4,0 mm)
E153: 117S (rozměry mřížky 4,0 x 4,0 mm)
E154: 122 (rozměry mřížky 5,0 x 5,0 mm)
E155: 122L (rozměry mřížky 4,0 x 4,5 mm)
E156: LIFITEX PRO 165 (rozměry mřížky 4,0 x 4,8 mm)
E157: LIFITEX PRO 145 (rozměry mřížky 4,0 x 6,0 mm)
E158: Valmiera SSA-1363-SM (rozměry mřížky 5,0 x 4,0 mm)
C159: Povrchová úprava – PÚ | D159: Penetrační nátěr | E159: MAMUT Kontakt VSP | G159: 0,20 l/m² | H159: -
E160: Stav při dodání: tekutina připravená k použití
E161: Postup přípravy: neředit, promíchat
E162: Hlavní součásti výrobku: organické pojivo, minerální přísady, voda
E163: Použití: penetrační nátěr základní vrstvy určený pro konečné povrchové úpravy MAMUT Spektrum VZ/VR
E164: MAMUT Kontakt VSIL | G164: 0,20 l/m²
E165: Stav při dodání: tekutina připravená k použití
E166: Postup přípravy: neředit, promíchat
E167: Hlavní součásti výrobku: organické pojivo, minerální přísady, voda
E168: Použití: penetrační nátěr základní vrstvy určený pro konečné povrchové úpravy MAMUT Silikon VZ/VR
E169: MAMUT Kontakt VSICA | G169: 0,20 l/m² | H169: -
E170: Stav při dodání: tekutina připravená k použití
E171: Postup přípravy: neředit, promíchat
E172: Hlavní součásti výrobku: Draselné vodní sklo, organické pojivo, minerální přísady a voda
E173: Použití: penetrační nátěr základní vrstvy určený pro konečné povrchové úpravy MAMUT Silikikat VZ/VR
D174: Konečné povrchové úpravy | E174: Pastovité omítky
E175: MAMUT Spektrum VZ | G175: 1,7 – 4,0 (kg/m²) dle max.velikosti zrna | H175: Dle max. velikosti zrna
E176: akrylátová zatíraná omítka -max. zrno 1,0; 1,5; 2,0; 3,0mm
E177: Stav při dodání: pasta připravená k použití
E178: Složení: směs kameniva, pigmentů, plniv a pojiva na bázi akrylátového kopolymeru
E179: MAMUT Spektrum VR | G179: 2,4 – 3,8 (kg/m²) dle max.velikosti zrna | H179: Dle max. velikosti zrna
E180: akrylátová rýhovaná omítka -max. zrno 1,5; 2,0; 3,0mm
E181: Stav při dodání: pasta připravená k použití
E182: Složení: směs kameniva, pigmentů, plniv a pojiva na bázi akrylátového kopolymeru
E183: MAMUT Silikát VZ | G183: 1,7 – 4,0 (kg/m²) dle max.velikosti zrna | H183: Dle max. velikosti zrna
E184: silikátová zatíraná omítka -max. zrno 1,0; 1,5; 2,0; 3,0mm
E185: Stav při dodání: pasta připravená k použití
E186: Složení: směs kameniva, pigmentů, plniv a pojiva na bázi vodního skla
E187: MAMUT Silikát VR | G187: 2,4 – 3,8 (kg/m²) dle max.velikosti zrna | H187: Dle max. velikosti zrna
E188: silikátová rýhovaná omítka -max. zrno 1,5; 2,0; 3,0mm
E189: Stav při dodání: pasta připravená k použití
E190: Složení: směs kameniva, pigmentů, plniv a pojiva na bázi vodního skla
E191: MAMUT Silikon VZ | G191: 1,7 – 4,0 (kg/m²) dle max.velikosti zrna | H191: Dle max. velikosti zrna
E192: MAMUT Silikon extra VZ
E193: silikonová zatíraná omítka -max. zrno 1,0; 1,5; 2,0; 3,0mm
E194: Stav při dodání: pasta připravená k použití
E195: Složení: směs kameniva, pigmentů, plniv a pojiva na bázi silikonové kopolymerové emulze
E196: MAMUT Silikon VR | G196: 2,4 – 3,8 (kg/m²) dle max.velikosti zrna | H196: Dle max. velikosti zrna
E197: MAMUT Silikon extra VR
E198: silikonová rýhovaná omítka -max. zrno 1,5; 2,0; 3,0mm
E199: Stav při dodání: pasta připravená k použití
E200: Složení: směs kameniva, pigmentů, plniv a pojiva na bázi silikonové kopolymerové emulze
D201: Příslušenství | E201: Odpovídá popisu dle § 3.2.2.5 ETAG 004 na zodpovědnosti držitele ETA.
K202: ²
C203: Zamýšlené použití:
C204: Tento ETICS MAMUT-THERM Mv se uplatňuje jako vnější izolace stěn budov. Tyto stěny jsou vytvořeny zděním (z cihel, bloků, kamene ...) nebo z betonu (monolitického nebo z prefabrikovaných panelů). Předtím, než je ETICS uplatněn, je potřeba ověřit vlastnosti stěn, zejména pokud jde o podmínky pro třídu reakce na oheň a upevnění ETICS buď lepením nebo pomocí mechanického kotvení. ETICS je navrhován tak, aby dodával stěnám odpovídající tepelnou izolaci. ETICS je tvořen nenosnými konstrukčními součástmi. Nepůsobí přímo ke zvýšení stability zdi, na níž je aplikován, ale působí ke zvýšení odolnosti proti vlivům počasí. ETICS může být použit jak na nových, tak i na stávajících (rekonstruovaných) vertikálních stěnách. Může být také použit na horizontálních nebo nakloněných površích, které nejsou vystaveny dešťovým srážkám. Účelem ETICS není zajišťování neprůvzdušnosti budovy. Výběr způsobu upevnění závisí na vlastnostech podkladu, který může vyžadovat úpravu (viz čl. 7.2.1 ETAG 004) a musí být proveden v souladu s národními požadavky.
B205: Dle zákona 22/1997 Sb. v platném znění, zejména pak Nařízení vlády č. 163/2002 Sb.v platném znění, jsou tepelně izolační kompozitní systémy (ETICS) stanovenými výrobky. Z pohledu výše uvedeného zákona ve znění pozdějších předpisů vyplývá, že ETICS je brán jako výrobek a jako takový musí být nejprve odzkoušen v akreditovaných zkušebnách a certifikován. Odpovědnost podle příslušných předpisů pro stavební výrobky nese společnost MAMUT-THERM s.r.o. za ty specifikované ETICS, které sama, jako sestavy součástí, uvádí na trh. Každý ETICS je jednoznačně definovaným výrobkem, který má určenou skladbu komponentů, které na sebe vzájemně navazují. Záměnou komponentů, nedodržením skladby nebo nedodržením technologického postupu ETICS k odborné montáži, určených výrobcem, je hrubým zásahem do charakteristiky výrobku a vzniklý produkt již přestává být stanoveným a tedy certifikovaným výrobkem.

Sheet M-T P plus
C3: Všeobecná definice výrobku ETICS MAMUT-THERM P plus a zamýšlené použití
C5: STO 020-033397
C6: Reakce na oheň Evropská třída dle EN 13501-1:2010: B - s1,d0 *)
C8: Vnější tepelně izolační kompozitní systém (ETICS) MAMUT-THERM P plus, zvaný ETICS v dalším textu, je navržen a prováděn v souladu s návrhovými a montážními pokyny držitele STO, uloženými v Technickém a zkušebním ústavu stavebním Praha s.p. (TZÚS), pobočka České Budějovice. ETICS se skládá z následujících součástí, které jsou vyráběny držitelem STO nebo jeho subdodavatelem, z těch se poté zabudovává do stavby.
C9: Tento systém je prodáván pod jedním obchodním názvem.
C11: Definice výrobku | E11: Součásti | G11: Spotřeba (kg/m2) | H11: Tloušťka (mm)
C13: Mechanicky kotvený ETICS s doplňkovým lepením.
C14: Národní prováděcí předpisy musí být brány v úvahu.
C15: Izolační vrstva – IV a související způsob upevnění | D15: Lepicí hmota pouze s maltou základní vrstvy MAMUT Flex 50 | E15: MAMUT Flex 50 | G15: 3,0 - 6,0 (kg/m²) suché směsi | H15: -
E16: Stav při dodání: prášek
E17: Postup přípravy: prášek vyžadující přípravek vody 0,25 – 0,27 l/kg
E18: Hlavní součásti výrobku: portlandský cement, plnivo o zrnitosti 0-0,6mm, speciální přísady
E19: MAMUT Flex 45 | G19: 3,0 - 6,0 (kg/m²) suché směsi | H19: -
E20: Stav při dodání: prášek
E21: Postup přípravy: prášek vyžadující přípravek vody 0,25 – 0,27 l/kg
E22: Hlavní součásti výrobku: portlandský cement, plnivo o zrnitosti 0-0,6 mm, speciální přísady
D23: Lepicí hmota pouze s maltou základní vrstvy MAMUT Flex T | E23: MAMUT Flex T | G23: 3,0 - 5,0 (kg/m²) suché směsi | H23: -
E24: Stav při dodání: prášek
E25: Postup přípravy: prášek vyžadující přípravek vody 0,25 l/kg
E26: Hlavní součásti výrobku: portlandský cement, plnivo o zrnitosti 0-0,7mm, speciální přísady
D27: Lepicí hmota pouze s maltou základní vrstvy MAMUT Flex T a MAMUT MULTI | E27: MAMUT MULTI | G27: 3,0 - 5,0 (kg/m²) suché směsi | H27: -
E28: Stav při dodání: prášek
E29: Postup přípravy: prášek vyžadující přípravek vody 0,20 l/kg
E30: Hlavní součásti výrobku: portlandský cement, plnivo o zrnitosti 0-0,6mm, speciální přísady
D31: Izolační výrobek | E31: Desky z pěnového polystyrenu dle EN 13163:2012; (EPS s reakcí na oheň E) a s dalšími sledovanými vlastnostmi viz STO 020-033397 tab3. | H31: 50 - 250
D32: Izolační výrobek | E32: Desky z pěnového polystyrenu dle EN 13163:2012; λD= 0,031 W/(m.K) (EPS s reakcí na oheň E, pevností v tahu kolmo k rovině desky TR 150) a s dalšími sledovanými vlastnostmi viz STO 020-033397 tab3. | H32: 50 - 250
E33: Desky z pěnového polystyrenu dle EN 13163:2012; λD= 0,032 W/(m.K) (EPS s reakcí na oheň E, pevností v tahu kolmo k rovině desky TR 100) a s dalšími sledovanými vlastnostmi vizSTO 020-033397 tab3. | H33: 50 - 250
E34: Desky z pěnového polystyrenu dle EN 13163:2012; λD= 0,037 W/(m.K) (EPS s reakcí na oheň E, pevností v tahu kolmo k rovině desky TR 150) a s dalšími sledovanými vlastnostmi viz STO 020-033397 tab3. | H34: 50 - 250
E35: Desky z pěnového polystyrenu dle EN 13163:2012; λD= 0,039 W/(m.K) (EPS s reakcí na oheň E, pevností v tahu kolmo k rovině desky TR 100) a s dalšími sledovanými vlastnostmi vizSTO 020-033397 tab3. | H35: 50 - 250
D36: Kotvicí hmoždinky k kovovám vrutem | E36: ejotherm STR U | F36: ETA-04/0023 | G36: dle PD | H36: -
E37: plastové šroubovací hmoždinky
E38: ejotherm STR U 2G | F38: ETA-04/0023 | G38: dle PD | H38: -
E39: plastové šroubovací hmoždinky
E40: Bravoll PTH-S 60/8-La | F40: ETA-08/0267 | G40: dle PD | H40: -
E41: plastové šroubovací hmoždinky
E42: fischer Termoz 8 SV | F42: ETA-06/0180 | G42: dle PD | H42: -
E43: plastové šroubovací hmoždinky
E44: fischer Termoz 8 U | F44: ETA-02/0019 | G44: dle PD | H44: -
E45: plastové šroubovací hmoždinky
E46: fischer termoz CS 8 | F46: ETA-14/0372 | G46: dle PD
E47: plastové šroubovací hmoždinky
E48: Hilti WDVS-Schraubdübel D-FV a D-FV T | F48: ETA-05/0039 | G48: dle PD | H48: -
E49: plastové šroubovací hmoždinky
E50: Koelner TFIX-8S a TFIX-8ST | F50: ETA-11/0144 | G50: dle PD
E51: plastové šroubovací hmoždinky
E52: KOELNER KI-10NS | F52: ETA-07/0221 | G52: dle PD | H52: -
E53: plastové šroubovací hmoždinky
E54: WKRET-MET eco-drive | F54: ETA-13/0107 | G54: dle PD | H54: -
E55: plastové šroubovací hmoždinky
E56: WKRET-MET eco-drive S | F56: ETA-13/0107 | G56: dle PD | H56: -
E57: plastové šroubovací hmoždinky
E58: WKRET-MET eco-drive W | F58: ETA-13/0107 | G58: dle PD | H58: -
E59: plastové šroubovací hmoždinky
E60: WKRET-MET WKTHERM-S | F60: ETA-13/0724 | G60: dle PD | H60: -
E61: plastové šroubovací hmoždinky
C62: Základní vrstva – ZV | D62: Malta základní vrstvy pouze s lepicími hmotami MAMUT Flex 50 a Flex 45 | E62: MAMUT Flex 50 | G62: 4,0 - 6,0 (kg/m²) suché směsi | H62: 3 - 6
E63: Stav při dodání: prášek
E64: Postup přípravy: prášek vyžadující přípravek vody 0,25 – 0,27 l/kg
E65: Hlavní součásti výrobku: portlandský cement, plnivo o zrnitosti 0-0,6mm, speciální přísady
D66: Malta základní vrstvy pouze s lepicí hmotou MAMUT MULTI | E66: MAMUT MULTI | G66: 3,0 - 5,0 (kg/m²) suché směsi | H66: 3-4
E67: Stav při dodání: prášek
E68: Postup přípravy: prášek vyžadující přípravek vody 0,25 – 0,27 l/kg
E69: Hlavní součásti výrobku: portlandský cement, plnivo o zrnitosti 0-0,6mm, speciální přísady
D70: Malta základní vrstvy pouze s lepicími hmotami MAMUT Flex T a MAMUT MULTI | E70: MAMUT Flex T | G70: 3,6 - 5,0 (kg/m²) suché směsi | H70: 3-4
E71: Stav při dodání: prášek
E72: Postup přípravy: prášek vyžadující přípravek vody 0,25 – 0,27 l/kg
E73: Hlavní součásti výrobku: portlandský cement, plnivo o zrnitosti 0-0,6mm, speciální přísady
D74: Výztuž | E74: Skleněná síťovina pro ETICS
E75: VERTEX R 131 A101 (rozměry mřížky 3,5 x 3,8 mm) | G75: - | H75: -
E76: VERTEX R 117 A101 (rozměry mřížky 4,0 x 4,5 mm) pouze s maltou základní vrstvy MAMUT Flex 50
E77: 117S (rozměry mřížky 4,0 x 5,0 mm) pouze s maltou základní vrstvy MAMUT Flex 50
E78: 122 (rozměry mřížky 4,0 x 4,0 mm) pouze s maltou základní vrstvy MAMUT Flex 50
E79: 122L (rozměry mřížky 4,0 x 4,5 mm) pouze s maltou základní vrstvy MAMUT Flex 50
C80: Povrchová úprava – PÚ | D80: Penetrační nátěr | E80: MAMUT Kontakt VSP | G80: 0,20 l/m² | H80: -
E81: Stav při dodání: tekutina připravená k použití
E82: Postup přípravy: neředit, promíchat
E83: Hlavní součásti výrobku: organické pojivo, minerální přísady, voda
E84: Použití: penetrační nátěr základní vrstvy určený pro konečné povrchové úpravy MAMUT Spektrum VZ/VR
E85: MAMUT Kontakt VSICA | G85: 0,20 l/m² | H85: -
E86: Stav při dodání: tekutina připravená k použití
E87: Postup přípravy: neředit, promíchat
E88: Hlavní součásti výrobku: Drasekné vodní sklo, minerální přísady, voda
E89: Použití: penetrační nátěr základní vrstvy určený pro konečné povrchové úpravy MAMUT Silikát VZ/VR
E90: MAMUT Kontakt VSIL | G90: 0,20 l/m² | H90: -
E91: Stav při dodání: tekutina připravená k použití
E92: Postup přípravy: neředit, promíchat
E93: Hlavní součásti výrobku: organické pojivo, minerální přísady, voda
E94: Použití: penetrační nátěr základní vrstvy určený pro konečné povrchové úpravy MAMUT Silikon VZ/VR
E95: MAMUT Kontakt | G95: 0,20 l/m² | H95: -
E96: Stav při dodání: tekutina připravená k použití
E97: Postup přípravy: neředit, promíchat
E98: Hlavní součásti výrobku: umělopryskyřičná disperze, minerální přísady
E99: Použití: penetrační nátěr základní vrstvy určený pro konečné povrchové úpravy MAMUT Silikon, MAMUT Silikat, MAMUT Spektrum
E100: MAMUT Kontakt mozaika | G100: 0,20 l/m² | H100: -
E101: Stav při dodání: tekutina připravená k použití
E102: Postup přípravy: neředit, promíchat
E103: Hlavní součásti výrobku: umělopryskyřičná disperze, minerální přísady
E104: Použití: penetrační nátěr základní vrstvy určený pro konečné povrchové úpravy MAMUT mozaika
D105: Konečné povrchové úpravy | E105: Omítky
E106: MAMUT Spektrum VZ | G106: 1,7 – 4,0 (kg/m²) dle max.velikosti zrna | H106: Dle max. velikosti zrna
E107: akrylátová zatíraná omítka -max. zrno 1,0; 1,5; 2,0; 3,0mm
E108: Stav při dodání: pasta připravená k použití
E109: Složení: směs kameniva, pigmentů, plniv a pojiva na bázi umělé pryskyřice
E110: Pouze pro maltu základní vrstvy MAMUT Flex 50
E111: MAMUT Spektrum VR | G111: 2,4 – 3,8 (kg/m²) dle max.velikosti zrna | H111: Dle max. velikosti zrna
E112: akrylátová rýhovaná omítka -max. zrno 1,5; 2,0; 3,0mm
E113: Stav při dodání: pasta připravená k použití
E114: Složení: směs kameniva, pigmentů, plniv a pojiva na bázi umělé pryskyřice
E115: Pouze pro maltu základní vrstvy MAMUT Flex 50
E116: MAMUT Silikát VZ | G116: 1,7 – 4,0 (kg/m²) dle max.velikosti zrna | H116: Dle max. velikosti zrna
E117: silikátová zatíraná omítka -max. zrno 1,0; 1,5; 2,0; 3,0mm
E118: Stav při dodání: pasta připravená k použití
E119: Složení: směs kameniva, pigmentů, plniv a pojiva na bázi vodního skla
E120: Pouze pro maltu základní vrstvy MAMUT Flex 50
E121: MAMUT Silikát VR | G121: 2,4 – 3,8 (kg/m²) dle max.velikosti zrna | H121: Dle max. velikosti zrna
E122: silikátová rýhovaná omítka -max. zrno 1,5; 2,0; 3,0mm
E123: Stav při dodání: pasta připravená k použití
E124: Složení: směs kameniva, pigmentů, plniv a pojiva na bázi vodního skla
E125: Pouze pro maltu základní vrstvy MAMUT Flex 50
E126: MAMUT Silikon VZ | G126: 1,7 – 4,0 (kg/m²) dle max.velikosti zrna | H126: Dle max. velikosti zrna
E127: silikonová zatíraná omítka -max. zrno 1,0; 1,5; 2,0; 3,0mm
E128: Stav při dodání: pasta připravená k použití
E129: Složení: směs kameniva, pigmentů, plniv a pojiva na bázi silikonové pryskyřice
E130: Pouze pro maltu základní vrstvy MAMUT Flex 50
E131: MAMUT Silikon VR | G131: 2,4 – 3,8 (kg/m²) dle max.velikosti zrna | H131: Dle max. velikosti zrna
E132: silikonová rýhovaná omítka -max. zrno 1,5; 2,0; 3,0mm
E133: Stav při dodání: pasta připravená k použití
E134: Složení: směs kameniva, pigmentů, plniv a pojiva na bázi silikonové pryskyřice
E135: Pouze pro maltu základní vrstvy MAMUT Flex 50
E136: MAMUT Spektrum Z | G136: 2,5 – 3,8 (kg/m²) dle max.velikosti zrna | H136: Dle max. velikosti zrna
E137: akrylátová zatíraná omítka -max. zrno 1,5; 2,0; 3,0mm
E138: Stav při dodání: pasta připravená k použití
E139: Složení: směs kameniva, pigmentů, plniv a pojiva na bázi umělé pryskyřice
E140: Pouze pro maltu základní vrstvy MAMUT Flex T a MAMUT MULTI
E141: MAMUT Spektrum R | G141: 2,4 – 3,7 (kg/m²) dle max.velikosti zrna | H141: Dle max. velikosti zrna
E142: akrylátová rýhovaná omítka -max. zrno 1,5; 2,0; 3,0mm
E143: Stav při dodání: pasta připravená k použití
E144: Složení: směs kameniva, pigmentů, plniv a pojiva na bázi umělé pryskyřice
E145: Pouze pro maltu základní vrstvy MAMUT Flex T a MAMUT MULTI
E146: MAMUT Silikon Z | G146: 2,5 – 3,8 (kg/m²) dle max.velikosti zrna | H146: Dle max. velikosti zrna
E147: silikonová zatíraná omítka -max. zrno 1,5; 2,0; 3,0mm
E148: Stav při dodání: pasta připravená k použití
E149: Složení: směs kameniva, pigmentů, plniv a pojiva na bázi silikonové pryskyřice
E150: Pouze pro maltu základní vrstvy MAMUT Flex T a MAMUT MULTI
E151: MAMUT Silikon R | G151: 2,4 – 3,7 (kg/m²) dle max.velikosti zrna | H151: Dle max. velikosti zrna
E152: silikonová rýhovaná omítka -max. zrno 1,5; 2,0; 3,0mm
E153: Stav při dodání: pasta připravená k použití
E154: Složení: směs kameniva, pigmentů, plniv a pojiva na bázi silikonové pryskyřice
E155: Pouze pro maltu základní vrstvy MAMUT Flex T a MAMUT MULTI
E156: MAMUT Silikon AS Z | G156: 2,5 – 3,8 (kg/m²) dle max.velikosti zrna | H156: Dle max. velikosti zrna
E157: silikátová zatíraná omítka -max. zrno 1,5; 2,0; 3,0mm
E158: Stav při dodání: pasta připravená k použití
E159: Složení: směs kameniva, pigmentů, plniv a pojiva na bázi silikonové pryskyřice
E160: Pouze pro maltu základní vrstvy MAMUT MULTI
E161: MAMUT Silikon AS R | G161: 2,4 – 3,7 (kg/m²) dle max.velikosti zrna | H161: Dle max. velikosti zrna
E162: silikátová rýhovaná omítka -max. zrno 1,5; 2,0; 3,0mm
E163: Stav při dodání: pasta připravená k použití
E164: Složení: směs kameniva, pigmentů, plniv a pojiva na bázi silikonové pryskyřice
E165: Pouze pro maltu základní vrstvy MAMUT MULTI
E166: MAMUT Silikát Z | G166: 2,5 – 3,8 (kg/m²) dle max.velikosti zrna | H166: Dle max. velikosti zrna
E167: silikátová zatíraná omítka -max. zrno 1,5; 2,0; 3,0mm
E168: Stav při dodání: pasta připravená k použití
E169: Složení: směs kameniva, pigmentů, plniv a pojiva na bázi vodního skla
E170: Pouze pro maltu základní vrstvy MAMUT Flex T
E171: MAMUT Silikát R | G171: 2,4 – 3,7 (kg/m²) dle max.velikosti zrna | H171: Dle max. velikosti zrna
E172: silikátová rýhovaná omítka -max. zrno 1,5; 2,0; 3,0mm
E173: Stav při dodání: pasta připravená k použití
E174: Složení: směs kameniva, pigmentů, plniv a pojiva na bázi vodního skla
E175: Pouze pro maltu základní vrstvy MAMUT Flex T
E176: MAMUT Mozaika | G176: 4,5 (kg/m²) | H176: Dle max. velikosti zrna
E177: akrylátová omítka -max. zrno 2,0
E178: Stav při dodání: pasta připravená k použití
E179: Složení: směs kameniva, pigmentů a pojiva na bázi umělé pryskyřice
E180: Pouze pro maltu základní vrstvy MAMUT Flex T a MAMUT MULTI
D181: Příslušenství | E181: Vlastnosti příslušenství jsou garantovány na zodpovědnosti výrobce ETICS
C182: *) nebo dle tab. 8 STO 020-033397 | K182: ²
C184: Zamýšlené použití:
C185: MAMUT-THERM P plus je vnější tepelně izolační kompozitní systém s izolantem z expandovaného polystyrenu (EPS) s omítkou. Tento ETICS je určen k vnějšímu zateplení fasád stávajících obytných, občanských a průmyslových budov, zhotovených ze zdiva, z monolitického betonu nebo z prefabrikovaných betonových panelů se zabudovaným ETICS. Systém je navržen tak, aby jej bylo možno aplikovat na již existující ETICS s izolantem z expandovaného polystyrenu (EPS) nebo z minerální vlny (MW). ETICS je navrhován tak, aby dodával stěnám odpovídající tepelnou izolaci. ETICS je tvořen nenosnými konstrukčními součástmi. Nepůsobí přímo ke zvýšení stability zdi, na níž je aplikován, ale působí ke zvýšení odolnosti proti vlivům počasí. Minimální tloušťka tepelně izolačního materiálu nového ETICS je 50 mm, je však vždy nutné zajistit tepelně technické posouzení ETICS.
C186: Před návrhem a realizací ETICS je nutné provést detailní stavebně technický průzkum podle dokumentace výrobce ETICS (Pokyny pro navrhování a technologický postup montáže systému MAMUT-THERM P plus), jehož součástí je mj. provedení velkoplošné sondy o velikosti minimálně jedné desky tepelně izolačního materiálu. Pro aplikaci ETICS je nutné zpracovat projektovou dokumentaci, ve které bude navržena konkrétní skladba ETICS s ohledem na individuální podmínky konkrétního objektu, a dále bude obsahovat mj. způsob posouzení nosného podkladu, způsob posouzení stavu stávajícího ETICS, podmínky návrhu nového ETICS, řešení detailů a výchozí hodnoty pro návrhové výpočty. Nutnou součástí projektu je řešení nosné způsobilosti kotvení, řešení tepelně technických vlastností včetně řešení kondenzace vodní páry – posouzení stavu konstrukce jako celku dle ČSN 73 0540 a požární zpráva. Použitelnost tohoto ETICS je omezena aktuálním ustanovením národních technických norem (např. dle ČSN 73 0810).
B187: Dle zákona 22/1997 Sb. v platném znění, zejména pak Nařízení vlády č. 163/2002 Sb.v platném znění, jsou tepelně izolační kompozitní systémy (ETICS) stanovenými výrobky. Z pohledu výše uvedeného zákona ve znění pozdějších předpisů vyplývá, že ETICS je brán jako výrobek a jako takový musí být nejprve odzkoušen v akreditovaných zkušebnách a certifikován. Odpovědnost podle příslušných předpisů pro stavební výrobky nese společnost MAMUT-THERM s.r.o. za ty specifikované ETICS, které sama, jako sestavy součástí, uvádí na trh. Každý ETICS je jednoznačně definovaným výrobkem, který má určenou skladbu komponentů, které na sebe vzájemně navazují. Záměnou komponentů, nedodržením skladby nebo nedodržením technologického postupu ETICS k odborné montáži, určených výrobcem, je hrubým zásahem do charakteristiky výrobku a vzniklý produkt již přestává být stanoveným a tedy certifikovaným výrobkem.

Sheet MAMUT-THERM P+ (hidden)
C3: 6. Definice 2.ETICS
C4: Všeobecná definice výrobku ETICS MAMUT-THERM P plus a zamýšlené použití
C6: STO 020-033397
C7: Reakce na oheň Evropská třída dle EN 13501-1:2010: B – s1, d0 *)
C9: Vnější tepelně izolační kompozitní systém (ETICS) MAMUT-THERM P plus, zvaný ETICS v dalším textu, je navržen a prováděn v souladu s návrhovými a montážními pokyny držitele STO, uloženými v Technickém a zkušebním ústavu stavebním Praha s.p. (TZÚS), pobočka České Budějovice. ETICS se skládá z následujících součástí, které jsou vyráběny držitelem STO nebo jeho subdodavatelem, z těch se poté zabudovává do stavby.
C10: Tento systém je prodáván pod jedním obchodním názvem.
C12: Definice výrobku | E12: Součásti | G12: Spotřeba (kg/m2) | H12: Tloušťka (mm)
C14: Výlučně lepený ETICS nebo částečně lepený ETICS s doplňkovým mechanickým kotvením (viz níže).
C15: Národní prováděcí předpisy musí být brány v úvahu.
C16: Izolační vrstva – IV a související způsob upevnění | D16: Lepicí hmota | E16: MAMUT Flex 50 | G16: 3,0 - 6,0 (kg/m²) suché směsi | H16: -
E17: Stav při dodání: prášek
E18: Postup přípravy: prášek vyžadující přípravek vody 0,25 – 0,27 l/kg
E19: Hlavní součásti výrobku: portlandský cement, plnivo o zrnitosti 0-0,6mm, speciální přísady
D20: Lepicí hmota | E20: MAMUT Flex 45 | G20: 3,0 - 6,0 (kg/m²) suché směsi | H20: -
E21: Stav při dodání: prášek
E22: Postup přípravy: prášek vyžadující přípravek vody 0,25 – 0,27 l/kg
E23: Hlavní součásti výrobku: portlandský cement, plnivo o zrnitosti 0-0,6mm, speciální přísady
D24: Izolační výrobek | E24: Desky z pěnového polystyrenu dle EN 13163:2012 (EPS s reakcí na oheň E, pevností v tahu kolmo k rovině desky TR 100) a s dalšími sledovanými vlastnostmi viz ETA 14/0278 příloha č.1. | G24: - | H24: 50 - 300
C25: Mechanicky kotvený ETICS s doplňkovým lepením. Dle pokynů výrobce ETICS se nový ETICS lepí celoplošně (100%) nebo minimálně na 40 % plochy izolační desky a v předepsané tloušťce.
C26: Hmoždinky: Kotevní hmoždinky certifikovány podle ETAG 014 a podle ETAG 004 (Kotevní prvky posouzené na odolnost proti vytržení z podkladu a protažení izolantem). Ke kotvení se používají pouze hmoždinky s kovovým šroubovacím rozpěrným trnem.
C27: Izolační vrstva – IV a související způsob upevnění | D27: Lepicí hmota pouze s maltou základní vrstvy MAMUT Flex 50 | E27: MAMUT Flex 50 | G27: 3,0 - 6,0 (kg/m²) suché směsi | H27: -
E28: Stav při dodání: prášek
E29: Postup přípravy: prášek vyžadující přípravek vody 0,25 – 0,27 l/kg
E30: Hlavní součásti výrobku: portlandský cement, plnivo o zrnitosti 0-0,6mm, speciální přísady
D31: Lepicí hmota pouze s maltou základní vrstvy MAMUT Flex 50 | E31: MAMUT Flex 45 | G31: 3,0 - 6,0 (kg/m²) suché směsi | H31: -
E32: Stav při dodání: prášek
E33: Postup přípravy: prášek vyžadující přípravek vody 0,25 – 0,27 l/kg
E34: Hlavní součásti výrobku: portlandský cement, plnivo o zrnitosti 0-0,6 mm, speciální přísady
D35: Lepicí hmota pouze s maltou základní vrstvy MAMUT Flex T | E35: MAMUT Flex T | G35: 3,0 - 5,0 (kg/m²) suché směsi | H35: -
E36: Stav při dodání: prášek
E37: Postup přípravy: prášek vyžadující přípravek vody 0,25 l/kg
E38: Hlavní součásti výrobku: portlandský cement, plnivo o zrnitosti 0-0,7mm, speciální přísady
D39: Lepicí hmota pouze s maltou základní vrstvy MAMUT Flex T a MAMUT MULTI | E39: MAMUT MULTI | G39: 3,0 - 5,0 (kg/m²) suché směsi | H39: -
E40: Stav při dodání: prášek
E41: Postup přípravy: prášek vyžadující přípravek vody 0,20 l/kg
E42: Hlavní součásti výrobku: portlandský cement, plnivo o zrnitosti 0-0,6mm, speciální přísady
D43: Izolační výrobek | E43: Desky z pěnového polystyrenu dle EN 13163 ed.2; (EPS s reakcí na oheň E) a s dalšími sledovanými vlastnostmi viz STO 020-033397 tab.3 | H43: 50 - 250
D44: Izolační výrobek | E44: Desky z pěnového polystyrenu dle EN 13163:2012; λD= 0,031 W/(m.K) (EPS s reakcí na oheň E, pevností v tahu kolmo k rovině desky TR 150) a s dalšími sledovanými vlastnostmi viz ETA 14/0278 příloha č.1. | H44: 50 - 250
E45: Desky z pěnového polystyrenu dle EN 13163:2012; λD= 0,032 W/(m.K) (EPS s reakcí na oheň E, pevností v tahu kolmo k rovině desky TR 100) a s dalšími sledovanými vlastnostmi viz ETA 14/0278 příloha č.1. | H45: 50 - 250
E46: Desky z pěnového polystyrenu dle EN 13163:2012; λD= 0,037 W/(m.K) (EPS s reakcí na oheň E, pevností v tahu kolmo k rovině desky TR 150) a s dalšími sledovanými vlastnostmi viz ETA 14/0278 příloha č.1. | H46: 50 - 250
E47: Desky z pěnového polystyrenu dle EN 13163:2012; λD= 0,039 W/(m.K) (EPS s reakcí na oheň E, pevností v tahu kolmo k rovině desky TR 100) a s dalšími sledovanými vlastnostmi viz ETA 14/0278 příloha č.1. | H47: 50 - 250
D48: Kotvicí hmoždinky k kovovám vrutem | E48: ejotherm STR U | F48: ETA-04/0023 | G48: dle PD | H48: -
E49: plastové šroubovací hmoždinky
E50: ejotherm STR U 2G | F50: ETA-04/0023 | G50: dle PD | H50: -
E51: plastové šroubovací hmoždinky
E52: Bravoll PTH-S 60/8-La | F52: ETA-08/0267 | G52: dle PD | H52: -
E53: plastové šroubovací hmoždinky
E54: fischer Termoz 8 SV | F54: ETA-06/0180 | G54: dle PD | H54: -
E55: plastové šroubovací hmoždinky
E56: fischer Termoz 8 U | F56: ETA-02/0019 | G56: dle PD | H56: -
E57: plastové šroubovací hmoždinky
E58: fischer termoz CS 8 | F58: ETA-14/0372 | G58: dle PD
E59: plastové šroubovací hmoždinky
E60: Hilti WDVS-Schraubdübel D-FV a D-FV T | F60: ETA-05/0039 | G60: dle PD | H60: -
E61: plastové šroubovací hmoždinky
E62: Koelner TFIX-8S a TFIX-8ST | F62: ETA-11/0144 | G62: dle PD
E63: plastové šroubovací hmoždinky
E64: KOELNER KI-10NS | F64: ETA-07/0221 | G64: dle PD | H64: -
E65: plastové šroubovací hmoždinky
E66: WKRET-MET eco-drive | F66: ETA-13/0107 | G66: dle PD | H66: -
E67: plastové šroubovací hmoždinky
E68: WKRET-MET eco-drive S | F68: ETA-13/0107 | G68: dle PD | H68: -
E69: plastové šroubovací hmoždinky
E70: WKRET-MET eco-drive W | F70: ETA-13/0107 | G70: dle PD | H70: -
E71: plastové šroubovací hmoždinky
E72: WKRET-MET WKTHERM-S | F72: ETA-13/0724 | G72: dle PD | H72: -
E73: plastové šroubovací hmoždinky
C74: Základní vrstva – ZV | D74: Malta základní vrstvy pouze s lepicími hmotami MAMUT Flex 50 a Flex 45 | E74: MAMUT Flex 50 | G74: 4,0 - 6,0 (kg/m²) suché směsi | H74: 3 - 4
E75: Stav při dodání: prášek
E76: Postup přípravy: prášek vyžadující přípravek vody 0,25 – 0,27 l/kg
E77: Hlavní součásti výrobku: portlandský cement, plnivo o zrnitosti 0-0,6mm, speciální přísady
D78: Malta základní vrstvy pouze s lepicí hmotou MAMUT MULTI | E78: MAMUT MULTI | G78: 4,0 - 6,0 (kg/m²) suché směsi | H78: 3 - 4
E79: Stav při dodání: prášek
E80: Postup přípravy: prášek vyžadující přípravek vody 0,20 l/kg
E81: Hlavní součásti výrobku: portlandský cement, plnivo o zrnitosti 0-0,6mm, speciální přísady
D82: Malta základní vrstvy pouze s lepicími hmotami MAMUT Flex T a MAMUT MULTI | E82: MAMUT Flex T | G82: 4,0 - 6,0 (kg/m²) suché směsi | H82: 3 - 4
E83: Stav při dodání: prášek
E84: Postup přípravy: prášek vyžadující přípravek vody 0,25 l/kg
E85: Hlavní součásti výrobku: portlandský cement, plnivo o zrnitosti 0-0,7mm, speciální přísady
D86: Výztuž | E86: Skleněná síťovina pro ETICS
E87: VERTEX R 131 A101 (rozměry mřížky 3,5 x 3,8 mm) | G87: - | H87: -
E88: VERTEX R 117 A101 (rozměry mřížky 4,0 x 4,5 mm) pouze s maltou základní vrstvy MAMUT Flex 50
E89: 117S (rozměry mřížky 4,0 x 5,0 mm) pouze s maltou základní vrstvy MAMUT Flex 50
E90: 122 (rozměry mřížky 4,0 x 4,0 mm) pouze s maltou základní vrstvy MAMUT Flex 50
E91: 122L (rozměry mřížky 4,0 x 4,5 mm) pouze s maltou základní vrstvy MAMUT Flex 50
C92: Povrchová úprava – PÚ | D92: Penetrační nátěr | E92: MAMUT Kontakt VSP | G92: 0,20 l/m² | H92: -
E93: Stav při dodání: tekutina připravená k použití
E94: Postup přípravy: neředit, promíchat
E95: Hlavní součásti výrobku: organické pojivo, minerální přísady, voda
E96: Použití: penetrační nátěr základní vrstvy určený pro konečné povrchové úpravy MAMUT Spektrum VZ/VR
E97: MAMUT Kontakt VSICA | G97: 0,20 l/m² | H97: -
E98: Stav při dodání: tekutina připravená k použití
E99: Postup přípravy: neředit, promíchat
E100: Hlavní součásti výrobku: Drasekné vodní sklo, minerální přísady, voda
E101: Použití: penetrační nátěr základní vrstvy určený pro konečné povrchové úpravy MAMUT Silikát VZ/VR
E102: MAMUT Kontakt VSIL | G102: 0,20 l/m² | H102: -
E103: Stav při dodání: tekutina připravená k použití
E104: Postup přípravy: neředit, promíchat
E105: Hlavní součásti výrobku: organické pojivo, minerální přísady, voda
E106: Použití: penetrační nátěr základní vrstvy určený pro konečné povrchové úpravy MAMUT Silikon VZ/VR
E107: MAMUT Kontakt | G107: 0,20 l/m² | H107: -
E108: Stav při dodání: tekutina připravená k použití
E109: Postup přípravy: neředit, promíchat
E110: Hlavní součásti výrobku: umělopryskyřičná disperze, minerální přísady
E111: Použití: penetrační nátěr základní vrstvy určený pro konečné povrchové úpravy MAMUT Silikon, MAMUT Silikat, MAMUT Spektrum, MAMUT Silikon AS
E112: MAMUT Kontakt mozaika | G112: 0,20 l/m² | H112: -
E113: Stav při dodání: tekutina připravená k použití
E114: Postup přípravy: neředit, promíchat
E115: Hlavní součásti výrobku: umělopryskyřičná disperze, minerální přísady
E116: Použití: penetrační nátěr základní vrstvy určený pro konečné povrchové úpravy MAMUT mozaika
D117: Konečné povrchové úpravy | E117: Pastovité omítky
E118: MAMUT Spektrum VZ | G118: 1,7 – 4,0 (kg/m²) dle max.velikosti zrna | H118: Dle max. velikosti zrna
E119: akrylátová zatíraná omítka -max. zrno 1,0; 1,5; 2,0; 3,0mm
E120: Stav při dodání: pasta připravená k použití
E121: Složení: směs kameniva, pigmentů, plniv a pojiva na bázi umělé pryskyřice
E122: Pouze pro maltu základní vrstvy MAMUT Flex 50
E123: MAMUT Spektrum VR | G123: 2,4 – 3,8 (kg/m²) dle max.velikosti zrna | H123: Dle max. velikosti zrna
E124: akrylátová rýhovaná omítka -max. zrno 1,5; 2,0; 3,0mm
E125: Stav při dodání: pasta připravená k použití
E126: Složení: směs kameniva, pigmentů, plniv a pojiva na bázi umělé pryskyřice
E127: Pouze pro maltu základní vrstvy MAMUT Flex 50
E128: MAMUT Silikát VZ | G128: 1,7 – 4,0 (kg/m²) dle max.velikosti zrna | H128: Dle max. velikosti zrna
E129: silikátová zatíraná omítka -max. zrno 1,0; 1,5; 2,0; 3,0mm
E130: Stav při dodání: pasta připravená k použití
E131: Složení: směs kameniva, pigmentů, plniv a pojiva na bázi vodního skla
E132: Pouze pro maltu základní vrstvy MAMUT Flex 50
E133: MAMUT Silikát VR | G133: 2,4 – 3,8 (kg/m²) dle max.velikosti zrna | H133: Dle max. velikosti zrna
E134: silikátová rýhovaná omítka -max. zrno 1,5; 2,0; 3,0mm
E135: Stav při dodání: pasta připravená k použití
E136: Složení: směs kameniva, pigmentů, plniv a pojiva na bázi vodního skla
E137: Pouze pro maltu základní vrstvy MAMUT Flex 50
E138: MAMUT Silikon VZ | G138: 1,7 – 4,0 (kg/m²) dle max.velikosti zrna | H138: Dle max. velikosti zrna
E139: silikonová zatíraná omítka -max. zrno 1,0; 1,5; 2,0; 3,0mm
E140: Stav při dodání: pasta připravená k použití
E141: Složení: směs kameniva, pigmentů, plniv a pojiva na bázi silikonové pryskyřice
E142: Pouze pro maltu základní vrstvy MAMUT Flex 50
E143: MAMUT Silikon VR | G143: 2,4 – 3,8 (kg/m²) dle max.velikosti zrna | H143: Dle max. velikosti zrna
E144: silikonová rýhovaná omítka -max. zrno 1,5; 2,0; 3,0mm
E145: Stav při dodání: pasta připravená k použití
E146: Složení: směs kameniva, pigmentů, plniv a pojiva na bázi silikonové pryskyřice
E147: Pouze pro maltu základní vrstvy MAMUT Flex 50
E148: MAMUT Spektrum Z | G148: 2,5 – 3,8 (kg/m²) dle max.velikosti zrna | H148: Dle max. velikosti zrna
E149: akrylátová zatíraná omítka -max. zrno 1,5; 2,0; 3,0mm
E150: Stav při dodání: pasta připravená k použití
E151: Složení: směs kameniva, pigmentů, plniv a pojiva na bázi umělé pryskyřice
E152: Pouze pro maltu základní vrstvy MAMUT Flex T a MAMUT MULTI
E153: MAMUT Spektrum R | G153: 2,4 – 3,7 (kg/m²) dle max.velikosti zrna | H153: Dle max. velikosti zrna
E154: akrylátová rýhovaná omítka -max. zrno 1,5; 2,0; 3,0mm
E155: Stav při dodání: pasta připravená k použití
E156: Složení: směs kameniva, pigmentů, plniv a pojiva na bázi umělé pryskyřice
E157: Pouze pro maltu základní vrstvy MAMUT Flex T a MAMUT MULTI
E158: MAMUT Silikon Z | G158: 2,5 – 3,8 (kg/m²) dle max.velikosti zrna | H158: Dle max. velikosti zrna
E159: silikonová zatíraná omítka -max. zrno 1,5; 2,0; 3,0mm
E160: Stav při dodání: pasta připravená k použití
E161: Složení: směs kameniva, pigmentů, plniv a pojiva na bázi silikonové pryskyřice
E162: Pouze pro maltu základní vrstvy MAMUT Flex T a MAMUT MULTI
E163: MAMUT Silikon R | G163: 2,4 – 3,7 (kg/m²) dle max.velikosti zrna | H163: Dle max. velikosti zrna
E164: silikonová rýhovaná omítka -max. zrno 1,5; 2,0; 3,0mm
E165: Stav při dodání: pasta připravená k použití
E166: Složení: směs kameniva, pigmentů, plniv a pojiva na bázi silikonové pryskyřice
E167: Pouze pro maltu základní vrstvy MAMUT Flex T a MAMUT MULTI
E168: MAMUT Silikon AS Z | G168: 2,5 – 3,8 (kg/m²) dle max.velikosti zrna | H168: Dle max. velikosti zrna
E169: silikátová zatíraná omítka -max. zrno 1,5; 2,0; 3,0mm
E170: Stav při dodání: pasta připravená k použití
E171: Složení: směs kameniva, pigmentů, plniv a pojiva na bázi silikonové pryskyřice
E172: Pouze pro maltu základní vrstvy MAMUT MULTI
E173: MAMUT Silikon AS R | G173: 2,4 – 3,7 (kg/m²) dle max.velikosti zrna | H173: Dle max. velikosti zrna
E174: silikátová rýhovaná omítka -max. zrno 1,5; 2,0; 3,0mm
E175: Stav při dodání: pasta připravená k použití
E176: Složení: směs kameniva, pigmentů, plniv a pojiva na bázi silikonové pryskyřice
E177: Pouze pro maltu základní vrstvy MAMUT MULTI
E178: MAMUT Silikát Z | G178: 2,5 – 3,8 (kg/m²) dle max.velikosti zrna | H178: Dle max. velikosti zrna
E179: silikátová zatíraná omítka -max. zrno 1,5; 2,0; 3,0mm
E180: Stav při dodání: pasta připravená k použití
E181: Složení: směs kameniva, pigmentů, plniv a pojiva na bázi vodního skla
E182: Pouze pro maltu základní vrstvy MAMUT Flex T
E183: MAMUT Silikát R | G183: 2,4 – 3,7 (kg/m²) dle max.velikosti zrna | H183: Dle max. velikosti zrna
E184: silikátová rýhovaná omítka -max. zrno 1,5; 2,0; 3,0mm
E185: Stav při dodání: pasta připravená k použití
E186: Složení: směs kameniva, pigmentů, plniv a pojiva na bázi vodního skla
E187: Pouze pro maltu základní vrstvy MAMUT Flex T
E188: MAMUT Mozaika | G188: 4,5 (kg/m²) | H188: Dle max. velikosti zrna
E189: akrylátová omítka -max. zrno 2,0
E190: Stav při dodání: pasta připravená k použití
E191: Složení: směs kameniva, pigmentů a pojiva na bázi umělé pryskyřice
E192: Pouze pro maltu základní vrstvy MAMUT Flex T a MAMUT MULTI
D193: Příslušenství | E193: Vlastnosti příslušenství jsou garantovány na zodpovědnosti výrobce ETICS
C194: *) platí pro kombinace uvedené v tab. č. 8 STO 020-033397 | K194: ²
C196: Zamýšlené použití:
C197: Tento ETICS MAMUT-THERM P plus se uplatňuje jako vnější izolace stěn budov. Je určen k vnějšímu zateplení fasád stávajících obytných, občanských a průmyslových budov, zhotovených ze zdiva, z monolitického betonu nebo z prefabrikovaných betonových panelů, opatřených ETICS. Systém je navržen tak, aby jej bylo možno aplikovat na již existující ETICS s izolantem z expandovaného polystyrenu (EPS) nebo z minerální vlny (MW). Předtím, než je ETICS uplatněn, je potřeba ověřit vlastnosti stěn, zejména pokud jde o podmínky pro třídu reakce na oheň, stabilitu stávajícího ETICS a upevnění ETICS pomocí mechanického kotvení a doplňkového lepení. ETICS je navrhován tak, aby dodával stěnám odpovídající tepelnou izolaci. ETICS je tvořen nenosnými konstrukčními součástmi. Nepůsobí přímo ke zvýšení stability zdi, na níž je aplikován, ale působí ke zvýšení odolnosti proti vlivům počasí. Použitelnost tohoto ETICS je omezena aktuálním ustanovením národních technických norem (např. dle ČSN 73 0810).
C198: Pro aplikaci ETICS je nutné zpracovat projektovou dokumentaci, ve které bude navržena konkrétní skladba ETICS s ohledem na individuální podmínky konkrétního objektu, a dále bude obsahovat mj. posouzení nosného podkladu, posouzení stavu stávajícího ETICS, podmínky návrhu nového ETICS, řešení detailů a výchozí hodnoty pro návrhové výpočty. Nutnou součástí projektu je řešení nosné způsobilosti kotvení, řešení tepelně technických vlastností včetně řešení kondenzace vodní páry – posouzení stavu konstrukce jako celku dle ČSN 73 0540 a požární zpráva.
B199: Dle zákona 22/1997 Sb. v platném znění, zejména pak Nařízení vlády č. 163/2002 Sb.v platném znění, jsou tepelně izolační kompozitní systémy (ETICS) stanovenými výrobky. Z pohledu výše uvedeného zákona ve znění pozdějších předpisů vyplývá, že ETICS je brán jako výrobek a jako takový musí být nejprve odzkoušen v akreditovaných zkušebnách a certifikován. Odpovědnost podle příslušných předpisů pro stavební výrobky nese společnost MAMUT-THERM s.r.o. za ty specifikované ETICS, které sama, jako sestavy součástí, uvádí na trh. Každý ETICS je jednoznačně definovaným výrobkem, který má určenou skladbu komponentů, které na sebe vzájemně navazují. Záměnou komponentů, nedodržením skladby nebo nedodržením technologického postupu ETICS k odborné montáži, určených výrobcem, je hrubým zásahem do charakteristiky výrobku a vzniklý produkt již přestává být stanoveným a tedy certifikovaným výrobkem.

Sheet MAMUT-THERM P+ full (hidden)
C3: 6. Definice 2.ETICS
C4: Všeobecná definice výrobku ETICS MAMUT-THERM P plus a zamýšlené použití
C6: STO 020-033397
C7: Reakce na oheň Evropská třída dle EN 13501-1:2010: B – s1, d0 *)
C9: Vnější tepelně izolační kompozitní systém (ETICS) MAMUT-THERM P plus, zvaný ETICS v dalším textu, je navržen a prováděn v souladu s návrhovými a montážními pokyny držitele STO, uloženými v Technickém a zkušebním ústavu stavebním Praha s.p. (TZÚS), pobočka České Budějovice. ETICS se skládá z následujících součástí, které jsou vyráběny držitelem STO nebo jeho subdodavatelem, z těch se poté zabudovává do stavby.
C10: Tento systém je prodáván pod jedním obchodním názvem.
C12: Definice výrobku | E12: Součásti | G12: Spotřeba (kg/m2) | H12: Tloušťka (mm)
C14: Výlučně lepený ETICS nebo částečně lepený ETICS s doplňkovým mechanickým kotvením (viz níže).
C15: Národní prováděcí předpisy musí být brány v úvahu.
C16: Izolační vrstva – IV a související způsob upevnění | D16: Lepicí hmota | E16: MAMUT Flex 50 | G16: 3,0 - 6,0 (kg/m²) suché směsi | H16: -
E17: Stav při dodání: prášek
E18: Postup přípravy: prášek vyžadující přípravek vody 0,25 – 0,27 l/kg
E19: Hlavní součásti výrobku: portlandský cement, plnivo o zrnitosti 0-0,6mm, speciální přísady
D20: Lepicí hmota | E20: MAMUT Flex 45 | G20: 3,0 - 6,0 (kg/m²) suché směsi | H20: -
E21: Stav při dodání: prášek
E22: Postup přípravy: prášek vyžadující přípravek vody 0,25 – 0,27 l/kg
E23: Hlavní součásti výrobku: portlandský cement, plnivo o zrnitosti 0-0,6mm, speciální přísady
D24: Izolační výrobek | E24: Desky z pěnového polystyrenu dle EN 13163:2012 (EPS s reakcí na oheň E, pevností v tahu kolmo k rovině desky TR 100) a s dalšími sledovanými vlastnostmi viz ETA 14/0278 příloha č.1. | G24: - | H24: 50 - 300
C25: Mechanicky kotvený ETICS s doplňkovým lepením. Dle pokynů výrobce ETICS se nový ETICS lepí celoplošně (100%) nebo minimálně na 40 % plochy izolační desky a v předepsané tloušťce.
C26: Hmoždinky: Kotevní hmoždinky certifikovány podle ETAG 014 a podle ETAG 004 (Kotevní prvky posouzené na odolnost proti vytržení z podkladu a protažení izolantem). Ke kotvení se používají pouze hmoždinky s kovovým šroubovacím rozpěrným trnem.
C27: Izolační vrstva – IV a související způsob upevnění | D27: Lepicí hmota pouze s maltou základní vrstvy MAMUT Flex 50 | E27: MAMUT Flex 50 | G27: 3,0 - 6,0 (kg/m²) suché směsi | H27: -
E28: Stav při dodání: prášek
E29: Postup přípravy: prášek vyžadující přípravek vody 0,25 – 0,27 l/kg
E30: Hlavní součásti výrobku: portlandský cement, plnivo o zrnitosti 0-0,6mm, speciální přísady
D31: Lepicí hmota pouze s maltou základní vrstvy MAMUT Flex 50 | E31: MAMUT Flex 45 | G31: 3,0 - 6,0 (kg/m²) suché směsi | H31: -
E32: Stav při dodání: prášek
E33: Postup přípravy: prášek vyžadující přípravek vody 0,25 – 0,27 l/kg
E34: Hlavní součásti výrobku: portlandský cement, plnivo o zrnitosti 0-0,6 mm, speciální přísady
D35: Lepicí hmota pouze s maltou základní vrstvy MAMUT Flex T | E35: MAMUT Flex T | G35: 3,0 - 5,0 (kg/m²) suché směsi | H35: -
E36: Stav při dodání: prášek
E37: Postup přípravy: prášek vyžadující přípravek vody 0,25 l/kg
E38: Hlavní součásti výrobku: portlandský cement, plnivo o zrnitosti 0-0,7mm, speciální přísady
D39: Lepicí hmota pouze s maltou základní vrstvy MAMUT Flex T a MAMUT MULTI | E39: MAMUT MULTI | G39: 3,0 - 5,0 (kg/m²) suché směsi | H39: -
E40: Stav při dodání: prášek
E41: Postup přípravy: prášek vyžadující přípravek vody 0,20 l/kg
E42: Hlavní součásti výrobku: portlandský cement, plnivo o zrnitosti 0-0,6mm, speciální přísady
D43: Izolační výrobek | E43: Desky z pěnového polystyrenu dle EN 13163 ed.2; (EPS s reakcí na oheň E) a s dalšími sledovanými vlastnostmi viz STO 020-033397 tab.3 | H43: 50 - 250
D44: Izolační výrobek | E44: Desky z pěnového polystyrenu dle EN 13163:2012; λD= 0,031 W/(m.K) (EPS s reakcí na oheň E, pevností v tahu kolmo k rovině desky TR 150) a s dalšími sledovanými vlastnostmi viz ETA 14/0278 příloha č.1. | H44: 50 - 250
E45: Desky z pěnového polystyrenu dle EN 13163:2012; λD= 0,032 W/(m.K) (EPS s reakcí na oheň E, pevností v tahu kolmo k rovině desky TR 100) a s dalšími sledovanými vlastnostmi viz ETA 14/0278 příloha č.1. | H45: 50 - 250
E46: Desky z pěnového polystyrenu dle EN 13163:2012; λD= 0,037 W/(m.K) (EPS s reakcí na oheň E, pevností v tahu kolmo k rovině desky TR 150) a s dalšími sledovanými vlastnostmi viz ETA 14/0278 příloha č.1. | H46: 50 - 250
E47: Desky z pěnového polystyrenu dle EN 13163:2012; λD= 0,039 W/(m.K) (EPS s reakcí na oheň E, pevností v tahu kolmo k rovině desky TR 100) a s dalšími sledovanými vlastnostmi viz ETA 14/0278 příloha č.1. | H47: 50 - 250
D48: Kotvicí hmoždinky k kovovám vrutem | E48: ejotherm STR U | F48: ETA-04/0023 | G48: dle PD | H48: -
E49: plastové šroubovací hmoždinky
E50: ejotherm STR U 2G | F50: ETA-04/0023 | G50: dle PD | H50: -
E51: plastové šroubovací hmoždinky
E52: Bravoll PTH-S 60/8-La | F52: ETA-08/0267 | G52: dle PD | H52: -
E53: plastové šroubovací hmoždinky
E54: fischer Termoz 8 SV | F54: ETA-06/0180 | G54: dle PD | H54: -
E55: plastové šroubovací hmoždinky
E56: fischer Termoz 8 U | F56: ETA-02/0019 | G56: dle PD | H56: -
E57: plastové šroubovací hmoždinky
E58: fischer termoz CS 8 | F58: ETA-14/0372 | G58: dle PD
E59: plastové šroubovací hmoždinky
E60: Hilti WDVS-Schraubdübel D-FV a D-FV T | F60: ETA-05/0039 | G60: dle PD | H60: -
E61: plastové šroubovací hmoždinky
E62: Koelner TFIX-8S a TFIX-8ST | F62: ETA-11/0144 | G62: dle PD
E63: plastové šroubovací hmoždinky
E64: KOELNER KI-10NS | F64: ETA-07/0221 | G64: dle PD | H64: -
E65: plastové šroubovací hmoždinky
E66: WKRET-MET eco-drive | F66: ETA-13/0107 | G66: dle PD | H66: -
E67: plastové šroubovací hmoždinky
E68: WKRET-MET eco-drive S | F68: ETA-13/0107 | G68: dle PD | H68: -
E69: plastové šroubovací hmoždinky
E70: WKRET-MET eco-drive W | F70: ETA-13/0107 | G70: dle PD | H70: -
E71: plastové šroubovací hmoždinky
E72: WKRET-MET WKTHERM-S | F72: ETA-13/0724 | G72: dle PD | H72: -
E73: plastové šroubovací hmoždinky
C74: Základní vrstva – ZV | D74: Malta základní vrstvy pouze s lepicími hmotami MAMUT Flex 50 a Flex 45 | E74: MAMUT Flex 50 | G74: 4,0 - 6,0 (kg/m²) suché směsi | H74: 3 - 4
E75: Stav při dodání: prášek
E76: Postup přípravy: prášek vyžadující přípravek vody 0,25 – 0,27 l/kg
E77: Hlavní součásti výrobku: portlandský cement, plnivo o zrnitosti 0-0,6mm, speciální přísady
D78: Malta základní vrstvy pouze s lepicí hmotou MAMUT MULTI | E78: MAMUT MULTI | G78: 4,0 - 6,0 (kg/m²) suché směsi | H78: 3 - 4
E79: Stav při dodání: prášek
E80: Postup přípravy: prášek vyžadující přípravek vody 0,20 l/kg
E81: Hlavní součásti výrobku: portlandský cement, plnivo o zrnitosti 0-0,6mm, speciální přísady
D82: Malta základní vrstvy pouze s lepicími hmotami MAMUT Flex T a MAMUT MULTI | E82: MAMUT Flex T | G82: 4,0 - 6,0 (kg/m²) suché směsi | H82: 3 - 4
E83: Stav při dodání: prášek
E84: Postup přípravy: prášek vyžadující přípravek vody 0,25 l/kg
E85: Hlavní součásti výrobku: portlandský cement, plnivo o zrnitosti 0-0,6mm, speciální přísady
D86: Výztuž | E86: Skleněná síťovina pro ETICS
E87: VERTEX R 131 A101 (rozměry mřížky 3,5 x 3,8 mm) | G87: - | H87: -
E88: VERTEX R 117 A101 (rozměry mřížky 4,0 x 4,5 mm) pouze s maltou základní vrstvy MAMUT Flex 50
E89: 117S (rozměry mřížky 4,0 x 5,0 mm) pouze s maltou základní vrstvy MAMUT Flex 50
E90: 122 (rozměry mřížky 4,0 x 4,0 mm) pouze s maltou základní vrstvy MAMUT Flex 50
E91: 122L (rozměry mřížky 4,0 x 4,5 mm) pouze s maltou základní vrstvy MAMUT Flex 50
C92: Povrchová úprava – PÚ | D92: Penetrační nátěr | E92: MAMUT Kontakt VSP | G92: 0,20 l/m² | H92: -
E93: Stav při dodání: tekutina připravená k použití
E94: Postup přípravy: neředit, promíchat
E95: Hlavní součásti výrobku: organické pojivo, minerální přísady, voda
E96: Použití: penetrační nátěr základní vrstvy určený pro konečné povrchové úpravy MAMUT Spektrum VZ/VR
E97: MAMUT Kontakt VSICA | G97: 0,20 l/m² | H97: -
E98: Stav při dodání: tekutina připravená k použití
E99: Postup přípravy: neředit, promíchat
E100: Hlavní součásti výrobku: Drasekné vodní sklo, minerální přísady, voda
E101: Použití: penetrační nátěr základní vrstvy určený pro konečné povrchové úpravy MAMUT Silikát VZ/VR
E102: MAMUT Kontakt VSIL | G102: 0,20 l/m² | H102: -
E103: Stav při dodání: tekutina připravená k použití
E104: Postup přípravy: neředit, promíchat
E105: Hlavní součásti výrobku: organické pojivo, minerální přísady, voda
E106: Použití: penetrační nátěr základní vrstvy určený pro konečné povrchové úpravy MAMUT Silikon VZ/VR
E107: MAMUT Kontakt | G107: 0,20 l/m² | H107: -
E108: Stav při dodání: tekutina připravená k použití
E109: Postup přípravy: neředit, promíchat
E110: Hlavní součásti výrobku: umělopryskyřičná disperze, minerální přísady
E111: Použití: penetrační nátěr základní vrstvy určený pro konečné povrchové úpravy MAMUT Silikon, MAMUT Silikat, MAMUT Spektrum, MAMUT Silikon AS
E112: MAMUT Kontakt mozaika | G112: 0,20 l/m² | H112: -
E113: Stav při dodání: tekutina připravená k použití
E114: Postup přípravy: neředit, promíchat
E115: Hlavní součásti výrobku: umělopryskyřičná disperze, minerální přísady
E116: Použití: penetrační nátěr základní vrstvy určený pro konečné povrchové úpravy MAMUT mozaika
D117: Konečné povrchové úpravy | E117: Pastovité omítky
E118: MAMUT Spektrum VZ | G118: 1,7 – 4,0 (kg/m²) dle max.velikosti zrna | H118: Dle max. velikosti zrna
E119: akrylátová zatíraná omítka -max. zrno 1,0; 1,5; 2,0; 3,0mm
E120: Stav při dodání: pasta připravená k použití
E121: Složení: směs kameniva, pigmentů, plniv a pojiva na bázi umělé pryskyřice
E122: Určeno pro maltu základní vrstvy MAMUT Flex 50 a MAMUT MULTI
E123: MAMUT Spektrum VR | G123: 2,4 – 3,8 (kg/m²) dle max.velikosti zrna | H123: Dle max. velikosti zrna
E124: akrylátová rýhovaná omítka -max. zrno 1,5; 2,0; 3,0mm
E125: Stav při dodání: pasta připravená k použití
E126: Složení: směs kameniva, pigmentů, plniv a pojiva na bázi umělé pryskyřice
E127: Určeno pro maltu základní vrstvy MAMUT Flex 50 a MAMUT MULTI
E128: MAMUT Silikát VZ | G128: 1,7 – 4,0 (kg/m²) dle max.velikosti zrna | H128: Dle max. velikosti zrna
E129: silikátová zatíraná omítka -max. zrno 1,0; 1,5; 2,0; 3,0mm
E130: Stav při dodání: pasta připravená k použití
E131: Složení: směs kameniva, pigmentů, plniv a pojiva na bázi vodního skla
E132: Určeno pro maltu základní vrstvy MAMUT Flex 50 a MAMUT MULTI
E133: MAMUT Silikát VR | G133: 2,4 – 3,8 (kg/m²) dle max.velikosti zrna | H133: Dle max. velikosti zrna
E134: silikátová rýhovaná omítka -max. zrno 1,5; 2,0; 3,0mm
E135: Stav při dodání: pasta připravená k použití
E136: Složení: směs kameniva, pigmentů, plniv a pojiva na bázi vodního skla
E137: Určeno pro maltu základní vrstvy MAMUT Flex 50 a MAMUT MULTI
E138: MAMUT Silikon VZ | G138: 1,7 – 4,0 (kg/m²) dle max.velikosti zrna | H138: Dle max. velikosti zrna
E139: silikonová zatíraná omítka -max. zrno 1,0; 1,5; 2,0; 3,0mm
E140: Stav při dodání: pasta připravená k použití
E141: Složení: směs kameniva, pigmentů, plniv a pojiva na bázi silikonové pryskyřice
E142: Určeno pro maltu základní vrstvy MAMUT Flex 50 a MAMUT MULTI
E143: MAMUT Silikon VR | G143: 2,4 – 3,8 (kg/m²) dle max.velikosti zrna | H143: Dle max. velikosti zrna
E144: silikonová rýhovaná omítka -max. zrno 1,5; 2,0; 3,0mm
E145: Stav při dodání: pasta připravená k použití
E146: Složení: směs kameniva, pigmentů, plniv a pojiva na bázi silikonové pryskyřice
E147: Určeno pro maltu základní vrstvy MAMUT Flex 50 a MAMUT MULTI
E148: MAMUT Spektrum Z | G148: 2,5 – 3,8 (kg/m²) dle max.velikosti zrna | H148: Dle max. velikosti zrna
E149: akrylátová zatíraná omítka -max. zrno 1,5; 2,0; 3,0mm
E150: Stav při dodání: pasta připravená k použití
E151: Složení: směs kameniva, pigmentů, plniv a pojiva na bázi umělé pryskyřice
E152: Určeno pro maltu základní vrstvy MAMUT Flex T a MAMUT MULTI
E153: MAMUT Spektrum R | G153: 2,4 – 3,7 (kg/m²) dle max.velikosti zrna | H153: Dle max. velikosti zrna
E154: akrylátová rýhovaná omítka -max. zrno 1,5; 2,0; 3,0mm
E155: Stav při dodání: pasta připravená k použití
E156: Složení: směs kameniva, pigmentů, plniv a pojiva na bázi umělé pryskyřice
E157: Určeno pro maltu základní vrstvy MAMUT Flex T a MAMUT MULTI
E158: MAMUT Silikon Z | G158: 2,5 – 3,8 (kg/m²) dle max.velikosti zrna | H158: Dle max. velikosti zrna
E159: silikonová zatíraná omítka -max. zrno 1,5; 2,0; 3,0mm
E160: Stav při dodání: pasta připravená k použití
E161: Složení: směs kameniva, pigmentů, plniv a pojiva na bázi silikonové pryskyřice
E162: Určeno pro maltu základní vrstvy MAMUT Flex T a MAMUT MULTI
E163: MAMUT Silikon R | G163: 2,4 – 3,7 (kg/m²) dle max.velikosti zrna | H163: Dle max. velikosti zrna
E164: silikonová rýhovaná omítka -max. zrno 1,5; 2,0; 3,0mm
E165: Stav při dodání: pasta připravená k použití
E166: Složení: směs kameniva, pigmentů, plniv a pojiva na bázi silikonové pryskyřice
E167: Určeno pro maltu základní vrstvy MAMUT Flex T a MAMUT MULTI
E168: MAMUT Silikon AS Z | G168: 2,5 – 3,8 (kg/m²) dle max.velikosti zrna | H168: Dle max. velikosti zrna
E169: silikátová zatíraná omítka -max. zrno 1,5; 2,0; 3,0mm
E170: Stav při dodání: pasta připravená k použití
E171: Složení: směs kameniva, pigmentů, plniv a pojiva na bázi silikonové pryskyřice
E172: Určeno pro maltu základní vrstvy MAMUT MULTI
E173: MAMUT Silikon AS R | G173: 2,4 – 3,7 (kg/m²) dle max.velikosti zrna | H173: Dle max. velikosti zrna
E174: silikátová rýhovaná omítka -max. zrno 1,5; 2,0; 3,0mm
E175: Stav při dodání: pasta připravená k použití
E176: Složení: směs kameniva, pigmentů, plniv a pojiva na bázi silikonové pryskyřice
E177: Určeno pro maltu základní vrstvy MAMUT MULTI
E178: MAMUT Silikát Z | G178: 2,5 – 3,8 (kg/m²) dle max.velikosti zrna | H178: Dle max. velikosti zrna
E179: silikátová zatíraná omítka -max. zrno 1,5; 2,0; 3,0mm
E180: Stav při dodání: pasta připravená k použití
E181: Složení: směs kameniva, pigmentů, plniv a pojiva na bázi vodního skla
E182: Určeno pro maltu základní vrstvy MAMUT Flex T
E183: MAMUT Silikát R | G183: 2,4 – 3,7 (kg/m²) dle max.velikosti zrna | H183: Dle max. velikosti zrna
E184: silikátová rýhovaná omítka -max. zrno 1,5; 2,0; 3,0mm
E185: Stav při dodání: pasta připravená k použití
E186: Složení: směs kameniva, pigmentů, plniv a pojiva na bázi vodního skla
E187: Určeno pro maltu základní vrstvy MAMUT Flex T
E188: MAMUT Mozaika | G188: 4,5 (kg/m²)
E189: akrylátová omítka -max. zrno 2,0
E190: Stav při dodání: pasta připravená k použití
E191: Složení: směs kameniva, pigmentů a pojiva na bázi umělé pryskyřice
E192: Určeno pro maltu základní vrstvy MAMUT Flex T a MAMUT MULTI
D193: Příslušenství | E193: Vlastnosti příslušenství jsou garantovány na zodpovědnosti výrobce ETICS
C194: *) platí pro kombinace uvedené v tab. č. 8 STO 020-033397 | K194: ²
C196: Zamýšlené použití:
C197: Tento ETICS MAMUT-THERM P plus se uplatňuje jako vnější izolace stěn budov. Tyto stěny jsou vytvořeny zděním (z cihel, bloků, kamene ...) nebo z betonu (monolitického nebo z prefabrikovaných panelů). Předtím, než je ETICS uplatněn, je potřeba ověřit vlastnosti stěn, zejména pokud jde o podmínky pro třídu reakce na oheň a upevnění ETICS buď lepením nebo pomocí mechanického kotvení. ETICS je navrhován tak, aby dodával stěnám odpovídající tepelnou izolaci. ETICS je tvořen nenosnými konstrukčními součástmi. Nepůsobí přímo ke zvýšení stability zdi, na níž je aplikován, ale působí ke zvýšení odolnosti proti vlivům počasí.
C198: ETICS může být použit jak na nových, tak i na stávajících (rekonstruovaných) vertikálních stěnách. Může být také použit na horizontálních nebo nakloněných površích, které nejsou vystaveny dešťovým srážkám. Účelem ETICS není zajišťování neprůvzdušnosti budovy. Výběr způsobu upevnění závisí na vlastnostech podkladu, který může vyžadovat úpravu (viz čl. 7.2.1 ETAG 004) a musí být proveden v souladu s národními požadavky.
B199: Dle zákona 22/1997 Sb. v platném znění, zejména pak Nařízení vlády č. 163/2002 Sb.v platném znění, jsou tepelně izolační kompozitní systémy (ETICS) stanovenými výrobky. Z pohledu výše uvedeného zákona ve znění pozdějších předpisů vyplývá, že ETICS je brán jako výrobek a jako takový musí být nejprve odzkoušen v akreditovaných zkušebnách a certifikován. Odpovědnost podle příslušných předpisů pro stavební výrobky nese společnost MAMUT-THERM s.r.o. za ty specifikované ETICS, které sama, jako sestavy součástí, uvádí na trh. Každý ETICS je jednoznačně definovaným výrobkem, který má určenou skladbu komponentů, které na sebe vzájemně navazují. Záměnou komponentů, nedodržením skladby nebo nedodržením technologického postupu ETICS k odborné montáži, určených výrobcem, je hrubým zásahem do charakteristiky výrobku a vzniklý produkt již přestává být stanoveným a tedy certifikovaným výrobkem.

Sheet M-T M plus
C3: Všeobecná definice výrobku ETICS MAMUT-THERM M plus a zamýšlené použití
C5: STO 020-033400
C6: Reakce na oheň Evropská třída dle EN 13501-1:2010: A2 – s1, d0
C8: Vnější tepelně izolační kompozitní systém (ETICS) MAMUT-THERM M plus, zvaný ETICS v dalším textu, je navržen a prováděn v souladu s návrhovými a montážními pokyny držitele STO, uloženými v Technickém a zkušebním ústavu stavebním Praha s.p. (TZÚS), pobočka České Budějovice. ETICS se skládá z následujících součástí, které jsou vyráběny držitelem STO nebo jeho subdodavatelem, z těch se poté zabudovává do stavby.
C9: Tento systém je prodáván pod jedním obchodním názvem.
C11: Definice výrobku | E11: Součásti | G11: Spotřeba (kg/m2) | H11: Tloušťka (mm)
C13: Výlučně lepený ETICS nebo částečně lepený ETICS s doplňkovým mechanickým kotvením (viz níže).
C14: Národní prováděcí předpisy musí být brány v úvahu.
C15: Izolační vrstva – IV a související způsob upevnění | D15: Lepicí hmota | E15: MAMUT Flex 50 | G15: 3,0 - 6,0 (kg/m²) suché směsi | H15: -
E16: Stav při dodání: prášek
E17: Postup přípravy: prášek vyžadující přípravek vody 0,25 – 0,27 l/kg
E18: Hlavní součásti výrobku: portlandský cement, plnivo o zrnitosti 0-0,6mm, speciální přísady
D19: Lepicí hmota | E19: MAMUT Flex 45 | G19: 3,0 - 6,0 (kg/m²) suché směsi | H19: -
E20: Stav při dodání: prášek
E21: Postup přípravy: prášek vyžadující přípravek vody 0,25 – 0,27 l/kg
E22: Hlavní součásti výrobku: portlandský cement, plnivo o zrnitosti 0-0,6mm, speciální přísady
D23: Izolační výrobek | E23: Desky z pěnového polystyrenu dle EN 13163:2012 (EPS s reakcí na oheň E, pevností v tahu kolmo k rovině desky TR 100) a s dalšími sledovanými vlastnostmi viz ETA 14/0278 příloha č.1. | G23: - | H23: 50 - 300
C24: Mechanicky kotvený ETICS s doplňkovým lepením.
C25: Národní prováděcí předpisy musí být brány v úvahu.
C26: Izolační vrstva – IV a související způsob upevnění | D26: Lepicí hmota pouze s maltou základní vrstvy MAMUT Flex 50 | E26: MAMUT Flex 50 | G26: 3,0 - 6,0 (kg/m²) suché směsi | H26: -
E27: Stav při dodání: prášek
E28: Postup přípravy: prášek vyžadující přípravek vody 0,25 – 0,27 l/kg
E29: Hlavní součásti výrobku: portlandský cement, plnivo o zrnitosti 0-0,6mm, speciální přísady
E30: MAMUT Flex 45 | G30: 3,0 - 6,0 (kg/m²) suché směsi | H30: -
E31: Stav při dodání: prášek
E32: Postup přípravy: prášek vyžadující přípravek vody 0,25 – 0,27 l/kg
E33: Hlavní součásti výrobku: portlandský cement, plnivo o zrnitosti 0-0,6 mm, speciální přísady
D34: Lepicí hmota pouze s maltou základní vrstvy MAMUT Flex T | E34: MAMUT Flex T | G34: 3,0 - 5,0 (kg/m²) suché směsi | H34: -
E35: Stav při dodání: prášek
E36: Postup přípravy: prášek vyžadující přípravek vody 0,25 l/kg
E37: Hlavní součásti výrobku: portlandský cement, plnivo o zrnitosti 0-0,7mm, speciální přísady
D38: Izolační výrobek | E38: Lamely z minerální vlny (MW "lamela", TR 80); λD= 0,041 W/(m.K) EN 13162–T5–DS(70,90)– TR80-WS–WL(P)–MU1 | H38: 50 - 150
E39: Desky z minerální vlny (MW"deska", TR 15); λD= 0,039 W/(m.K) MW-EN 13162–T5–DS(T+)– DS(TH)–TR15-WS–WL(P)–MU1, | H39: 50 - 150
E40: NOBASIL FKD S Thermal (FKD S); λD= 0,035 W/(m.K) MW-EN 13162-T5-DS(TH)-CS(10)30-TR10-WS-WL(P)-MU1 | H40: 50 - 150
E41: NOBASIL SMARTwall S C1 (FKD S C1); λD= 0,035 W/(m.K) MW-EN 13162-T5-DS(TH)-CS(10)30-TR10-WS-WL(P)-MU1 | H41: 50 - 150
E42: Určeno pro lepicí maltu MAMUT Flex 50 a MAMUT Flex 45
E43: NOBASIL SMARTwall S C2 (FKD S C2); λD= 0,035 W/(m.K) MW-EN 13162-T5-DS(TH)-CS(10)30-TR10-WS-WL(P)-MU1 | H43: 50 - 150
E44: Určeno pro lepicí maltu MAMUT Flex 50 a MAMUT Flex 45
E45: Frontrock MAX E (výrobce ROCKWOOL a.s.); λD= 0,036 W/(m.K) MW-EN 13162-T5-DS(T+)-DS(TH)-CS(10)20-TR10-PL(5)250-WS-WL(P)-MU1 | H45: 50 - 150
E46: Isover TF PROFI (výr. SGCP CZ a.s.); λD= 0,036 W/(m.K) MW- EN 13162-T5- DS(TH)-CS(10)30-TR10-WS-WL(P)-MU1 | H46: 50 - 150
E47: Určeno pro lepicí maltu MAMUT Flex 50 a MAMUT Flex 45
D48: Kotvicí hmoždinky k kovovám vrutem | E48: ejotherm STR U | F48: ETA-04/0023 | G48: dle PD | H48: -
E49: plastové šroubovací hmoždinky
E50: ejotherm STR U 2G | F50: ETA-04/0023 | G50: dle PD | H50: -
E51: plastové šroubovací hmoždinky
E52: Bravoll PTH-S 60/8-La | F52: ETA-08/0267 | G52: dle PD | H52: -
E53: plastové šroubovací hmoždinky
E54: fischer Termoz 8 SV | F54: ETA-06/0180 | G54: dle PD | H54: -
E55: plastové šroubovací hmoždinky
E56: fischer Termoz 8 U | F56: ETA-02/0019 | G56: dle PD | H56: -
E57: plastové šroubovací hmoždinky
E58: fischer termoz CS 8 | F58: ETA-14/0372 | G58: dle PD
E59: plastové šroubovací hmoždinky
E60: Hilti WDVS-Schraubdübel D-FV a D-FV T | F60: ETA-05/0039 | G60: dle PD | H60: -
E61: plastové šroubovací hmoždinky
E62: Koelner TFIX-8S a TFIX-8ST | F62: ETA-11/0144 | G62: dle PD
E63: plastové šroubovací hmoždinky
E64: KOELNER KI-10NS | F64: ETA-07/0221 | G64: dle PD | H64: -
E65: plastové šroubovací hmoždinky
E66: WKRET-MET eco-drive | F66: ETA-13/0107 | G66: dle PD | H66: -
E67: plastové šroubovací hmoždinky
E68: WKRET-MET eco-drive S | F68: ETA-13/0107 | G68: dle PD | H68: -
E69: plastové šroubovací hmoždinky
E70: WKRET-MET eco-drive W | F70: ETA-13/0107 | G70: dle PD | H70: -
E71: plastové šroubovací hmoždinky
E72: WKRET-MET WKTHERM-S | F72: ETA-13/0724 | G72: dle PD | H72: -
E73: plastové šroubovací hmoždinky
C74: Základní vrstva – ZV | D74: Malta základní vrstvy pouze s lepicími hmotami MAMUT Flex 50 a Flex 45 | E74: MAMUT Flex 50 | G74: 4,0 - 6,0 (kg/m²) suché směsi | H74: 3 - 4
E75: Stav při dodání: prášek
E76: Postup přípravy: prášek vyžadující přípravek vody 0,25 – 0,27 l/kg
E77: Hlavní součásti výrobku: portlandský cement, plnivo o zrnitosti 0-0,6mm, speciální přísady
D78: Malta základní vrstvy pouze s lepicí hmotoui MAMUT Flex T | E78: MAMUT Flex T | G78: 4,0 - 6,0 (kg/m²) suché směsi | H78: 3 - 6
E79: Stav při dodání: prášek
E80: Postup přípravy: prášek vyžadující přípravek vody 0,25 – 0,27 l/kg
E81: Hlavní součásti výrobku: portlandský cement, plnivo o zrnitosti 0-0,6mm, speciální přísady
D82: Výztuž | E82: Skleněná síťovina pro ETICS
E83: VERTEX R 131 A101 (rozměry mřížky 3,5 x 3,8 mm) | G83: - | H83: -
E84: VERTEX R 117 A101 (rozměry mřížky 4,0 x 4,5 mm) pouze s maltou základní vrstvy MAMUT Flex 50
E85: 117S (rozměry mřížky 4,0 x 5,0 mm) pouze s maltou základní vrstvy MAMUT Flex 50
E86: 122 (rozměry mřížky 4,0 x 4,0 mm) pouze s maltou základní vrstvy MAMUT Flex 50
E87: 122L (rozměry mřížky 4,0 x 4,5 mm) pouze s maltou základní vrstvy MAMUT Flex 50
C88: Povrchová úprava – PÚ | D88: Penetrační nátěr | E88: MAMUT Kontakt VSP | G88: 0,20 l/m² | H88: -
E89: Stav při dodání: tekutina připravená k použití
E90: Postup přípravy: neředit, promíchat
E91: Hlavní součásti výrobku: organické pojivo, minerální přísady, voda
E92: Použití: penetrační nátěr základní vrstvy určený pro konečné povrchové úpravy MAMUT Spektrum VZ/VR
E93: MAMUT Kontakt VSICA | G93: 0,20 l/m² | H93: -
E94: Stav při dodání: tekutina připravená k použití
E95: Postup přípravy: neředit, promíchat
E96: Hlavní součásti výrobku: Drasekné vodní sklo, minerální přísady, voda
E97: Použití: penetrační nátěr základní vrstvy určený pro konečné povrchové úpravy MAMUT Silikát VZ/VR
E98: MAMUT Kontakt VSIL | G98: 0,20 l/m² | H98: -
E99: Stav při dodání: tekutina připravená k použití
E100: Postup přípravy: neředit, promíchat
E101: Hlavní součásti výrobku: organické pojivo, minerální přísady, voda
E102: Použití: penetrační nátěr základní vrstvy určený pro konečné povrchové úpravy MAMUT Silikon VZ/VR
E103: MAMUT Kontakt | G103: 0,20 l/m² | H103: -
E104: Stav při dodání: tekutina připravená k použití
E105: Postup přípravy: neředit, promíchat
E106: Hlavní součásti výrobku: umělopryskyřičná disperze, minerální přísady
E107: Použití: penetrační nátěr základní vrstvy určený pro konečné povrchové úpravy MAMUT Silikon, MAMUT Silikat
D108: Konečné povrchové úpravy | E108: Omítky
E109: MAMUT Spektrum VZ | G109: 1,7 – 4,0 (kg/m²) dle max.velikosti zrna | H109: Dle max. velikosti zrna
E110: akrylátová zatíraná omítka -max. zrno 1,0; 1,5; 2,0; 3,0mm
E111: Stav při dodání: pasta připravená k použití
E112: Složení: směs kameniva, pigmentů, plniv a pojiva na bázi umělé pryskyřice
E113: Určeno pro maltu základní vrstvy MAMUT Flex 50
E114: MAMUT Spektrum VR | G114: 2,4 – 3,8 (kg/m²) dle max.velikosti zrna | H114: Dle max. velikosti zrna
E115: akrylátová rýhovaná omítka -max. zrno 1,5; 2,0; 3,0mm
E116: Stav při dodání: pasta připravená k použití
E117: Složení: směs kameniva, pigmentů, plniv a pojiva na bázi umělé pryskyřice
E118: Určeno pro maltu základní vrstvy MAMUT Flex 50
E119: MAMUT Silikát VZ | G119: 1,7 – 4,0 (kg/m²) dle max.velikosti zrna | H119: Dle max. velikosti zrna
E120: silikátová zatíraná omítka -max. zrno 1,0; 1,5; 2,0; 3,0mm
E121: Stav při dodání: pasta připravená k použití
E122: Složení: směs kameniva, pigmentů, plniv a pojiva na bázi vodního skla
E123: Určeno pro maltu základní vrstvy MAMUT Flex 50
E124: MAMUT Silikát VR | G124: 2,4 – 3,8 (kg/m²) dle max.velikosti zrna | H124: Dle max. velikosti zrna
E125: silikátová rýhovaná omítka -max. zrno 1,5; 2,0; 3,0mm
E126: Stav při dodání: pasta připravená k použití
E127: Složení: směs kameniva, pigmentů, plniv a pojiva na bázi vodního skla
E128: Určeno pro maltu základní vrstvy MAMUT Flex 50
E129: MAMUT Silikon VZ | G129: 1,7 – 4,0 (kg/m²) dle max.velikosti zrna | H129: Dle max. velikosti zrna
E130: silikonová zatíraná omítka -max. zrno 1,0; 1,5; 2,0; 3,0mm
E131: Stav při dodání: pasta připravená k použití
E132: Složení: směs kameniva, pigmentů, plniv a pojiva na bázi silikonové pryskyřice
E133: Určeno pro maltu základní vrstvy MAMUT Flex 50
E134: MAMUT Silikon VR | G134: 2,4 – 3,8 (kg/m²) dle max.velikosti zrna | H134: Dle max. velikosti zrna
E135: silikonová rýhovaná omítka -max. zrno 1,5; 2,0; 3,0mm
E136: Stav při dodání: pasta připravená k použití
E137: Složení: směs kameniva, pigmentů, plniv a pojiva na bázi silikonové pryskyřice
E138: Určeno pro maltu základní vrstvy MAMUT Flex 50
E139: MAMUT Silikon Z | G139: 2,5 – 3,8 (kg/m²) dle max.velikosti zrna | H139: Dle max. velikosti zrna
E140: silikonová zatíraná omítka -max. zrno 1,5; 2,0; 3,0mm
E141: Stav při dodání: pasta připravená k použití
E142: Složení: směs kameniva, pigmentů, plniv a pojiva na bázi silikonové pryskyřice
E143: Určeno pro maltu základní vrstvy MAMUT Flex T
E144: MAMUT Silikon R | G144: 2,4 – 3,7 (kg/m²) dle max.velikosti zrna | H144: Dle max. velikosti zrna
E145: silikonová rýhovaná omítka -max. zrno 1,5; 2,0; 3,0mm
E146: Stav při dodání: pasta připravená k použití
E147: Složení: směs kameniva, pigmentů, plniv a pojiva na bázi silikonové pryskyřice
E148: Určeno pro maltu základní vrstvy MAMUT Flex T
E149: MAMUT Silikát Z | G149: 2,5 – 3,8 (kg/m²) dle max.velikosti zrna | H149: Dle max. velikosti zrna
E150: silikátová zatíraná omítka -max. zrno 1,5; 2,0; 3,0mm
E151: Stav při dodání: pasta připravená k použití
E152: Složení: směs kameniva, pigmentů, plniv a pojiva na bázi vodního skla
E153: Určeno pro maltu základní vrstvy MAMUT Flex T
E154: MAMUT Silikát R | G154: 2,4 – 3,7 (kg/m²) dle max.velikosti zrna | H154: Dle max. velikosti zrna
E155: silikátová rýhovaná omítka -max. zrno 1,5; 2,0; 3,0mm
E156: Stav při dodání: pasta připravená k použití
E157: Složení: směs kameniva, pigmentů, plniv a pojiva na bázi vodního skla
E158: Určeno pro maltu základní vrstvy MAMUT Flex T
D159: Příslušenství | E159: Vlastnosti příslušenství jsou garantovány na zodpovědnosti výrobce ETICS
K160: ²
C161: Zamýšlené použití:
C162: MAMUT-THERM M plus je vnější tepelně izolační kompozitní systém s izolantem z minerální vlny (MW) s omítkou. Tento ETICS je určen k vnějšímu zateplení fasád stávajících obytných, občanských a průmyslových budov, zhotovených ze zdiva, z monolitického betonu nebo z prefabrikovaných betonových panelů se zabudovaným ETICS. Systém je navržen tak, aby jej bylo možno aplikovat na již existující ETICS s izolantem z expandovaného polystyrenu (EPS) nebo z minerální vlny (MW). ETICS je navrhován tak, aby dodával stěnám odpovídající tepelnou izolaci. ETICS je tvořen nenosnými konstrukčními součástmi. Nepůsobí přímo ke zvýšení stability zdi, na níž je aplikován, ale působí ke zvýšení odolnosti proti vlivům počasí. Minimální tloušťka tepelně izolačního materiálu nového ETICS je 50 mm, je však vždy nutné zajistit tepelně technické posouzení ETICS.
C163: Před návrhem a realizací ETICS je nutné provést detailní stavebně technický průzkum podle dokumentace výrobce ETICS (Pokyny pro navrhování a technologický postup montáže systému MAMUT-THERM M plus), jehož součástí je mj. provedení velkoplošné sondy o velikosti minimálně jedné desky tepelně izolačního materiálu. Pro aplikaci ETICS je nutné zpracovat projektovou dokumentaci, ve které bude navržena konkrétní skladba ETICS s ohledem na individuální podmínky konkrétního objektu, a dále bude obsahovat mj. způsob posouzení nosného podkladu, způsob posouzení stavu stávajícího ETICS, podmínky návrhu nového ETICS, řešení detailů a výchozí hodnoty pro návrhové výpočty. Nutnou součástí projektu je řešení nosné způsobilosti kotvení, řešení tepelně technických vlastností včetně řešení kondenzace vodní páry – posouzení stavu konstrukce jako celku dle ČSN 73 0540 a požární zpráva. Použitelnost tohoto ETICS je omezena aktuálním ustanovením národních technických norem (např. dle ČSN 73 0810).
B164: Dle zákona 22/1997 Sb. v platném znění, zejména pak Nařízení vlády č. 163/2002 Sb.v platném znění, jsou tepelně izolační kompozitní systémy (ETICS) stanovenými výrobky. Z pohledu výše uvedeného zákona ve znění pozdějších předpisů vyplývá, že ETICS je brán jako výrobek a jako takový musí být nejprve odzkoušen v akreditovaných zkušebnách a certifikován. Odpovědnost podle příslušných předpisů pro stavební výrobky nese společnost MAMUT-THERM s.r.o. za ty specifikované ETICS, které sama, jako sestavy součástí, uvádí na trh. Každý ETICS je jednoznačně definovaným výrobkem, který má určenou skladbu komponentů, které na sebe vzájemně navazují. Záměnou komponentů, nedodržením skladby nebo nedodržením technologického postupu ETICS k odborné montáži, určených výrobcem, je hrubým zásahem do charakteristiky výrobku a vzniklý produkt již přestává být stanoveným a tedy certifikovaným výrobkem.

Sheet MAMUT-THERM M+ (hidden)
C3: 6. Definice 2.ETICS
C4: Všeobecná definice výrobku ETICS MAMUT-THERM M plus a zamýšlené použití
C6: STO 020-033400
C7: Reakce na oheň Evropská třída dle EN 13501-1:2010: A2 – s1, d0
C9: Vnější tepelně izolační kompozitní systém (ETICS) MAMUT-THERM M plus, zvaný ETICS v dalším textu, je navržen a prováděn v souladu s návrhovými a montážními pokyny držitele STO, uloženými v Technickém a zkušebním ústavu stavebním Praha s.p. (TZÚS), pobočka České Budějovice. ETICS se skládá z následujících součástí, které jsou vyráběny držitelem STO nebo jeho subdodavatelem, z těch se poté zabudovává do stavby.
C10: Tento systém je prodáván pod jedním obchodním názvem.
C12: Definice výrobku | E12: Součásti | G12: Spotřeba (kg/m2) | H12: Tloušťka (mm)
C14: Výlučně lepený ETICS nebo částečně lepený ETICS s doplňkovým mechanickým kotvením (viz níže).
C15: Národní prováděcí předpisy musí být brány v úvahu.
C16: Izolační vrstva – IV a související způsob upevnění | D16: Lepicí hmota | E16: MAMUT Flex 50 | G16: 3,0 - 6,0 (kg/m²) suché směsi | H16: -
E17: Stav při dodání: prášek
E18: Postup přípravy: prášek vyžadující přípravek vody 0,25 – 0,27 l/kg
E19: Hlavní součásti výrobku: portlandský cement, plnivo o zrnitosti 0-0,6mm, speciální přísady
D20: Lepicí hmota | E20: MAMUT Flex 45 | G20: 3,0 - 6,0 (kg/m²) suché směsi | H20: -
E21: Stav při dodání: prášek
E22: Postup přípravy: prášek vyžadující přípravek vody 0,25 – 0,27 l/kg
E23: Hlavní součásti výrobku: portlandský cement, plnivo o zrnitosti 0-0,6mm, speciální přísady
D24: Izolační výrobek | E24: Desky z pěnového polystyrenu dle EN 13163:2012 (EPS s reakcí na oheň E, pevností v tahu kolmo k rovině desky TR 100) a s dalšími sledovanými vlastnostmi viz ETA 14/0278 příloha č.1. | G24: - | H24: 50 - 300
C25: Mechanicky kotvený ETICS s doplňkovým lepením. Dle pokynů výrobce ETICS se nový ETICS lepí celoplošně (100%) nebo minimálně na 40 % plochy izolační desky a v předepsané tloušťce. Lamely z MW se vždy lepí celoplošně (100%)
C26: Hmoždinky: Kotevní hmoždinky certifikovány podle ETAG 014 a podle ETAG 004 (Kotevní prvky posouzené na odolnost proti vytržení z podkladu a protažení izolantem). Ke kotvení se používají pouze hmoždinky s kovovým šroubovacím rozpěrným trnem.
C27: Izolační vrstva – IV a související způsob upevnění | D27: Lepicí hmota pouze s maltou základní vrstvy MAMUT Flex 50 | E27: MAMUT Flex 50 | G27: 3,0 - 6,0 (kg/m²) suché směsi | H27: -
E28: Stav při dodání: prášek
E29: Postup přípravy: prášek vyžadující přípravek vody 0,25 – 0,27 l/kg
E30: Hlavní součásti výrobku: portlandský cement, plnivo o zrnitosti 0-0,6mm, speciální přísady
D31: Lepicí hmota pouze s maltou základní vrstvy MAMUT Flex 50 | E31: MAMUT Flex 45 | G31: 3,0 - 6,0 (kg/m²) suché směsi | H31: -
E32: Stav při dodání: prášek
E33: Postup přípravy: prášek vyžadující přípravek vody 0,25 – 0,27 l/kg
E34: Hlavní součásti výrobku: portlandský cement, plnivo o zrnitosti 0-0,6 mm, speciální přísady
D35: Lepicí hmota pouze s maltou základní vrstvy MAMUT Flex T | E35: MAMUT Flex T | G35: 3,0 - 5,0 (kg/m²) suché směsi | H35: -
E36: Stav při dodání: prášek
E37: Postup přípravy: prášek vyžadující přípravek vody 0,25 l/kg
E38: Hlavní součásti výrobku: portlandský cement, plnivo o zrnitosti 0-0,7mm, speciální přísady
D39: Izolační výrobek | E39: Lamely z minerální vlny (MW "lamela", TR 80); λD= 0,041 W/(m.K) EN 13162–T5–DS(T+)– DS(TH)–TR80-WS–WL(P)–MU1 | H39: 50 - 150
E40: Desky z minerální vlny (MW"deska", TR 15); λD= 0,039 W/(m.K) MW-EN 13162–T5–DS(T+)– DS(TH)–TR15-WS–WL(P)–MU1, | H40: 50 - 150
E41: NOBASIL FKD S Thermal (FKD S); λD= 0,035 W/(m.K) MW-EN 13162-T5-DS(TH)-CS(10)30-TR10-WS-WL(P)-MU1 | H41: 50 - 150
E42: NOBASIL SMARTwall S C1 (FKD S C1); λD= 0,035 W/(m.K) MW-EN 13162-T5-DS(TH)-CS(10)30-TR10-WS-WL(P)-MU1 | H42: 50 - 150
E43: Určeno pro lepicí maltu MAMUT Flex 50 a MAMUT Flex 45
E44: NOBASIL SMARTwall S C2 (FKD S C2); λD= 0,035 W/(m.K) MW-EN 13162-T5-DS(TH)-CS(10)30-TR10-WS-WL(P)-MU1 | H44: 50 - 150
E45: Určeno pro lepicí maltu MAMUT Flex 50 a MAMUT Flex 45
E46: Frontrock MAX E (výrobce ROCKWOOL a.s.); λD= 0,036 W/(m.K) MW-EN 13162-T5-DS(T+)-DS(TH)-CS(10)20-TR10-PL(5)250-WS-WL(P)-MU1 | H46: 50 - 150
E47: Isover TF PROFI (výr. SGCP CZ a.s.); λD= 0,036 W/(m.K) MW- EN 13162-T5- DS(TH)-CS(10)30-TR10-WS-WL(P)-MU1 | H47: 50 - 150
E48: Určeno pro lepicí maltu MAMUT Flex 50 a MAMUT Flex 45
D49: Kotvicí hmoždinky k kovovám vrutem | E49: ejotherm STR U | F49: ETA-04/0023 | G49: dle PD | H49: -
E50: plastové šroubovací hmoždinky
E51: ejotherm STR U 2G | F51: ETA-04/0023 | G51: dle PD | H51: -
E52: plastové šroubovací hmoždinky
E53: Bravoll PTH-S 60/8-La | F53: ETA-08/0267 | G53: dle PD | H53: -
E54: plastové šroubovací hmoždinky
E55: fischer Termoz 8 SV | F55: ETA-06/0180 | G55: dle PD | H55: -
E56: plastové šroubovací hmoždinky
E57: fischer Termoz 8 U | F57: ETA-02/0019 | G57: dle PD | H57: -
E58: plastové šroubovací hmoždinky
E59: fischer termoz CS 8 | F59: ETA-14/0372 | G59: dle PD
E60: plastové šroubovací hmoždinky
E61: Hilti WDVS-Schraubdübel D-FV a D-FV T | F61: ETA-05/0039 | G61: dle PD | H61: -
E62: plastové šroubovací hmoždinky
E63: Koelner TFIX-8S a TFIX-8ST | F63: ETA-11/0144 | G63: dle PD
E64: plastové šroubovací hmoždinky
E65: KOELNER KI-10NS | F65: ETA-07/0221 | G65: dle PD | H65: -
E66: plastové šroubovací hmoždinky
E67: WKRET-MET eco-drive | F67: ETA-13/0107 | G67: dle PD | H67: -
E68: plastové šroubovací hmoždinky
E69: WKRET-MET eco-drive S | F69: ETA-13/0107 | G69: dle PD | H69: -
E70: plastové šroubovací hmoždinky
E71: WKRET-MET eco-drive W | F71: ETA-13/0107 | G71: dle PD | H71: -
E72: plastové šroubovací hmoždinky
E73: WKRET-MET WKTHERM-S | F73: ETA-13/0724 | G73: dle PD | H73: -
E74: plastové šroubovací hmoždinky
C75: Základní vrstva – ZV | D75: Malta základní vrstvy pouze s lepicími hmotami MAMUT Flex 50 a Flex 45 | E75: MAMUT Flex 50 | G75: 4,0 - 6,5 (kg/m²) suché směsi | H75: 3-5
E76: Stav při dodání: prášek
E77: Postup přípravy: prášek vyžadující přípravek vody 0,25 – 0,27 l/kg
E78: Hlavní součásti výrobku: portlandský cement, plnivo o zrnitosti 0-0,6mm, speciální přísady
D79: Malta základní vrstvy pouze s lepicí hmotoui MAMUT Flex T | E79: MAMUT Flex T | G79: 5,0 - 6,0 (kg/m²) suché směsi | H79: 4
E80: Stav při dodání: prášek
E81: Postup přípravy: prášek vyžadující přípravek vody 0,25 l/kg
E82: Hlavní součásti výrobku: portlandský cement, plnivo o zrnitosti 0-0,7mm, speciální přísady
D83: Výztuž | E83: Skleněná síťovina pro ETICS
E84: VERTEX R 131 A101 (rozměry mřížky 3,5 x 3,8 mm) | G84: - | H84: -
E85: VERTEX R 117 A101 (rozměry mřížky 4,0 x 4,5 mm) pouze s maltou základní vrstvy MAMUT Flex 50
E86: 117S (rozměry mřížky 4,0 x 5,0 mm) pouze s maltou základní vrstvy MAMUT Flex 50
E87: 122 (rozměry mřížky 4,0 x 4,0 mm) pouze s maltou základní vrstvy MAMUT Flex 50
E88: 122L (rozměry mřížky 4,0 x 4,5 mm) pouze s maltou základní vrstvy MAMUT Flex 50
C89: Povrchová úprava – PÚ | D89: Penetrační nátěr | E89: MAMUT Kontakt VSP | G89: 0,20 l/m² | H89: -
E90: Stav při dodání: tekutina připravená k použití
E91: Postup přípravy: neředit, promíchat
E92: Hlavní součásti výrobku: organické pojivo, minerální přísady, voda
E93: Použití: penetrační nátěr základní vrstvy určený pro konečné povrchové úpravy MAMUT Spektrum VZ/VR
E94: MAMUT Kontakt VSICA | G94: 0,20 l/m² | H94: -
E95: Stav při dodání: tekutina připravená k použití
E96: Postup přípravy: neředit, promíchat
E97: Hlavní součásti výrobku: Drasekné vodní sklo, minerální přísady, voda
E98: Použití: penetrační nátěr základní vrstvy určený pro konečné povrchové úpravy MAMUT Silikát VZ/VR
E99: MAMUT Kontakt VSIL | G99: 0,20 l/m² | H99: -
E100: Stav při dodání: tekutina připravená k použití
E101: Postup přípravy: neředit, promíchat
E102: Hlavní součásti výrobku: organické pojivo, minerální přísady, voda
E103: Použití: penetrační nátěr základní vrstvy určený pro konečné povrchové úpravy MAMUT Silikon VZ/VR
E104: MAMUT Kontakt | G104: 0,20 l/m² | H104: -
E105: Stav při dodání: tekutina připravená k použití
E106: Postup přípravy: neředit, promíchat
E107: Hlavní součásti výrobku: umělopryskyřičná disperze, minerální přísady
E108: Použití: penetrační nátěr základní vrstvy určený pro konečné povrchové úpravy MAMUT Silikon, MAMUT Silikat
D109: Konečné povrchové úpravy | E109: Omítky
E110: MAMUT Spektrum VZ | G110: 1,7 – 4,0 (kg/m²) dle max.velikosti zrna | H110: Dle max. velikosti zrna
E111: akrylátová zatíraná omítka -max. zrno 1,0; 1,5; 2,0; 3,0mm
E112: Stav při dodání: pasta připravená k použití
E113: Složení: směs kameniva, pigmentů, plniv a pojiva na bázi umělé pryskyřice
E114: Určeno pro maltu základní vrstvy MAMUT Flex 50
E115: MAMUT Spektrum VR | G115: 2,4 – 3,8 (kg/m²) dle max.velikosti zrna | H115: Dle max. velikosti zrna
E116: akrylátová rýhovaná omítka -max. zrno 1,5; 2,0; 3,0mm
E117: Stav při dodání: pasta připravená k použití
E118: Složení: směs kameniva, pigmentů, plniv a pojiva na bázi umělé pryskyřice
E119: Určeno pro maltu základní vrstvy MAMUT Flex 50
E120: MAMUT Silikát VZ | G120: 1,7 – 4,0 (kg/m²) dle max.velikosti zrna | H120: Dle max. velikosti zrna
E121: silikátová zatíraná omítka -max. zrno 1,0; 1,5; 2,0; 3,0mm
E122: Stav při dodání: pasta připravená k použití
E123: Složení: směs kameniva, pigmentů, plniv a pojiva na bázi vodního skla
E124: Určeno pro maltu základní vrstvy MAMUT Flex 50
E125: MAMUT Silikát VR | G125: 2,4 – 3,8 (kg/m²) dle max.velikosti zrna | H125: Dle max. velikosti zrna
E126: silikátová rýhovaná omítka -max. zrno 1,5; 2,0; 3,0mm
E127: Stav při dodání: pasta připravená k použití
E128: Složení: směs kameniva, pigmentů, plniv a pojiva na bázi vodního skla
E129: Určeno pro maltu základní vrstvy MAMUT Flex 50
E130: MAMUT Silikon VZ | G130: 1,7 – 4,0 (kg/m²) dle max.velikosti zrna | H130: Dle max. velikosti zrna
E131: silikonová zatíraná omítka -max. zrno 1,0; 1,5; 2,0; 3,0mm
E132: Stav při dodání: pasta připravená k použití
E133: Složení: směs kameniva, pigmentů, plniv a pojiva na bázi silikonové pryskyřice
E134: Určeno pro maltu základní vrstvy MAMUT Flex 50
E135: MAMUT Silikon VR | G135: 2,4 – 3,8 (kg/m²) dle max.velikosti zrna | H135: Dle max. velikosti zrna
E136: silikonová rýhovaná omítka -max. zrno 1,5; 2,0; 3,0mm
E137: Stav při dodání: pasta připravená k použití
E138: Složení: směs kameniva, pigmentů, plniv a pojiva na bázi silikonové pryskyřice
E139: Určeno pro maltu základní vrstvy MAMUT Flex 50
E140: MAMUT Silikon Z | G140: 2,5 – 3,8 (kg/m²) dle max.velikosti zrna | H140: Dle max. velikosti zrna
E141: silikonová zatíraná omítka -max. zrno 1,5; 2,0; 3,0mm
E142: Stav při dodání: pasta připravená k použití
E143: Složení: směs kameniva, pigmentů, plniv a pojiva na bázi silikonové pryskyřice
E144: Určeno pro maltu základní vrstvy MAMUT Flex T
E145: MAMUT Silikon R | G145: 2,4 – 3,7 (kg/m²) dle max.velikosti zrna | H145: Dle max. velikosti zrna
E146: silikonová rýhovaná omítka -max. zrno 1,5; 2,0; 3,0mm
E147: Stav při dodání: pasta připravená k použití
E148: Složení: směs kameniva, pigmentů, plniv a pojiva na bázi silikonové pryskyřice
E149: Určeno pro maltu základní vrstvy MAMUT Flex T
E150: MAMUT Silikát Z | G150: 2,5 – 3,8 (kg/m²) dle max.velikosti zrna | H150: Dle max. velikosti zrna
E151: silikátová zatíraná omítka -max. zrno 1,5; 2,0; 3,0mm
E152: Stav při dodání: pasta připravená k použití
E153: Složení: směs kameniva, pigmentů, plniv a pojiva na bázi vodního skla
E154: Určeno pro maltu základní vrstvy MAMUT Flex T
E155: MAMUT Silikát R | G155: 2,4 – 3,7 (kg/m²) dle max.velikosti zrna | H155: Dle max. velikosti zrna
E156: silikátová rýhovaná omítka -max. zrno 1,5; 2,0; 3,0mm
E157: Stav při dodání: pasta připravená k použití
E158: Složení: směs kameniva, pigmentů, plniv a pojiva na bázi vodního skla
E159: Určeno pro maltu základní vrstvy MAMUT Flex T
D160: Příslušenství | E160: Vlastnosti příslušenství jsou garantovány na zodpovědnosti výrobce ETICS
K161: ²
C162: Zamýšlené použití:
C163: Tento ETICS MAMUT-THERM M plus se uplatňuje jako vnější izolace stěn budov. Tyto stěny jsou vytvořeny zděním (z cihel, bloků, kamene ...) nebo z betonu (monolitického nebo z prefabrikovaných panelů). Předtím, než je ETICS uplatněn, je potřeba ověřit vlastnosti stěn, zejména pokud jde o podmínky pro třídu reakce na oheň a upevnění ETICS buď lepením nebo pomocí mechanického kotvení. ETICS je navrhován tak, aby dodával stěnám odpovídající tepelnou izolaci. ETICS je tvořen nenosnými konstrukčními součástmi. Nepůsobí přímo ke zvýšení stability zdi, na níž je aplikován, ale působí ke zvýšení odolnosti proti vlivům počasí.
C164: ETICS může být použit jak na nových, tak i na stávajících (rekonstruovaných) vertikálních stěnách. Může být také použit na horizontálních nebo nakloněných površích, které nejsou vystaveny dešťovým srážkám. Účelem ETICS není zajišťování neprůvzdušnosti budovy. Výběr způsobu upevnění závisí na vlastnostech podkladu, který může vyžadovat úpravu (viz čl. 7.2.1 ETAG 004) a musí být proveden v souladu s národními požadavky.
B165: Dle zákona 22/1997 Sb. v platném znění, zejména pak Nařízení vlády č. 163/2002 Sb.v platném znění, jsou tepelně izolační kompozitní systémy (ETICS) stanovenými výrobky. Z pohledu výše uvedeného zákona ve znění pozdějších předpisů vyplývá, že ETICS je brán jako výrobek a jako takový musí být nejprve odzkoušen v akreditovaných zkušebnách a certifikován. Odpovědnost podle příslušných předpisů pro stavební výrobky nese společnost MAMUT-THERM s.r.o. za ty specifikované ETICS, které sama, jako sestavy součástí, uvádí na trh. Každý ETICS je jednoznačně definovaným výrobkem, který má určenou skladbu komponentů, které na sebe vzájemně navazují. Záměnou komponentů, nedodržením skladby nebo nedodržením technologického postupu ETICS k odborné montáži, určených výrobcem, je hrubým zásahem do charakteristiky výrobku a vzniklý produkt již přestává být stanoveným a tedy certifikovaným výrobkem.

Sheet M-T P spiral
C3: Definice ETICS MAMUT-THERM P spiral a zamýšlené použití
C5: STO 020-037606
C6: Reakce na oheň Evropská třída dle EN 13501-1+A1: B - s1,d0 *)
C7: index šíření plamene is = 0,0 mm/min
C8: Vnější tepelně izolační kompozitní systém (ETICS) MAMUT-THERM P spiral, zvaný ETICS v dalším textu, je navržen a prováděn v souladu s návrhovými a montážními pokyny držitele STO, uloženými v Technickém a zkušebním ústavu stavebním Praha s.p. (TZÚS), pobočka České Budějovice. ETICS se skládá z následujících součástí, které jsou vyráběny držitelem STO nebo jeho subdodavatelem, z těch se poté zabudovává do stavby.
C9: Tento systém je prodáván pod jedním obchodním názvem.
C11: Definice výrobku | E11: Součásti | G11: Spotřeba (kg/m2) | H11: Tloušťka (mm)
C13: Mechanicky kotvený ETICS s doplňkovým lepením.
C14: ETICS se lepí celoplošně (100%) nebo minimálně na 40 % plochy izolační desky a v předepsané tloušťce.
C15: Izolační vrstva – IV a související způsob upevnění | D15: Lepicí hmota pouze s maltou základní vrstvy MAMUT Flex 50 | E15: MAMUT Flex 50 | G15: 3,0 - 6,0 (kg/m²) suché směsi | H15: -
E16: Stav při dodání: prášek
E17: Postup přípravy: prášek vyžadující přípravek vody 0,25 – 0,27 l/kg
E18: Hlavní součásti výrobku: portlandský cement, plnivo o zrnitosti 0-0,6mm, speciální přísady
E19: MAMUT Flex 45 | G19: 3,0 - 6,0 (kg/m²) suché směsi | H19: -
E20: Stav při dodání: prášek
E21: Postup přípravy: prášek vyžadující přípravek vody 0,25 – 0,27 l/kg
E22: Hlavní součásti výrobku: portlandský cement, plnivo o zrnitosti 0-0,6mm, speciální přísady
D23: Lepicí hmota pouze s maltou základní vrstvy MAMUT Flex T | E23: MAMUT Flex T | G23: 3,0 - 5,0 (kg/m²) suché směsi | H23: -
E24: Stav při dodání: prášek
E25: Postup přípravy: prášek vyžadující přípravek vody 0,25 l/kg
E26: Hlavní součásti výrobku: portlandský cement, plnivo o zrnitosti 0-0,7mm, speciální přísady
D27: Lepicí hmota pouze s maltou základní vrstvy MAMUT Flex T a MAMUT MULTI | E27: MAMUT MULTI | G27: 3,0 - 5,0 (kg/m²) suché směsi | H27: -
E28: Stav při dodání: prášek
E29: Postup přípravy: prášek vyžadující přípravek vody 0,20 l/kg
E30: Hlavní součásti výrobku: portlandský cement, plnivo o zrnitosti 0-0,6mm, speciální přísady
D31: Izolační výrobek | E31: Desky z pěnového polystyrenu dle EN 13163:2012; (EPS s reakcí na oheň E) a s dalšími sledovanými vlastnostmi: pro EPS 70F ... EPS-13163-T1-L2-W1-S2-P3-DS(70,-)1-DS(70,90)1-DS(N)2-TR100-SS20-GM1000-MU40 nebo pro EPS 100F... EPS-13163-T1-L2-W1-S2-P3-DS(70,-)1-DS(70,90)1-DS(N)2-TR150-SS20-GM1000-MU70 | H31: 50 - 300
D32: Izolační výrobek | E32: Desky z pěnového polystyrenu dle EN 13163:2012; λD= 0,031 W/(m.K) (EPS s reakcí na oheň E, pevností v tahu kolmo k rovině desky TR 150) a s dalšími sledovanými vlastnostmi viz STO 020-033397 tab3. | H32: 50 - 250
E33: Desky z pěnového polystyrenu dle EN 13163:2012; λD= 0,032 W/(m.K) (EPS s reakcí na oheň E, pevností v tahu kolmo k rovině desky TR 100) a s dalšími sledovanými vlastnostmi vizSTO 020-033397 tab3. | H33: 50 - 250
E34: Desky z pěnového polystyrenu dle EN 13163:2012; λD= 0,037 W/(m.K) (EPS s reakcí na oheň E, pevností v tahu kolmo k rovině desky TR 150) a s dalšími sledovanými vlastnostmi viz STO 020-033397 tab3. | H34: 50 - 250
E35: Desky z pěnového polystyrenu dle EN 13163:2012; λD= 0,039 W/(m.K) (EPS s reakcí na oheň E, pevností v tahu kolmo k rovině desky TR 100) a s dalšími sledovanými vlastnostmi vizSTO 020-033397 tab3. | H35: 50 - 250
D36: kotva | E36: Spiral Anksys, typ SA15+ - kotva injektovaná exp.pěnou SAF1 nebo SAF3 | F36: ETA-13/0527 a STO 060-044146 | G36: Dle PD, min. 4 ks/m² | H36: -
C37: Základní vrstva – ZV | D37: Malta základní vrstvy pouze s lepicími hmotami MAMUT Flex 50 a Flex 45 | E37: MAMUT Flex 50 | G37: 4,0 - 6,0 (kg/m²) suché směsi | H37: 3 - 5
E38: Stav při dodání: prášek
E39: Postup přípravy: prášek vyžadující přípravek vody 0,25 – 0,27 l/kg
E40: Hlavní součásti výrobku: portlandský cement, plnivo o zrnitosti 0-0,6mm, speciální přísady
D41: Malta základní vrstvy pouze s lepicí hmotou MAMUT MULTI | E41: MAMUT MULTI | G41: 3,0 - 5,0 (kg/m²) suché směsi | H41: 3 - 5
E42: Stav při dodání: prášek
E43: Postup přípravy: prášek vyžadující přípravek vody 0,25 – 0,27 l/kg
E44: Hlavní součásti výrobku: portlandský cement, plnivo o zrnitosti 0-0,6mm, speciální přísady
D45: Malta základní vrstvy pouze s lepicími hmotami MAMUT Flex T a MAMUT MULTI | E45: MAMUT Flex T | G45: 3,6 - 5,0 (kg/m²) suché směsi | H45: 3 - 5
E46: Stav při dodání: prášek
E47: Postup přípravy: prášek vyžadující přípravek vody 0,25 – 0,27 l/kg
E48: Hlavní součásti výrobku: portlandský cement, plnivo o zrnitosti 0-0,6mm, speciální přísady
D49: Výztuž | E49: Skleněná síťovina pro ETICS (pro všechny hmoty základní vrstvy)
E50: VERTEX R 131 A101 (rozměry mřížky 3,5 x 3,8 mm) | G50: - | H50: -
E51: Skleněná síťovina pro ETICS (pro hmotu základní vrstvy MAMUT Flex 50)
E52: VERTEX R 117 A101 (rozměry mřížky 4,0 x 4,5 mm) pouze s maltou základní vrstvy MAMUT Flex 50 | G52: - | H52: -
E53: 117S (rozměry mřížky 4,0 x 5,0 mm) pouze s maltou základní vrstvy MAMUT Flex 50 | G53: - | H53: -
E54: 122 (rozměry mřížky 4,0 x 4,0 mm) pouze s maltou základní vrstvy MAMUT Flex 50 | G54: - | H54: -
E55: 122L (rozměry mřížky 4,0 x 4,5 mm) pouze s maltou základní vrstvy MAMUT Flex 50 | G55: - | H55: -
C56: Povrchová úprava – PÚ | D56: Penetrační nátěr | E56: MAMUT Kontakt VSP | G56: 0,20 l/m² | H56: -
E57: Stav při dodání: tekutina připravená k použití
E58: Postup přípravy: neředit, promíchat
E59: Hlavní součásti výrobku: organické pojivo, minerální přísady, voda
E60: Použití: penetrační nátěr základní vrstvy určený pro konečné povrchové úpravy MAMUT Spektrum VZ/VR
E61: MAMUT Kontakt VSICA | G61: 0,20 l/m² | H61: -
E62: Stav při dodání: tekutina připravená k použití
E63: Postup přípravy: neředit, promíchat
E64: Hlavní součásti výrobku: Drasekné vodní sklo, minerální přísady, voda
E65: Použití: penetrační nátěr základní vrstvy určený pro konečné povrchové úpravy MAMUT Silikát VZ/VR
E66: MAMUT Kontakt VSIL | G66: 0,20 l/m² | H66: -
E67: Stav při dodání: tekutina připravená k použití
E68: Postup přípravy: neředit, promíchat
E69: Hlavní součásti výrobku: organické pojivo, minerální přísady, voda
E70: Použití: penetrační nátěr základní vrstvy určený pro konečné povrchové úpravy MAMUT Silikon VZ/VR
E71: MAMUT Kontakt | G71: 0,20 l/m² | H71: -
E72: Stav při dodání: tekutina připravená k použití
E73: Postup přípravy: neředit, promíchat
E74: Hlavní součásti výrobku: umělopryskyřičná disperze, minerální přísady
E75: Použití: penetrační nátěr základní vrstvy určený pro konečné povrchové úpravy MAMUT Silikon Z/R, MAMUT Silikat Z/R, MAMUT Spektrum Z/R
E76: MAMUT Kontakt mozaika | G76: 0,20 l/m² | H76: -
E77: Stav při dodání: tekutina připravená k použití
E78: Postup přípravy: neředit, promíchat
E79: Hlavní součásti výrobku: umělopryskyřičná disperze, minerální přísady
E80: Použití: penetrační nátěr základní vrstvy určený pro konečné povrchové úpravy MAMUT mozaika
D81: Konečné povrchové úpravy | E81: Omítky
E82: MAMUT Spektrum VZ | G82: 1,7 – 4,0 (kg/m²) dle max.velikosti zrna | H82: Dle max. velikosti zrna
E83: akrylátová zatíraná omítka -max. zrno 1,0; 1,5; 2,0; 3,0mm
E84: Stav při dodání: pasta připravená k použití
E85: Složení: směs kameniva, pigmentů, plniv a pojiva na bázi umělé pryskyřice
E86: Pouze pro maltu základní vrstvy MAMUT Flex 50
E87: MAMUT Spektrum VR | G87: 2,4 – 3,8 (kg/m²) dle max.velikosti zrna | H87: Dle max. velikosti zrna
E88: akrylátová rýhovaná omítka -max. zrno 1,5; 2,0; 3,0mm
E89: Stav při dodání: pasta připravená k použití
E90: Složení: směs kameniva, pigmentů, plniv a pojiva na bázi umělé pryskyřice
E91: Pouze pro maltu základní vrstvy MAMUT Flex 50
E92: MAMUT Silikát VZ | G92: 1,7 – 4,0 (kg/m²) dle max.velikosti zrna | H92: Dle max. velikosti zrna
E93: silikátová zatíraná omítka -max. zrno 1,0; 1,5; 2,0; 3,0mm
E94: Stav při dodání: pasta připravená k použití
E95: Složení: směs kameniva, pigmentů, plniv a pojiva na bázi vodního skla
E96: Pouze pro maltu základní vrstvy MAMUT Flex 50
E97: MAMUT Silikát VR | G97: 2,4 – 3,8 (kg/m²) dle max.velikosti zrna | H97: Dle max. velikosti zrna
E98: silikátová rýhovaná omítka -max. zrno 1,5; 2,0; 3,0mm
E99: Stav při dodání: pasta připravená k použití
E100: Složení: směs kameniva, pigmentů, plniv a pojiva na bázi vodního skla
E101: Pouze pro maltu základní vrstvy MAMUT Flex 50
E102: MAMUT Silikon VZ | G102: 1,7 – 4,0 (kg/m²) dle max.velikosti zrna | H102: Dle max. velikosti zrna
E103: silikonová zatíraná omítka -max. zrno 1,0; 1,5; 2,0; 3,0mm
E104: Stav při dodání: pasta připravená k použití
E105: Složení: směs kameniva, pigmentů, plniv a pojiva na bázi silikonové pryskyřice
E106: Pouze pro maltu základní vrstvy MAMUT Flex 50
E107: MAMUT Silikon VR | G107: 2,4 – 3,8 (kg/m²) dle max.velikosti zrna | H107: Dle max. velikosti zrna
E108: silikonová rýhovaná omítka -max. zrno 1,5; 2,0; 3,0mm
E109: Stav při dodání: pasta připravená k použití
E110: Složení: směs kameniva, pigmentů, plniv a pojiva na bázi silikonové pryskyřice
E111: Pouze pro maltu základní vrstvy MAMUT Flex 50
E112: MAMUT Spektrum Z | G112: 2,5 – 3,8 (kg/m²) dle max.velikosti zrna | H112: Dle max. velikosti zrna
E113: akrylátová zatíraná omítka -max. zrno 1,5; 2,0; 3,0mm
E114: Stav při dodání: pasta připravená k použití
E115: Složení: směs kameniva, pigmentů, plniv a pojiva na bázi umělé pryskyřice
